Organisation Name,Organisation Code,Date Paid,Transaction Number,Amount,Supplier Name,Supplier ID,Supplier post code (first 4 digits),Directorate,Service Area,General Ledger code Description,BVACOP class,Revenue/ Capital Spend
Wiltshire,http://opendatacommunities.org/id/unitary-authority/wiltshire,07/01/2022,1903083128,1788,1st Choice Stairlifts ,113095,SN11,Wiltshire Council,Wiltshire Council,Other Contracts,Third Party Payments,CAPITAL
Wiltshire,http://opendatacommunities.org/id/unitary-authority/wiltshire,13/01/2022,1903089985,1136,1st Choice Stairlifts ,113095,SN11,Wiltshire Council,Wiltshire Council,Other Contracts,Third Party Payments,CAPITAL
Wiltshire,http://opendatacommunities.org/id/unitary-authority/wiltshire,18/01/2022,1903094639,4230,1st Choice Stairlifts ,113095,SN11,Wiltshire Council,Wiltshire Council,Other Contracts,Third Party Payments,CAPITAL
Wiltshire,http://opendatacommunities.org/id/unitary-authority/wiltshire,19/01/2022,1903089318,2463.44,2 Care UK Ltd ,110002,BH7 ,Community Services,MH OP South Locality,Supported Living,Third Party Payments,REVENUE
Wiltshire,http://opendatacommunities.org/id/unitary-authority/wiltshire,19/01/2022,1903089319,2463.44,2 Care UK Ltd ,110002,BH7 ,Community Services,MH OP South Locality,Supported Living,Third Party Payments,REVENUE
Wiltshire,http://opendatacommunities.org/id/unitary-authority/wiltshire,19/01/2022,1903089320,2463.44,2 Care UK Ltd ,110002,BH7 ,Community Services,MH AOWA South Locali,Supported Living,Third Party Payments,REVENUE
Wiltshire,http://opendatacommunities.org/id/unitary-authority/wiltshire,19/01/2022,1903089321,2463.44,2 Care UK Ltd ,110002,BH7 ,Community Services,MH AOWA South Locali,Supported Living,Third Party Payments,REVENUE
Wiltshire,http://opendatacommunities.org/id/unitary-authority/wiltshire,19/01/2022,1903089322,2463.44,2 Care UK Ltd ,110002,BH7 ,Community Services,MH AOWA South Locali,Supported Living,Third Party Payments,REVENUE
Wiltshire,http://opendatacommunities.org/id/unitary-authority/wiltshire,06/01/2022,1903082799,2101.56,247 Home Care ,148234,SN5 ,Community Services,North Care Packages,Adult Domiciliary Care,Third Party Payments,REVENUE
Wiltshire,http://opendatacommunities.org/id/unitary-authority/wiltshire,06/01/2022,1903082800,2529.53,247 Home Care ,148234,SN5 ,Community Services,North Care Packages,Adult Domiciliary Care,Third Party Payments,REVENUE
Wiltshire,http://opendatacommunities.org/id/unitary-authority/wiltshire,06/01/2022,1903082801,639.12,247 Home Care ,148234,SN5 ,Community Services,North Care Packages,Adult Domiciliary Care,Third Party Payments,REVENUE
Wiltshire,http://opendatacommunities.org/id/unitary-authority/wiltshire,06/01/2022,1903082802,1172.1,247 Home Care ,148234,SN5 ,Community Services,MH OP N&E Locality,Adult Domiciliary Care,Third Party Payments,REVENUE
Wiltshire,http://opendatacommunities.org/id/unitary-authority/wiltshire,06/01/2022,1903082803,3461.34,247 Home Care ,148234,SN5 ,Community Services,North Care Packages,Adult Domiciliary Care,Third Party Payments,REVENUE
Wiltshire,http://opendatacommunities.org/id/unitary-authority/wiltshire,06/01/2022,1903082804,479.51,247 Home Care ,148234,SN5 ,Community Services,North Care Packages,Adult Domiciliary Care,Third Party Payments,REVENUE
Wiltshire,http://opendatacommunities.org/id/unitary-authority/wiltshire,12/01/2022,1903088285,1522.1,247 Home Care ,148234,SN5 ,Community Services,North Care Packages,Adult Domiciliary Care,Third Party Payments,REVENUE
Wiltshire,http://opendatacommunities.org/id/unitary-authority/wiltshire,19/01/2022,1903089514,317.49,247 Home Care ,148234,SN5 ,Community Services,North Care Packages,Supported Living,Third Party Payments,REVENUE
Wiltshire,http://opendatacommunities.org/id/unitary-authority/wiltshire,19/01/2022,1903089515,740.8,247 Home Care ,148234,SN5 ,Community Services,North Care Packages,Supported Living,Third Party Payments,REVENUE
Wiltshire,http://opendatacommunities.org/id/unitary-authority/wiltshire,19/01/2022,1903089516,740.8,247 Home Care ,148234,SN5 ,Community Services,North Care Packages,Supported Living,Third Party Payments,REVENUE
Wiltshire,http://opendatacommunities.org/id/unitary-authority/wiltshire,19/01/2022,1903089517,1361.12,247 Home Care ,148234,SN5 ,Community Services,LDAS Placements,Supported Living,Third Party Payments,REVENUE
Wiltshire,http://opendatacommunities.org/id/unitary-authority/wiltshire,17/01/2022,1903092792,1173.48,247 Home Care ,148234,SN5 ,Community Services,North Care Packages,Adult Domiciliary Care,Third Party Payments,REVENUE
Wiltshire,http://opendatacommunities.org/id/unitary-authority/wiltshire,17/01/2022,1903092793,2116.94,247 Home Care ,148234,SN5 ,Community Services,North Care Packages,Adult Domiciliary Care,Third Party Payments,REVENUE
Wiltshire,http://opendatacommunities.org/id/unitary-authority/wiltshire,20/01/2022,1903096171,1216.6,247 Home Care ,148234,SN5 ,Community Services,North Care Packages,Adult Domiciliary Care,Third Party Payments,REVENUE
Wiltshire,http://opendatacommunities.org/id/unitary-authority/wiltshire,24/01/2022,1903097246,455.36,247 Home Care ,148234,SN5 ,Resources,Covid19 - Hospital D,Adult Domiciliary Care,Third Party Payments,REVENUE
Wiltshire,http://opendatacommunities.org/id/unitary-authority/wiltshire,06/01/2022,5107446995,527.22,247 Home Care ,148234,SN5 ,Children & Education,0-25 extnl disabty p,Other Social & Welfare Costs,Third Party Payments,REVENUE
Wiltshire,http://opendatacommunities.org/id/unitary-authority/wiltshire,06/01/2022,5107446997,656.9,247 Home Care ,148234,SN5 ,Children & Education,0-25 extnl disabty p,Other Social & Welfare Costs,Third Party Payments,REVENUE
Wiltshire,http://opendatacommunities.org/id/unitary-authority/wiltshire,11/01/2022,5107447386,578.82,247 Home Care ,148234,SN5 ,Children & Education,0-25 extnl disabty p,Other Social & Welfare Costs,Third Party Payments,REVENUE
Wiltshire,http://opendatacommunities.org/id/unitary-authority/wiltshire,11/01/2022,5107447388,656.9,247 Home Care ,148234,SN5 ,Children & Education,0-25 extnl disabty p,Other Social & Welfare Costs,Third Party Payments,REVENUE
Wiltshire,http://opendatacommunities.org/id/unitary-authority/wiltshire,13/01/2022,5107447738,576.1,247 Home Care ,148234,SN5 ,Children & Education,0-25 extnl disabty p,Other Social & Welfare Costs,Third Party Payments,REVENUE
Wiltshire,http://opendatacommunities.org/id/unitary-authority/wiltshire,26/01/2022,5107448740,656.9,247 Home Care ,148234,SN5 ,Children & Education,0-25 extnl disabty p,Other Social & Welfare Costs,Third Party Payments,REVENUE
Wiltshire,http://opendatacommunities.org/id/unitary-authority/wiltshire,26/01/2022,5107448741,665.02,247 Home Care ,148234,SN5 ,Children & Education,0-25 extnl disabty p,Other Social & Welfare Costs,Third Party Payments,REVENUE
Wiltshire,http://opendatacommunities.org/id/unitary-authority/wiltshire,10/01/2022,1903083324,562.42,2get2 Taxi Services Ltd ,101102,SP4 ,Neighbourhood & Planning,Mainstream Secondary,Transport Contracts,Third Party Payments,REVENUE
Wiltshire,http://opendatacommunities.org/id/unitary-authority/wiltshire,10/01/2022,1903083324,1218.58,2get2 Taxi Services Ltd ,101102,SP4 ,Neighbourhood & Planning,SEN Primary Transprt,Transport Contracts,Third Party Payments,REVENUE
Wiltshire,http://opendatacommunities.org/id/unitary-authority/wiltshire,10/01/2022,1903083325,1300,2get2 Taxi Services Ltd ,101102,SP4 ,Neighbourhood & Planning,SEN Secondary Tspt,Transport Contracts,Third Party Payments,REVENUE
Wiltshire,http://opendatacommunities.org/id/unitary-authority/wiltshire,10/01/2022,1903083384,712.4,4K Travel ,146614,SN2 ,Neighbourhood & Planning,SEN Primary Transprt,Transport Contracts,Third Party Payments,REVENUE
Wiltshire,http://opendatacommunities.org/id/unitary-authority/wiltshire,10/01/2022,1903083384,1068.6,4K Travel ,146614,SN2 ,Neighbourhood & Planning,SEN Secondary Tspt,Transport Contracts,Third Party Payments,REVENUE
Wiltshire,http://opendatacommunities.org/id/unitary-authority/wiltshire,10/01/2022,1903083385,464.19,4K Travel ,146614,SN2 ,Neighbourhood & Planning,SEN Primary Transprt,Transport Contracts,Third Party Payments,REVENUE
Wiltshire,http://opendatacommunities.org/id/unitary-authority/wiltshire,10/01/2022,1903083385,2213.81,4K Travel ,146614,SN2 ,Neighbourhood & Planning,SEN Secondary Tspt,Transport Contracts,Third Party Payments,REVENUE
Wiltshire,http://opendatacommunities.org/id/unitary-authority/wiltshire,10/01/2022,1903083386,2933.92,4K Travel ,146614,SN2 ,Neighbourhood & Planning,Mainstream Secondary,Transport Contracts,Third Party Payments,REVENUE
Wiltshire,http://opendatacommunities.org/id/unitary-authority/wiltshire,10/01/2022,1903083387,3063.32,4K Travel ,146614,SN2 ,Neighbourhood & Planning,Mainstream Secondary,Transport Contracts,Third Party Payments,REVENUE
Wiltshire,http://opendatacommunities.org/id/unitary-authority/wiltshire,10/01/2022,1903083388,348.47,4K Travel ,146614,SN2 ,Neighbourhood & Planning,Public Transport,Transport Contracts,Third Party Payments,REVENUE
Wiltshire,http://opendatacommunities.org/id/unitary-authority/wiltshire,10/01/2022,1903083388,2333.33,4K Travel ,146614,SN2 ,Neighbourhood & Planning,Mainstream Primary,Transport Contracts,Third Party Payments,REVENUE
Wiltshire,http://opendatacommunities.org/id/unitary-authority/wiltshire,10/01/2022,1903083389,2516.58,4K Travel ,146614,SN2 ,Neighbourhood & Planning,Mainstream Secondary,Transport Contracts,Third Party Payments,REVENUE
Wiltshire,http://opendatacommunities.org/id/unitary-authority/wiltshire,10/01/2022,1903083390,4140.34,4K Travel ,146614,SN2 ,Neighbourhood & Planning,Mainstream Secondary,Transport Contracts,Third Party Payments,REVENUE
Wiltshire,http://opendatacommunities.org/id/unitary-authority/wiltshire,10/01/2022,1903083391,1547,4K Travel ,146614,SN2 ,Neighbourhood & Planning,SEN Secondary Tspt,Transport Contracts,Third Party Payments,REVENUE
Wiltshire,http://opendatacommunities.org/id/unitary-authority/wiltshire,10/01/2022,1903083392,646.54,4K Travel ,146614,SN2 ,Community Services,North Care Packages,Transport Contracts,Third Party Payments,REVENUE
Wiltshire,http://opendatacommunities.org/id/unitary-authority/wiltshire,10/01/2022,1903083392,2031.98,4K Travel ,146614,SN2 ,Community Services,LDAS Placements,Transport Contracts,Third Party Payments,REVENUE
Wiltshire,http://opendatacommunities.org/id/unitary-authority/wiltshire,10/01/2022,1903083393,577.65,4K Travel ,146614,SN2 ,Neighbourhood & Planning,Mainstream Secondary,Transport Contracts,Third Party Payments,REVENUE
Wiltshire,http://opendatacommunities.org/id/unitary-authority/wiltshire,10/01/2022,1903083393,770.16,4K Travel ,146614,SN2 ,Neighbourhood & Planning,SEN 16+ Transport,Transport Contracts,Third Party Payments,REVENUE
Wiltshire,http://opendatacommunities.org/id/unitary-authority/wiltshire,10/01/2022,1903083393,1347.85,4K Travel ,146614,SN2 ,Neighbourhood & Planning,Mainstream 16+ FE,Transport Contracts,Third Party Payments,REVENUE
Wiltshire,http://opendatacommunities.org/id/unitary-authority/wiltshire,10/01/2022,1903083394,3325,4K Travel ,146614,SN2 ,Neighbourhood & Planning,Mainstream Secondary,Transport Contracts,Third Party Payments,REVENUE
Wiltshire,http://opendatacommunities.org/id/unitary-authority/wiltshire,10/01/2022,1903083398,2340,4K Travel ,146614,SN2 ,Community Services,Afghan Resettleme,Transport Contracts,Third Party Payments,REVENUE
Wiltshire,http://opendatacommunities.org/id/unitary-authority/wiltshire,06/01/2022,1903082783,450.6,A & T Salisbury (Ltd) ,134373,SP1 ,Community Services,South Care Packages,Adult Domiciliary Care,Third Party Payments,REVENUE
Wiltshire,http://opendatacommunities.org/id/unitary-authority/wiltshire,31/01/2022,1903101404,769.46,A & T Salisbury (Ltd) ,134373,SP1 ,Community Services,South Care Packages,Adult Domiciliary Care,Third Party Payments,REVENUE
Wiltshire,http://opendatacommunities.org/id/unitary-authority/wiltshire,31/01/2022,1903101406,1229.48,A & T Salisbury (Ltd) ,134373,SP1 ,Community Services,South Care Packages,Adult Domiciliary Care,Third Party Payments,REVENUE
Wiltshire,http://opendatacommunities.org/id/unitary-authority/wiltshire,31/01/2022,1903101407,1133.28,A & T Salisbury (Ltd) ,134373,SP1 ,Community Services,South Care Packages,Adult Domiciliary Care,Third Party Payments,REVENUE
Wiltshire,http://opendatacommunities.org/id/unitary-authority/wiltshire,31/01/2022,1903101408,1028.92,A & T Salisbury (Ltd) ,134373,SP1 ,Community Services,South Care Packages,Adult Domiciliary Care Contribution,Income,REVENUE
Wiltshire,http://opendatacommunities.org/id/unitary-authority/wiltshire,12/01/2022,1903088135,429,A G Minibuses Ltd ,100878,BA12,Neighbourhood & Planning,SEN Primary Transprt,Transport Contracts,Third Party Payments,REVENUE
Wiltshire,http://opendatacommunities.org/id/unitary-authority/wiltshire,12/01/2022,1903088135,1716,A G Minibuses Ltd ,100878,BA12,Neighbourhood & Planning,SEN Secondary Tspt,Transport Contracts,Third Party Payments,REVENUE
Wiltshire,http://opendatacommunities.org/id/unitary-authority/wiltshire,12/01/2022,1903088136,2425.8,A G Minibuses Ltd ,100878,BA12,Neighbourhood & Planning,SEN Secondary Tspt,Transport Contracts,Third Party Payments,REVENUE
Wiltshire,http://opendatacommunities.org/id/unitary-authority/wiltshire,12/01/2022,1903088137,1512,A G Minibuses Ltd ,100878,BA12,Neighbourhood & Planning,Mainstream Secondary,Transport Contracts,Third Party Payments,REVENUE
Wiltshire,http://opendatacommunities.org/id/unitary-authority/wiltshire,12/01/2022,1903088138,369.8,A G Minibuses Ltd ,100878,BA12,Neighbourhood & Planning,SEN Primary Transprt,Transport Contracts,Third Party Payments,REVENUE
Wiltshire,http://opendatacommunities.org/id/unitary-authority/wiltshire,12/01/2022,1903088138,1502.2,A G Minibuses Ltd ,100878,BA12,Neighbourhood & Planning,SEN Secondary Tspt,Transport Contracts,Third Party Payments,REVENUE
Wiltshire,http://opendatacommunities.org/id/unitary-authority/wiltshire,12/01/2022,1903088139,604.4,A G Minibuses Ltd ,100878,BA12,Neighbourhood & Planning,SEN Secondary Tspt,Transport Contracts,Third Party Payments,REVENUE
Wiltshire,http://opendatacommunities.org/id/unitary-authority/wiltshire,12/01/2022,1903088139,1208.8,A G Minibuses Ltd ,100878,BA12,Neighbourhood & Planning,SEN Primary Transprt,Transport Contracts,Third Party Payments,REVENUE
Wiltshire,http://opendatacommunities.org/id/unitary-authority/wiltshire,12/01/2022,1903088140,1671.67,A G Minibuses Ltd ,100878,BA12,Neighbourhood & Planning,SEN Secondary Tspt,Transport Contracts,Third Party Payments,REVENUE
Wiltshire,http://opendatacommunities.org/id/unitary-authority/wiltshire,12/01/2022,1903088141,493.55,A G Minibuses Ltd ,100878,BA12,Neighbourhood & Planning,SEN Primary Transprt,Transport Contracts,Third Party Payments,REVENUE
Wiltshire,http://opendatacommunities.org/id/unitary-authority/wiltshire,12/01/2022,1903088141,1480.63,A G Minibuses Ltd ,100878,BA12,Neighbourhood & Planning,SEN Secondary Tspt,Transport Contracts,Third Party Payments,REVENUE
Wiltshire,http://opendatacommunities.org/id/unitary-authority/wiltshire,12/01/2022,1903088142,406.77,A G Minibuses Ltd ,100878,BA12,Neighbourhood & Planning,SEN Primary Transprt,Transport Contracts,Third Party Payments,REVENUE
Wiltshire,http://opendatacommunities.org/id/unitary-authority/wiltshire,12/01/2022,1903088142,1627.08,A G Minibuses Ltd ,100878,BA12,Neighbourhood & Planning,SEN Secondary Tspt,Transport Contracts,Third Party Payments,REVENUE
Wiltshire,http://opendatacommunities.org/id/unitary-authority/wiltshire,12/01/2022,1903088143,1700,A G Minibuses Ltd ,100878,BA12,Community Services,LDAS Placements,Transport Contracts,Third Party Payments,REVENUE
Wiltshire,http://opendatacommunities.org/id/unitary-authority/wiltshire,12/01/2022,1903088144,400.4,A G Minibuses Ltd ,100878,BA12,Neighbourhood & Planning,SEN Primary Transprt,Transport Contracts,Third Party Payments,REVENUE
Wiltshire,http://opendatacommunities.org/id/unitary-authority/wiltshire,12/01/2022,1903088144,1601.6,A G Minibuses Ltd ,100878,BA12,Neighbourhood & Planning,SEN Secondary Tspt,Transport Contracts,Third Party Payments,REVENUE
Wiltshire,http://opendatacommunities.org/id/unitary-authority/wiltshire,12/01/2022,1903088145,1924,A G Minibuses Ltd ,100878,BA12,Neighbourhood & Planning,SEN Secondary Tspt,Transport Contracts,Third Party Payments,REVENUE
Wiltshire,http://opendatacommunities.org/id/unitary-authority/wiltshire,12/01/2022,1903088146,2170.87,A G Minibuses Ltd ,100878,BA12,Neighbourhood & Planning,SEN Secondary Tspt,Transport Contracts,Third Party Payments,REVENUE
Wiltshire,http://opendatacommunities.org/id/unitary-authority/wiltshire,12/01/2022,1903088147,1599,A G Minibuses Ltd ,100878,BA12,Neighbourhood & Planning,SEN Secondary Tspt,Transport Contracts,Third Party Payments,REVENUE
Wiltshire,http://opendatacommunities.org/id/unitary-authority/wiltshire,12/01/2022,1903088148,600,A G Minibuses Ltd ,100878,BA12,Neighbourhood & Planning,Public Transport,Transport Contracts,Third Party Payments,REVENUE
Wiltshire,http://opendatacommunities.org/id/unitary-authority/wiltshire,12/01/2022,1903088150,2255.56,A G Minibuses Ltd ,100878,BA12,Neighbourhood & Planning,Mainstream Primary,Transport Contracts,Third Party Payments,REVENUE
Wiltshire,http://opendatacommunities.org/id/unitary-authority/wiltshire,12/01/2022,1903088151,741,A G Minibuses Ltd ,100878,BA12,Neighbourhood & Planning,SEN Secondary Tspt,Transport Contracts,Third Party Payments,REVENUE
Wiltshire,http://opendatacommunities.org/id/unitary-authority/wiltshire,12/01/2022,1903088151,1482,A G Minibuses Ltd ,100878,BA12,Neighbourhood & Planning,SEN Primary Transprt,Transport Contracts,Third Party Payments,REVENUE
Wiltshire,http://opendatacommunities.org/id/unitary-authority/wiltshire,12/01/2022,1903088153,1022.67,A G Minibuses Ltd ,100878,BA12,Neighbourhood & Planning,SEN Secondary Tspt,Transport Contracts,Third Party Payments,REVENUE
Wiltshire,http://opendatacommunities.org/id/unitary-authority/wiltshire,12/01/2022,1903088153,2045.33,A G Minibuses Ltd ,100878,BA12,Neighbourhood & Planning,SEN Primary Transprt,Transport Contracts,Third Party Payments,REVENUE
Wiltshire,http://opendatacommunities.org/id/unitary-authority/wiltshire,20/01/2022,1903096034,997.5,A G Minibuses Ltd ,100878,BA12,Neighbourhood & Planning,Mainstream Primary,Transport Contracts,Third Party Payments,REVENUE
Wiltshire,http://opendatacommunities.org/id/unitary-authority/wiltshire,20/01/2022,1903096034,3792.47,A G Minibuses Ltd ,100878,BA12,Neighbourhood & Planning,Public Transport,Transport Contracts,Third Party Payments,REVENUE
Wiltshire,http://opendatacommunities.org/id/unitary-authority/wiltshire,20/01/2022,1903096035,1583.33,A G Minibuses Ltd ,100878,BA12,Neighbourhood & Planning,Mainstream Secondary,Transport Contracts,Third Party Payments,REVENUE
Wiltshire,http://opendatacommunities.org/id/unitary-authority/wiltshire,20/01/2022,1903096035,3657.81,A G Minibuses Ltd ,100878,BA12,Neighbourhood & Planning,Public Transport,Transport Contracts,Third Party Payments,REVENUE
Wiltshire,http://opendatacommunities.org/id/unitary-authority/wiltshire,20/01/2022,5107448236,294.16,A S A Awards Scheme ,110020,LE11,Neighbourhood & Planning,Blue Pool (Melksham),Traded Goods Purchases,Supplies and Services,REVENUE
Wiltshire,http://opendatacommunities.org/id/unitary-authority/wiltshire,31/01/2022,5107449087,11900,A&C Weber UK Ltd ,134053,L31 ,Wiltshire Council,Wiltshire Council,Equipment Purchase,Supplies and Services,CAPITAL
Wiltshire,http://opendatacommunities.org/id/unitary-authority/wiltshire,12/01/2022,1903088106,1040,A1 Cab Company ,101233,SP4 ,Neighbourhood & Planning,SEN Primary Transprt,Transport Contracts,Third Party Payments,REVENUE
Wiltshire,http://opendatacommunities.org/id/unitary-authority/wiltshire,12/01/2022,1903088107,431.17,A1 Cab Company ,101233,SP4 ,Neighbourhood & Planning,SEN Secondary Tspt,Transport Contracts,Third Party Payments,REVENUE
Wiltshire,http://opendatacommunities.org/id/unitary-authority/wiltshire,12/01/2022,1903088107,862.33,A1 Cab Company ,101233,SP4 ,Neighbourhood & Planning,Mainstream Secondary,Transport Contracts,Third Party Payments,REVENUE
Wiltshire,http://opendatacommunities.org/id/unitary-authority/wiltshire,28/01/2022,5107446728,50544,A2 Dominion ,101167,SO23,Neighbourhood & Planning,Hsg Strat & Enabling,Other Contracts,Third Party Payments,REVENUE
Wiltshire,http://opendatacommunities.org/id/unitary-authority/wiltshire,12/01/2022,1903088109,1937.43,A2B Taxis Westbury ,149947,BA13,Neighbourhood & Planning,SEN Primary Transprt,Transport Contracts,Third Party Payments,REVENUE
Wiltshire,http://opendatacommunities.org/id/unitary-authority/wiltshire,12/01/2022,1903088115,1166.75,A2B Taxis Westbury ,149947,BA13,Neighbourhood & Planning,SEN Rechargable Exp,Transport Contracts,Third Party Payments,REVENUE
Wiltshire,http://opendatacommunities.org/id/unitary-authority/wiltshire,12/01/2022,1903088116,910,A2B Taxis Westbury ,149947,BA13,Neighbourhood & Planning,SEN Primary Transprt,Transport Contracts,Third Party Payments,REVENUE
Wiltshire,http://opendatacommunities.org/id/unitary-authority/wiltshire,12/01/2022,1903088118,1324.8,A2B Taxis Westbury ,149947,BA13,Neighbourhood & Planning,SEN 16+ Transport,Transport Contracts,Third Party Payments,REVENUE
Wiltshire,http://opendatacommunities.org/id/unitary-authority/wiltshire,14/01/2022,1903091538,900,A2B Taxis Westbury ,149947,BA13,Neighbourhood & Planning,SEN Primary Transprt,Transport Contracts,Third Party Payments,REVENUE
Wiltshire,http://opendatacommunities.org/id/unitary-authority/wiltshire,20/01/2022,1903096042,546,AAP Taxis and Private Hire Ltd ,143342,SN10,Neighbourhood & Planning,SEN Secondary Tspt,Transport Contracts,Third Party Payments,REVENUE
Wiltshire,http://opendatacommunities.org/id/unitary-authority/wiltshire,20/01/2022,1903096044,910,AAP Taxis and Private Hire Ltd ,143342,SN10,Neighbourhood & Planning,SEN Secondary Tspt,Transport Contracts,Third Party Payments,REVENUE
Wiltshire,http://opendatacommunities.org/id/unitary-authority/wiltshire,20/01/2022,1903096047,494,AAP Taxis and Private Hire Ltd ,143342,SN10,Neighbourhood & Planning,Mainstream 16+ Sec,Transport Contracts,Third Party Payments,REVENUE
Wiltshire,http://opendatacommunities.org/id/unitary-authority/wiltshire,20/01/2022,1903096047,494,AAP Taxis and Private Hire Ltd ,143342,SN10,Neighbourhood & Planning,SEN 16+ Transport,Transport Contracts,Third Party Payments,REVENUE
Wiltshire,http://opendatacommunities.org/id/unitary-authority/wiltshire,20/01/2022,1903096051,1440,AAP Taxis and Private Hire Ltd ,143342,SN10,Neighbourhood & Planning,SEN Primary Transprt,Transport Contracts,Third Party Payments,REVENUE
Wiltshire,http://opendatacommunities.org/id/unitary-authority/wiltshire,18/01/2022,1903093865,9061.71,AB Learning and Education ,125864,SN8 ,Children & Education,Free Enttlmnt 3 & 4y,Childcare Free Entitlement Early Years,Supplies and Services,REVENUE
Wiltshire,http://opendatacommunities.org/id/unitary-authority/wiltshire,18/01/2022,1903093866,301.4,AB Learning and Education ,125864,SN8 ,Children & Education,Free Entitlement 2 Y,Childcare Free Entitlement Early Years,Supplies and Services,REVENUE
Wiltshire,http://opendatacommunities.org/id/unitary-authority/wiltshire,21/01/2022,1903096958,1000,AB Learning and Education ,125864,SN8 ,Resources,Covid 19 COMF,Nursery / Childminder Fees / Sitting Service,Third Party Payments,REVENUE
Wiltshire,http://opendatacommunities.org/id/unitary-authority/wiltshire,11/01/2022,1903083600,2420,Abbey Taxis (Swindon) Ltd ,100920,SN2 ,Neighbourhood & Planning,SEN 16+ Transport,Transport Contracts,Third Party Payments,REVENUE
Wiltshire,http://opendatacommunities.org/id/unitary-authority/wiltshire,21/01/2022,1903096458,1688,Abbey Taxis (Swindon) Ltd ,100920,SN2 ,Neighbourhood & Planning,SEN Secondary Tspt,Transport Contracts,Third Party Payments,REVENUE
Wiltshire,http://opendatacommunities.org/id/unitary-authority/wiltshire,21/01/2022,1903096463,623.48,Abbey Taxis (Swindon) Ltd ,100920,SN2 ,Neighbourhood & Planning,SEN Primary Transprt,Transport Contracts,Third Party Payments,REVENUE
Wiltshire,http://opendatacommunities.org/id/unitary-authority/wiltshire,21/01/2022,1903096463,1246.96,Abbey Taxis (Swindon) Ltd ,100920,SN2 ,Neighbourhood & Planning,SEN Secondary Tspt,Transport Contracts,Third Party Payments,REVENUE
Wiltshire,http://opendatacommunities.org/id/unitary-authority/wiltshire,21/01/2022,1903096464,1530,Abbey Taxis (Swindon) Ltd ,100920,SN2 ,Community Services,LDAS Placements,Transport Contracts,Third Party Payments,REVENUE
Wiltshire,http://opendatacommunities.org/id/unitary-authority/wiltshire,21/01/2022,1903096471,305.85,Abbey Taxis (Swindon) Ltd ,100920,SN2 ,Neighbourhood & Planning,SEN Primary Transprt,Transport Contracts,Third Party Payments,REVENUE
Wiltshire,http://opendatacommunities.org/id/unitary-authority/wiltshire,21/01/2022,1903096471,1623.35,Abbey Taxis (Swindon) Ltd ,100920,SN2 ,Neighbourhood & Planning,SEN Secondary Tspt,Transport Contracts,Third Party Payments,REVENUE
Wiltshire,http://opendatacommunities.org/id/unitary-authority/wiltshire,21/01/2022,1903096472,606.66,Abbey Taxis (Swindon) Ltd ,100920,SN2 ,Neighbourhood & Planning,SEN Primary Transprt,Transport Contracts,Third Party Payments,REVENUE
Wiltshire,http://opendatacommunities.org/id/unitary-authority/wiltshire,21/01/2022,1903096472,1213.34,Abbey Taxis (Swindon) Ltd ,100920,SN2 ,Neighbourhood & Planning,SEN Secondary Tspt,Transport Contracts,Third Party Payments,REVENUE
Wiltshire,http://opendatacommunities.org/id/unitary-authority/wiltshire,21/01/2022,1903096473,1430,Abbey Taxis (Swindon) Ltd ,100920,SN2 ,Neighbourhood & Planning,Mainstream Secondary,Transport Contracts,Third Party Payments,REVENUE
Wiltshire,http://opendatacommunities.org/id/unitary-authority/wiltshire,21/01/2022,1903096474,728,Abbey Taxis (Swindon) Ltd ,100920,SN2 ,Neighbourhood & Planning,SEN Primary Transprt,Transport Contracts,Third Party Payments,REVENUE
Wiltshire,http://opendatacommunities.org/id/unitary-authority/wiltshire,21/01/2022,1903096474,1092,Abbey Taxis (Swindon) Ltd ,100920,SN2 ,Neighbourhood & Planning,SEN Secondary Tspt,Transport Contracts,Third Party Payments,REVENUE
Wiltshire,http://opendatacommunities.org/id/unitary-authority/wiltshire,21/01/2022,1903096475,1534,Abbey Taxis (Swindon) Ltd ,100920,SN2 ,Neighbourhood & Planning,SEN Secondary Tspt,Transport Contracts,Third Party Payments,REVENUE
Wiltshire,http://opendatacommunities.org/id/unitary-authority/wiltshire,21/01/2022,1903096476,873.59,Abbey Taxis (Swindon) Ltd ,100920,SN2 ,Neighbourhood & Planning,Mainstream Primary,Transport Contracts,Third Party Payments,REVENUE
Wiltshire,http://opendatacommunities.org/id/unitary-authority/wiltshire,21/01/2022,1903096476,946.41,Abbey Taxis (Swindon) Ltd ,100920,SN2 ,Neighbourhood & Planning,SEN Primary Transprt,Transport Contracts,Third Party Payments,REVENUE
Wiltshire,http://opendatacommunities.org/id/unitary-authority/wiltshire,21/01/2022,1903096477,382.22,Abbey Taxis (Swindon) Ltd ,100920,SN2 ,Neighbourhood & Planning,Mainstream Primary,Transport Contracts,Third Party Payments,REVENUE
Wiltshire,http://opendatacommunities.org/id/unitary-authority/wiltshire,21/01/2022,1903096477,1911,Abbey Taxis (Swindon) Ltd ,100920,SN2 ,Neighbourhood & Planning,SEN Primary Transprt,Transport Contracts,Third Party Payments,REVENUE
Wiltshire,http://opendatacommunities.org/id/unitary-authority/wiltshire,21/01/2022,1903096478,2132,Abbey Taxis (Swindon) Ltd ,100920,SN2 ,Neighbourhood & Planning,SEN Secondary Tspt,Transport Contracts,Third Party Payments,REVENUE
Wiltshire,http://opendatacommunities.org/id/unitary-authority/wiltshire,21/01/2022,1903096479,2099.76,Abbey Taxis (Swindon) Ltd ,100920,SN2 ,Neighbourhood & Planning,SEN Secondary Tspt,Transport Contracts,Third Party Payments,REVENUE
Wiltshire,http://opendatacommunities.org/id/unitary-authority/wiltshire,21/01/2022,1903096480,1878.5,Abbey Taxis (Swindon) Ltd ,100920,SN2 ,Neighbourhood & Planning,SEN Secondary Tspt,Transport Contracts,Third Party Payments,REVENUE
Wiltshire,http://opendatacommunities.org/id/unitary-authority/wiltshire,21/01/2022,1903096481,1560,Abbey Taxis (Swindon) Ltd ,100920,SN2 ,Neighbourhood & Planning,SEN Secondary Tspt,Transport Contracts,Third Party Payments,REVENUE
Wiltshire,http://opendatacommunities.org/id/unitary-authority/wiltshire,21/01/2022,1903096482,2922.92,Abbey Taxis (Swindon) Ltd ,100920,SN2 ,Neighbourhood & Planning,SEN Secondary Tspt,Transport Contracts,Third Party Payments,REVENUE
Wiltshire,http://opendatacommunities.org/id/unitary-authority/wiltshire,21/01/2022,1903096483,2602.6,Abbey Taxis (Swindon) Ltd ,100920,SN2 ,Neighbourhood & Planning,SEN Secondary Tspt,Transport Contracts,Third Party Payments,REVENUE
Wiltshire,http://opendatacommunities.org/id/unitary-authority/wiltshire,21/01/2022,1903096484,1690,Abbey Taxis (Swindon) Ltd ,100920,SN2 ,Neighbourhood & Planning,SEN Secondary Tspt,Transport Contracts,Third Party Payments,REVENUE
Wiltshire,http://opendatacommunities.org/id/unitary-authority/wiltshire,21/01/2022,1903096485,3057.6,Abbey Taxis (Swindon) Ltd ,100920,SN2 ,Neighbourhood & Planning,SEN Secondary Tspt,Transport Contracts,Third Party Payments,REVENUE
Wiltshire,http://opendatacommunities.org/id/unitary-authority/wiltshire,21/01/2022,1903096486,1639,Abbey Taxis (Swindon) Ltd ,100920,SN2 ,Neighbourhood & Planning,SEN Primary Transprt,Transport Contracts,Third Party Payments,REVENUE
Wiltshire,http://opendatacommunities.org/id/unitary-authority/wiltshire,21/01/2022,1903096487,1716,Abbey Taxis (Swindon) Ltd ,100920,SN2 ,Neighbourhood & Planning,SEN Secondary Tspt,Transport Contracts,Third Party Payments,REVENUE
Wiltshire,http://opendatacommunities.org/id/unitary-authority/wiltshire,21/01/2022,1903096488,984,Abbey Taxis (Swindon) Ltd ,100920,SN2 ,Neighbourhood & Planning,SEN Secondary Tspt,Transport Contracts,Third Party Payments,REVENUE
Wiltshire,http://opendatacommunities.org/id/unitary-authority/wiltshire,21/01/2022,1903096489,1560,Abbey Taxis (Swindon) Ltd ,100920,SN2 ,Neighbourhood & Planning,SEN Secondary Tspt,Transport Contracts,Third Party Payments,REVENUE
Wiltshire,http://opendatacommunities.org/id/unitary-authority/wiltshire,21/01/2022,1903096490,330,Abbey Taxis (Swindon) Ltd ,100920,SN2 ,Neighbourhood & Planning,SEN 16+ Transport,Transport Contracts,Third Party Payments,REVENUE
Wiltshire,http://opendatacommunities.org/id/unitary-authority/wiltshire,21/01/2022,1903096491,1105,Abbey Taxis (Swindon) Ltd ,100920,SN2 ,Neighbourhood & Planning,SEN 16+ Transport,Transport Contracts,Third Party Payments,REVENUE
Wiltshire,http://opendatacommunities.org/id/unitary-authority/wiltshire,21/01/2022,1903096492,450,Abbey Taxis (Swindon) Ltd ,100920,SN2 ,Neighbourhood & Planning,SEN Secondary Tspt,Transport Contracts,Third Party Payments,REVENUE
Wiltshire,http://opendatacommunities.org/id/unitary-authority/wiltshire,21/01/2022,1903096492,900,Abbey Taxis (Swindon) Ltd ,100920,SN2 ,Neighbourhood & Planning,Mainstream Secondary,Transport Contracts,Third Party Payments,REVENUE
Wiltshire,http://opendatacommunities.org/id/unitary-authority/wiltshire,21/01/2022,1903096493,1286.88,Abbey Taxis (Swindon) Ltd ,100920,SN2 ,Neighbourhood & Planning,SEN Secondary Tspt,Transport Contracts,Third Party Payments,REVENUE
Wiltshire,http://opendatacommunities.org/id/unitary-authority/wiltshire,21/01/2022,1903096494,437.5,Abbey Taxis (Swindon) Ltd ,100920,SN2 ,Neighbourhood & Planning,SEN 16+ Transport,Transport Contracts,Third Party Payments,REVENUE
Wiltshire,http://opendatacommunities.org/id/unitary-authority/wiltshire,21/01/2022,1903096494,1137.5,Abbey Taxis (Swindon) Ltd ,100920,SN2 ,Neighbourhood & Planning,SEN Secondary Tspt,Transport Contracts,Third Party Payments,REVENUE
Wiltshire,http://opendatacommunities.org/id/unitary-authority/wiltshire,21/01/2022,1903096495,988,Abbey Taxis (Swindon) Ltd ,100920,SN2 ,Neighbourhood & Planning,Mainstream Primary,Transport Contracts,Third Party Payments,REVENUE
Wiltshire,http://opendatacommunities.org/id/unitary-authority/wiltshire,21/01/2022,1903096496,1200,Abbey Taxis (Swindon) Ltd ,100920,SN2 ,Neighbourhood & Planning,SEN 16+ Transport,Transport Contracts,Third Party Payments,REVENUE
Wiltshire,http://opendatacommunities.org/id/unitary-authority/wiltshire,21/01/2022,1903096497,1820,Abbey Taxis (Swindon) Ltd ,100920,SN2 ,Neighbourhood & Planning,SEN Primary Transprt,Transport Contracts,Third Party Payments,REVENUE
Wiltshire,http://opendatacommunities.org/id/unitary-authority/wiltshire,21/01/2022,1903096498,1920,Abbey Taxis (Swindon) Ltd ,100920,SN2 ,Neighbourhood & Planning,SEN 16+ Transport,Transport Contracts,Third Party Payments,REVENUE
Wiltshire,http://opendatacommunities.org/id/unitary-authority/wiltshire,21/01/2022,1903096499,1066,Abbey Taxis (Swindon) Ltd ,100920,SN2 ,Neighbourhood & Planning,SEN 16+ Transport,Transport Contracts,Third Party Payments,REVENUE
Wiltshire,http://opendatacommunities.org/id/unitary-authority/wiltshire,21/01/2022,1903096500,693,Abbey Taxis (Swindon) Ltd ,100920,SN2 ,Children & Education,Supp & Safe East,Transport Contracts,Third Party Payments,REVENUE
Wiltshire,http://opendatacommunities.org/id/unitary-authority/wiltshire,05/01/2022,5107446250,257,Abbott Toxicology Ltd ,131373,OX14,Children & Education,Supp & Safe West 2,Pathology Fees,Supplies and Services,REVENUE
Wiltshire,http://opendatacommunities.org/id/unitary-authority/wiltshire,18/01/2022,5107447912,487,Abbott Toxicology Ltd ,131373,OX14,Children & Education,Supp & Safe South,Pathology Fees,Supplies and Services,REVENUE
Wiltshire,http://opendatacommunities.org/id/unitary-authority/wiltshire,25/01/2022,5107448685,365,Abbott Toxicology Ltd ,131373,OX14,Children & Education,HQ Social Care,Pathology Fees,Supplies and Services,REVENUE
Wiltshire,http://opendatacommunities.org/id/unitary-authority/wiltshire,25/01/2022,5107448686,399,Abbott Toxicology Ltd ,131373,OX14,Children & Education,HQ Social Care,Pathology Fees,Supplies and Services,REVENUE
Wiltshire,http://opendatacommunities.org/id/unitary-authority/wiltshire,25/01/2022,5107448687,587,Abbott Toxicology Ltd ,131373,OX14,Children & Education,HQ Social Care,Pathology Fees,Supplies and Services,REVENUE
Wiltshire,http://opendatacommunities.org/id/unitary-authority/wiltshire,18/01/2022,1903093976,13401.67,ABC Day Nursery 1027 ,110028,SN12,Children & Education,Free Enttlmnt 3 & 4y,Childcare Free Entitlement Early Years,Supplies and Services,REVENUE
Wiltshire,http://opendatacommunities.org/id/unitary-authority/wiltshire,18/01/2022,1903093977,904.2,ABC Day Nursery 1027 ,110028,SN12,Children & Education,Free Entitlement 2 Y,Childcare Free Entitlement Early Years,Supplies and Services,REVENUE
Wiltshire,http://opendatacommunities.org/id/unitary-authority/wiltshire,21/01/2022,1903096506,1000,ABC Day Nursery 1027 ,110028,SN12,Resources,Covid 19 COMF,Nursery / Childminder Fees / Sitting Service,Third Party Payments,REVENUE
Wiltshire,http://opendatacommunities.org/id/unitary-authority/wiltshire,18/01/2022,1903094017,10640.75,ABC Nursery ,143051,SN13,Children & Education,Free Enttlmnt 3 & 4y,Childcare Free Entitlement Early Years,Supplies and Services,REVENUE
Wiltshire,http://opendatacommunities.org/id/unitary-authority/wiltshire,18/01/2022,1903094018,3204.89,ABC Nursery ,143051,SN13,Children & Education,Free Entitlement 2 Y,Childcare Free Entitlement Early Years,Supplies and Services,REVENUE
Wiltshire,http://opendatacommunities.org/id/unitary-authority/wiltshire,21/01/2022,1903096915,1000,ABC Nursery ,143051,SN13,Resources,Covid 19 COMF,Nursery / Childminder Fees / Sitting Service,Third Party Payments,REVENUE
Wiltshire,http://opendatacommunities.org/id/unitary-authority/wiltshire,04/01/2022,1903081476,392.6,Abicare Services Ltd Homecare ,110031,SP2 ,Community Services,LDAS Placements,Adult Domiciliary Care Contribution,Income,REVENUE
Wiltshire,http://opendatacommunities.org/id/unitary-authority/wiltshire,04/01/2022,1903081477,1514.94,Abicare Services Ltd Homecare ,110031,SP2 ,Community Services,West Care Packages,Adult Domiciliary Care Contribution,Income,REVENUE
Wiltshire,http://opendatacommunities.org/id/unitary-authority/wiltshire,04/01/2022,1903081478,307.2,Abicare Services Ltd Homecare ,110031,SP2 ,Community Services,West Care Packages,Adult Domiciliary Care Contribution,Income,REVENUE
Wiltshire,http://opendatacommunities.org/id/unitary-authority/wiltshire,04/01/2022,1903081479,1117.76,Abicare Services Ltd Homecare ,110031,SP2 ,Community Services,MH AOWA West Localit,Adult Domiciliary Care,Third Party Payments,REVENUE
Wiltshire,http://opendatacommunities.org/id/unitary-authority/wiltshire,04/01/2022,1903081480,1423.44,Abicare Services Ltd Homecare ,110031,SP2 ,Community Services,West Care Packages,Adult Domiciliary Care,Third Party Payments,REVENUE
Wiltshire,http://opendatacommunities.org/id/unitary-authority/wiltshire,04/01/2022,1903081481,908.18,Abicare Services Ltd Homecare ,110031,SP2 ,Community Services,West Care Packages,Adult Domiciliary Care,Third Party Payments,REVENUE
Wiltshire,http://opendatacommunities.org/id/unitary-authority/wiltshire,04/01/2022,1903081482,329.72,Abicare Services Ltd Homecare ,110031,SP2 ,Community Services,West Care Packages,Adult Domiciliary Care Contribution,Income,REVENUE
Wiltshire,http://opendatacommunities.org/id/unitary-authority/wiltshire,04/01/2022,1903081483,1679.81,Abicare Services Ltd Homecare ,110031,SP2 ,Community Services,LDAS Placements,Adult Domiciliary Care Contribution,Income,REVENUE
Wiltshire,http://opendatacommunities.org/id/unitary-authority/wiltshire,04/01/2022,1903081484,1732.05,Abicare Services Ltd Homecare ,110031,SP2 ,Community Services,MH OP South Locality,Adult Domiciliary Care,Third Party Payments,REVENUE
Wiltshire,http://opendatacommunities.org/id/unitary-authority/wiltshire,04/01/2022,1903081485,1082.24,Abicare Services Ltd Homecare ,110031,SP2 ,Community Services,South Care Packages,Adult Domiciliary Care Contribution,Income,REVENUE
Wiltshire,http://opendatacommunities.org/id/unitary-authority/wiltshire,06/01/2022,1903082767,1589.36,Abicare Services Ltd Homecare ,110031,SP2 ,Community Services,LDAS Placements,Adult Domiciliary Care Contribution,Income,REVENUE
Wiltshire,http://opendatacommunities.org/id/unitary-authority/wiltshire,06/01/2022,1903082768,1751.8,Abicare Services Ltd Homecare ,110031,SP2 ,Community Services,MH OP South Locality,Adult Domiciliary Care,Third Party Payments,REVENUE
Wiltshire,http://opendatacommunities.org/id/unitary-authority/wiltshire,06/01/2022,1903082769,792.91,Abicare Services Ltd Homecare ,110031,SP2 ,Community Services,South Care Packages,Adult Domiciliary Care Contribution,Income,REVENUE
Wiltshire,http://opendatacommunities.org/id/unitary-authority/wiltshire,21/01/2022,1903096321,1050.84,Abicare Services Ltd Homecare ,110031,SP2 ,Community Services,South Care Packages,Adult Domiciliary Care Contribution,Income,REVENUE
Wiltshire,http://opendatacommunities.org/id/unitary-authority/wiltshire,28/01/2022,1903100570,2502.93,Abicare Services Ltd Homecare ,110031,SP2 ,Community Services,South Care Packages,Adult Domiciliary Care Contribution,Income,REVENUE
Wiltshire,http://opendatacommunities.org/id/unitary-authority/wiltshire,28/01/2022,1903100571,252.96,Abicare Services Ltd Homecare ,110031,SP2 ,Community Services,South Care Packages,Adult Domiciliary Care,Third Party Payments,REVENUE
Wiltshire,http://opendatacommunities.org/id/unitary-authority/wiltshire,31/01/2022,1903101379,251.9,Abicare Services Ltd Homecare ,110031,SP2 ,Resources,Covid19 - Hospital D,Adult Domiciliary Care,Third Party Payments,REVENUE
Wiltshire,http://opendatacommunities.org/id/unitary-authority/wiltshire,31/01/2022,1903101380,980.12,Abicare Services Ltd Homecare ,110031,SP2 ,Community Services,West Care Packages,Adult Domiciliary Care Contribution,Income,REVENUE
Wiltshire,http://opendatacommunities.org/id/unitary-authority/wiltshire,31/01/2022,1903101381,1535.92,Abicare Services Ltd Homecare ,110031,SP2 ,Community Services,West Care Packages,Adult Domiciliary Care Contribution,Income,REVENUE
Wiltshire,http://opendatacommunities.org/id/unitary-authority/wiltshire,31/01/2022,1903101382,252,Abicare Services Ltd Homecare ,110031,SP2 ,Community Services,West Care Packages,Adult Domiciliary Care Contribution,Income,REVENUE
Wiltshire,http://opendatacommunities.org/id/unitary-authority/wiltshire,31/01/2022,1903101383,307.2,Abicare Services Ltd Homecare ,110031,SP2 ,Community Services,West Care Packages,Adult Domiciliary Care Contribution,Income,REVENUE
Wiltshire,http://opendatacommunities.org/id/unitary-authority/wiltshire,31/01/2022,1903101384,1117.76,Abicare Services Ltd Homecare ,110031,SP2 ,Community Services,MH AOWA West Localit,Adult Domiciliary Care,Third Party Payments,REVENUE
Wiltshire,http://opendatacommunities.org/id/unitary-authority/wiltshire,31/01/2022,1903101385,2312.08,Abicare Services Ltd Homecare ,110031,SP2 ,Community Services,West Care Packages,Adult Domiciliary Care,Third Party Payments,REVENUE
Wiltshire,http://opendatacommunities.org/id/unitary-authority/wiltshire,31/01/2022,1903101386,1435.48,Abicare Services Ltd Homecare ,110031,SP2 ,Community Services,West Care Packages,Adult Domiciliary Care,Third Party Payments,REVENUE
Wiltshire,http://opendatacommunities.org/id/unitary-authority/wiltshire,31/01/2022,1903101387,1117.76,Abicare Services Ltd Homecare ,110031,SP2 ,Community Services,MH AOWA West Localit,Adult Domiciliary Care,Third Party Payments,REVENUE
Wiltshire,http://opendatacommunities.org/id/unitary-authority/wiltshire,31/01/2022,1903101389,317.68,Abicare Services Ltd Homecare ,110031,SP2 ,Community Services,West Care Packages,Adult Domiciliary Care Contribution,Income,REVENUE
Wiltshire,http://opendatacommunities.org/id/unitary-authority/wiltshire,31/01/2022,1903101390,595.16,Abicare Services Ltd Homecare ,110031,SP2 ,Community Services,West Care Packages,Adult Domiciliary Care Contribution,Income,REVENUE
Wiltshire,http://opendatacommunities.org/id/unitary-authority/wiltshire,31/01/2022,1903101391,567.84,Abicare Services Ltd Homecare ,110031,SP2 ,Community Services,South Care Packages,Adult Domiciliary Care,Third Party Payments,REVENUE
Wiltshire,http://opendatacommunities.org/id/unitary-authority/wiltshire,31/01/2022,1903101392,1191.36,Abicare Services Ltd Homecare ,110031,SP2 ,Community Services,South Care Packages,Adult Domiciliary Care Contribution,Income,REVENUE
Wiltshire,http://opendatacommunities.org/id/unitary-authority/wiltshire,31/01/2022,1903101393,428.46,Abicare Services Ltd Homecare ,110031,SP2 ,Community Services,South Care Packages,Adult Domiciliary Care,Third Party Payments,REVENUE
Wiltshire,http://opendatacommunities.org/id/unitary-authority/wiltshire,31/01/2022,1903101394,1699.56,Abicare Services Ltd Homecare ,110031,SP2 ,Community Services,LDAS Placements,Adult Domiciliary Care Contribution,Income,REVENUE
Wiltshire,http://opendatacommunities.org/id/unitary-authority/wiltshire,31/01/2022,1903101397,415.5,Abicare Services Ltd Homecare ,110031,SP2 ,Community Services,LDAS Placements,Adult Domiciliary Care Contribution,Income,REVENUE
Wiltshire,http://opendatacommunities.org/id/unitary-authority/wiltshire,31/01/2022,1903101398,1741.8,Abicare Services Ltd Homecare ,110031,SP2 ,Community Services,MH OP South Locality,Adult Domiciliary Care,Third Party Payments,REVENUE
Wiltshire,http://opendatacommunities.org/id/unitary-authority/wiltshire,31/01/2022,1903101399,1045.72,Abicare Services Ltd Homecare ,110031,SP2 ,Community Services,South Care Packages,Adult Domiciliary Care,Third Party Payments,REVENUE
Wiltshire,http://opendatacommunities.org/id/unitary-authority/wiltshire,31/01/2022,1903101401,681.44,Abicare Services Ltd Homecare ,110031,SP2 ,Community Services,South Care Packages,Adult Domiciliary Care Contribution,Income,REVENUE
Wiltshire,http://opendatacommunities.org/id/unitary-authority/wiltshire,31/01/2022,1903101402,457.17,Abicare Services Ltd Homecare ,110031,SP2 ,Community Services,South Care Packages,Adult Domiciliary Care,Third Party Payments,REVENUE
Wiltshire,http://opendatacommunities.org/id/unitary-authority/wiltshire,31/01/2022,1903101403,2222.5,Abicare Services Ltd Homecare ,110031,SP2 ,Community Services,North Care Packages,Adult Domiciliary Care,Third Party Payments,REVENUE
Wiltshire,http://opendatacommunities.org/id/unitary-authority/wiltshire,14/01/2022,1903091546,971.28,Abicare Services Ltd Live in Care. ,113071,SP2 ,Community Services,North Care Packages,Adult Domiciliary Care Contribution,Income,REVENUE
Wiltshire,http://opendatacommunities.org/id/unitary-authority/wiltshire,14/01/2022,1903091547,3885.12,Abicare Services Ltd Live in Care. ,113071,SP2 ,Community Services,North Care Packages,Adult Domiciliary Care Contribution,Income,REVENUE
Wiltshire,http://opendatacommunities.org/id/unitary-authority/wiltshire,14/01/2022,1903091548,3885.12,Abicare Services Ltd Live in Care. ,113071,SP2 ,Community Services,North Care Packages,Adult Domiciliary Care Contribution,Income,REVENUE
Wiltshire,http://opendatacommunities.org/id/unitary-authority/wiltshire,14/01/2022,1903091549,3885.12,Abicare Services Ltd Live in Care. ,113071,SP2 ,Community Services,North Care Packages,Adult Domiciliary Care Contribution,Income,REVENUE
Wiltshire,http://opendatacommunities.org/id/unitary-authority/wiltshire,14/01/2022,1903091550,3885.12,Abicare Services Ltd Live in Care. ,113071,SP2 ,Community Services,North Care Packages,Adult Domiciliary Care Contribution,Income,REVENUE
Wiltshire,http://opendatacommunities.org/id/unitary-authority/wiltshire,20/01/2022,1903096194,3885.12,Abicare Services Ltd Live in Care. ,113071,SP2 ,Community Services,North Care Packages,Adult Domiciliary Care Contribution,Income,REVENUE
Wiltshire,http://opendatacommunities.org/id/unitary-authority/wiltshire,20/01/2022,1903096195,3885.12,Abicare Services Ltd Live in Care. ,113071,SP2 ,Community Services,North Care Packages,Adult Domiciliary Care Contribution,Income,REVENUE
Wiltshire,http://opendatacommunities.org/id/unitary-authority/wiltshire,28/01/2022,1903100586,3628.24,Abicare Services Ltd Live in Care. ,113071,SP2 ,Community Services,MH AOWA West Localit,Adult Domiciliary Care,Third Party Payments,REVENUE
Wiltshire,http://opendatacommunities.org/id/unitary-authority/wiltshire,28/01/2022,1903100587,3885.12,Abicare Services Ltd Live in Care. ,113071,SP2 ,Community Services,North Care Packages,Adult Domiciliary Care Contribution,Income,REVENUE
Wiltshire,http://opendatacommunities.org/id/unitary-authority/wiltshire,28/01/2022,1903100602,3010.48,Abicare Services Ltd Live in Care. ,113071,SP2 ,Community Services,West Care Packages,Adult Domiciliary Care Contribution,Income,REVENUE
Wiltshire,http://opendatacommunities.org/id/unitary-authority/wiltshire,28/01/2022,1903100603,3555,Abicare Services Ltd Live in Care. ,113071,SP2 ,Community Services,West Care Packages,Adult Domiciliary Care Contribution,Income,REVENUE
Wiltshire,http://opendatacommunities.org/id/unitary-authority/wiltshire,28/01/2022,1903100604,3820.88,Abicare Services Ltd Live in Care. ,113071,SP2 ,Community Services,MH OP West Locality,Adult Domiciliary Care,Third Party Payments,REVENUE
Wiltshire,http://opendatacommunities.org/id/unitary-authority/wiltshire,28/01/2022,1903100605,3861.8,Abicare Services Ltd Live in Care. ,113071,SP2 ,Community Services,South Care Packages,Adult Domiciliary Care Contribution,Income,REVENUE
Wiltshire,http://opendatacommunities.org/id/unitary-authority/wiltshire,28/01/2022,1903100606,3628.24,Abicare Services Ltd Live in Care. ,113071,SP2 ,Community Services,South Care Packages,Adult Domiciliary Care,Third Party Payments,REVENUE
Wiltshire,http://opendatacommunities.org/id/unitary-authority/wiltshire,28/01/2022,1903100607,3820.88,Abicare Services Ltd Live in Care. ,113071,SP2 ,Community Services,West Care Packages,Adult Domiciliary Care,Third Party Payments,REVENUE
Wiltshire,http://opendatacommunities.org/id/unitary-authority/wiltshire,28/01/2022,1903100608,2923,Abicare Services Ltd Live in Care. ,113071,SP2 ,Resources,Covid19 - Hospital D,Adult Domiciliary Care,Third Party Payments,REVENUE
Wiltshire,http://opendatacommunities.org/id/unitary-authority/wiltshire,19/01/2022,1903089292,375.96,ABLE ,101029,BA14,Community Services,West Care Packages,Supported Living,Third Party Payments,REVENUE
Wiltshire,http://opendatacommunities.org/id/unitary-authority/wiltshire,19/01/2022,1903089293,563.92,ABLE ,101029,BA14,Community Services,MH AOWA N&E Locality,Supported Living,Third Party Payments,REVENUE
Wiltshire,http://opendatacommunities.org/id/unitary-authority/wiltshire,19/01/2022,1903089294,375.96,ABLE ,101029,BA14,Community Services,MH AOWA N&E Locality,Supported Living,Third Party Payments,REVENUE
Wiltshire,http://opendatacommunities.org/id/unitary-authority/wiltshire,19/01/2022,1903089295,639.12,ABLE ,101029,BA14,Community Services,MH AOWA N&E Locality,Supported Living,Third Party Payments,REVENUE
Wiltshire,http://opendatacommunities.org/id/unitary-authority/wiltshire,19/01/2022,1903089296,639.12,ABLE ,101029,BA14,Community Services,MH AOWA N&E Locality,Supported Living,Third Party Payments,REVENUE
Wiltshire,http://opendatacommunities.org/id/unitary-authority/wiltshire,19/01/2022,1903089298,375.96,ABLE ,101029,BA14,Community Services,MH AOWA West Localit,Supported Living,Third Party Payments,REVENUE
Wiltshire,http://opendatacommunities.org/id/unitary-authority/wiltshire,19/01/2022,1903089299,375.96,ABLE ,101029,BA14,Community Services,MH AOWA West Localit,Supported Living,Third Party Payments,REVENUE
Wiltshire,http://opendatacommunities.org/id/unitary-authority/wiltshire,19/01/2022,1903089300,375.96,ABLE ,101029,BA14,Community Services,MH AOWA West Localit,Supported Living,Third Party Payments,REVENUE
Wiltshire,http://opendatacommunities.org/id/unitary-authority/wiltshire,19/01/2022,1903089301,296.32,ABLE ,101029,BA14,Community Services,MH OP West Locality,Supported Living,Third Party Payments,REVENUE
Wiltshire,http://opendatacommunities.org/id/unitary-authority/wiltshire,19/01/2022,1903089302,333.36,ABLE ,101029,BA14,Community Services,MH AOWA West Localit,Supported Living,Third Party Payments,REVENUE
Wiltshire,http://opendatacommunities.org/id/unitary-authority/wiltshire,19/01/2022,1903089303,444.48,ABLE ,101029,BA14,Community Services,MH AOWA West Localit,Supported Living,Third Party Payments,REVENUE
Wiltshire,http://opendatacommunities.org/id/unitary-authority/wiltshire,19/01/2022,1903095494,3705.76,ABLE ,110034,BA14,Community Services,MH OP West Locality,Adult Residential Placements - Spot Purchase,Third Party Payments,REVENUE
Wiltshire,http://opendatacommunities.org/id/unitary-authority/wiltshire,19/01/2022,1903095495,3705.76,ABLE ,110034,BA14,Community Services,MH AOWA N&E Locality,Adult Residential Placements - Spot Purchase,Third Party Payments,REVENUE
Wiltshire,http://opendatacommunities.org/id/unitary-authority/wiltshire,19/01/2022,1903095496,3705.76,ABLE ,110034,BA14,Community Services,MH AOWA West Localit,Adult Residential Placements - Spot Purchase,Third Party Payments,REVENUE
Wiltshire,http://opendatacommunities.org/id/unitary-authority/wiltshire,19/01/2022,1903095497,3705.76,ABLE ,110034,BA14,Community Services,MH AOWA West Localit,Adult Residential Placements - Spot Purchase,Third Party Payments,REVENUE
Wiltshire,http://opendatacommunities.org/id/unitary-authority/wiltshire,07/01/2022,1903082976,720,Able Hands Together CIC ,144783,SP11,Community Services,LDAS Placements,Adult Day Care Contracts,Third Party Payments,REVENUE
Wiltshire,http://opendatacommunities.org/id/unitary-authority/wiltshire,07/01/2022,1903082977,480,Able Hands Together CIC ,144783,SP11,Community Services,LDAS Placements,Adult Day Care Contracts,Third Party Payments,REVENUE
Wiltshire,http://opendatacommunities.org/id/unitary-authority/wiltshire,07/01/2022,1903082979,720,Able Hands Together CIC ,144783,SP11,Community Services,LDAS Placements,Adult Day Care Contracts,Third Party Payments,REVENUE
Wiltshire,http://opendatacommunities.org/id/unitary-authority/wiltshire,07/01/2022,1903082980,1200,Able Hands Together CIC ,144783,SP11,Community Services,LDAS Placements,Adult Day Care Contracts,Third Party Payments,REVENUE
Wiltshire,http://opendatacommunities.org/id/unitary-authority/wiltshire,07/01/2022,1903082984,480,Able Hands Together CIC ,144783,SP11,Community Services,LDAS Placements,Adult Day Care - Spot Income Contribution,Income,REVENUE
Wiltshire,http://opendatacommunities.org/id/unitary-authority/wiltshire,07/01/2022,1903082985,720,Able Hands Together CIC ,144783,SP11,Community Services,LDAS Placements,Adult Day Care Contracts,Third Party Payments,REVENUE
Wiltshire,http://opendatacommunities.org/id/unitary-authority/wiltshire,14/01/2022,1903091551,900,Able Hands Together CIC ,144783,SP11,Community Services,LDAS Placements,Adult Day Care Contracts,Third Party Payments,REVENUE
Wiltshire,http://opendatacommunities.org/id/unitary-authority/wiltshire,14/01/2022,1903091552,600,Able Hands Together CIC ,144783,SP11,Community Services,LDAS Placements,Adult Day Care Contracts,Third Party Payments,REVENUE
Wiltshire,http://opendatacommunities.org/id/unitary-authority/wiltshire,14/01/2022,1903091553,300,Able Hands Together CIC ,144783,SP11,Community Services,LDAS Placements,Adult Day Care - Spot Income Contribution,Income,REVENUE
Wiltshire,http://opendatacommunities.org/id/unitary-authority/wiltshire,14/01/2022,1903091554,900,Able Hands Together CIC ,144783,SP11,Community Services,LDAS Placements,Adult Day Care Contracts,Third Party Payments,REVENUE
Wiltshire,http://opendatacommunities.org/id/unitary-authority/wiltshire,14/01/2022,1903091555,1500,Able Hands Together CIC ,144783,SP11,Community Services,LDAS Placements,Adult Day Care Contracts,Third Party Payments,REVENUE
Wiltshire,http://opendatacommunities.org/id/unitary-authority/wiltshire,14/01/2022,1903091556,300,Able Hands Together CIC ,144783,SP11,Community Services,LDAS Placements,Adult Day Care Contracts,Third Party Payments,REVENUE
Wiltshire,http://opendatacommunities.org/id/unitary-authority/wiltshire,14/01/2022,1903091558,306,Able Hands Together CIC ,144783,SP11,Community Services,LDAS Placements,Adult Day Care - Spot Income Contribution,Income,REVENUE
Wiltshire,http://opendatacommunities.org/id/unitary-authority/wiltshire,14/01/2022,1903091559,600,Able Hands Together CIC ,144783,SP11,Community Services,LDAS Placements,Adult Day Care - Spot Income Contribution,Income,REVENUE
Wiltshire,http://opendatacommunities.org/id/unitary-authority/wiltshire,14/01/2022,1903091560,900,Able Hands Together CIC ,144783,SP11,Community Services,LDAS Placements,Adult Day Care Contracts,Third Party Payments,REVENUE
Wiltshire,http://opendatacommunities.org/id/unitary-authority/wiltshire,14/01/2022,1903091561,540,Able Hands Together CIC ,144783,SP11,Community Services,LDAS Placements,Adult Day Care - Spot Income Contribution,Income,REVENUE
Wiltshire,http://opendatacommunities.org/id/unitary-authority/wiltshire,14/01/2022,1903091562,540,Able Hands Together CIC ,144783,SP11,Community Services,LDAS Placements,Adult Day Care Contracts,Third Party Payments,REVENUE
Wiltshire,http://opendatacommunities.org/id/unitary-authority/wiltshire,14/01/2022,1903091563,1080,Able Hands Together CIC ,144783,SP11,Community Services,LDAS Placements,Adult Day Care Contracts,Third Party Payments,REVENUE
Wiltshire,http://opendatacommunities.org/id/unitary-authority/wiltshire,14/01/2022,1903091564,540,Able Hands Together CIC ,144783,SP11,Community Services,LDAS Placements,Adult Day Care Contracts,Third Party Payments,REVENUE
Wiltshire,http://opendatacommunities.org/id/unitary-authority/wiltshire,14/01/2022,1903091565,1080,Able Hands Together CIC ,144783,SP11,Community Services,LDAS Placements,Adult Day Care - Spot Income Contribution,Income,REVENUE
Wiltshire,http://opendatacommunities.org/id/unitary-authority/wiltshire,14/01/2022,1903091566,1080,Able Hands Together CIC ,144783,SP11,Community Services,LDAS Placements,Adult Day Care Contracts,Third Party Payments,REVENUE
Wiltshire,http://opendatacommunities.org/id/unitary-authority/wiltshire,28/01/2022,1903100593,540,Able Hands Together CIC ,144783,SP11,Community Services,LDAS Placements,Adult Day Care Contracts,Third Party Payments,REVENUE
Wiltshire,http://opendatacommunities.org/id/unitary-authority/wiltshire,28/01/2022,1903100594,1020,Able Hands Together CIC ,144783,SP11,Community Services,LDAS Placements,Adult Day Care Contracts,Third Party Payments,REVENUE
Wiltshire,http://opendatacommunities.org/id/unitary-authority/wiltshire,28/01/2022,1903100595,900,Able Hands Together CIC ,144783,SP11,Community Services,LDAS Placements,Adult Day Care Contracts,Third Party Payments,REVENUE
Wiltshire,http://opendatacommunities.org/id/unitary-authority/wiltshire,28/01/2022,1903100596,300,Able Hands Together CIC ,144783,SP11,Community Services,LDAS Placements,Adult Day Care Contracts,Third Party Payments,REVENUE
Wiltshire,http://opendatacommunities.org/id/unitary-authority/wiltshire,28/01/2022,1903100597,720,Able Hands Together CIC ,144783,SP11,Community Services,LDAS Placements,Adult Day Care Contracts,Third Party Payments,REVENUE
Wiltshire,http://opendatacommunities.org/id/unitary-authority/wiltshire,31/01/2022,1903101409,1700.8,Abney & Baker (Bath) Ltd ,146229,BA2 ,Community Services,West Care Packages,Adult Domiciliary Care Contribution,Income,REVENUE
Wiltshire,http://opendatacommunities.org/id/unitary-authority/wiltshire,31/01/2022,1903101410,1132.63,Abney & Baker (Bath) Ltd ,146229,BA2 ,Community Services,North Care Packages,Adult Domiciliary Care,Third Party Payments,REVENUE
Wiltshire,http://opendatacommunities.org/id/unitary-authority/wiltshire,31/01/2022,1903101411,1832.44,Abney & Baker (Bath) Ltd ,146229,BA2 ,Community Services,West Care Packages,Adult Domiciliary Care Contribution,Income,REVENUE
Wiltshire,http://opendatacommunities.org/id/unitary-authority/wiltshire,31/01/2022,1903101412,1764.73,Abney & Baker (Bath) Ltd ,146229,BA2 ,Community Services,West Care Packages,Adult Domiciliary Care Contribution,Income,REVENUE
Wiltshire,http://opendatacommunities.org/id/unitary-authority/wiltshire,31/01/2022,1903101413,1505.25,Abney & Baker (Bath) Ltd ,146229,BA2 ,Community Services,West Care Packages,Adult Domiciliary Care Contribution,Income,REVENUE
Wiltshire,http://opendatacommunities.org/id/unitary-authority/wiltshire,31/01/2022,1903101414,482.71,Abney & Baker (Bath) Ltd ,146229,BA2 ,Community Services,MH OP West Locality,Adult Domiciliary Care Contribution,Income,REVENUE
Wiltshire,http://opendatacommunities.org/id/unitary-authority/wiltshire,31/01/2022,1903101415,2251.1,Abney & Baker (Bath) Ltd ,146229,BA2 ,Community Services,West Care Packages,Adult Domiciliary Care Contribution,Income,REVENUE
Wiltshire,http://opendatacommunities.org/id/unitary-authority/wiltshire,31/01/2022,1903101416,1956.21,Abney & Baker (Bath) Ltd ,146229,BA2 ,Community Services,West Care Packages,Adult Domiciliary Care Contribution,Income,REVENUE
Wiltshire,http://opendatacommunities.org/id/unitary-authority/wiltshire,31/01/2022,1903101417,2068.28,Abney & Baker (Bath) Ltd ,146229,BA2 ,Community Services,West Care Packages,Adult Domiciliary Care Contribution,Income,REVENUE
Wiltshire,http://opendatacommunities.org/id/unitary-authority/wiltshire,31/01/2022,1903101418,925.84,Abney & Baker (Bath) Ltd ,146229,BA2 ,Community Services,West Care Packages,Adult Domiciliary Care,Third Party Payments,REVENUE
Wiltshire,http://opendatacommunities.org/id/unitary-authority/wiltshire,31/01/2022,1903101419,1872.29,Abney & Baker (Bath) Ltd ,146229,BA2 ,Community Services,West Care Packages,Adult Domiciliary Care,Third Party Payments,REVENUE
Wiltshire,http://opendatacommunities.org/id/unitary-authority/wiltshire,31/01/2022,1903101420,682.55,Abney & Baker (Bath) Ltd ,146229,BA2 ,Community Services,West Care Packages,Adult Domiciliary Care Contribution,Income,REVENUE
Wiltshire,http://opendatacommunities.org/id/unitary-authority/wiltshire,31/01/2022,1903101421,1057.97,Abney & Baker (Bath) Ltd ,146229,BA2 ,Community Services,West Care Packages,Adult Domiciliary Care Contribution,Income,REVENUE
Wiltshire,http://opendatacommunities.org/id/unitary-authority/wiltshire,31/01/2022,1903101422,558.92,Abney & Baker (Bath) Ltd ,146229,BA2 ,Community Services,West Care Packages,Adult Domiciliary Care,Third Party Payments,REVENUE
Wiltshire,http://opendatacommunities.org/id/unitary-authority/wiltshire,19/01/2022,1903092388,2414.72,Acacia London Residential Healthcar ,147333,KT6 ,Community Services,North Care Packages,Adult Care Nursing Placements - Spot,Third Party Payments,REVENUE
Wiltshire,http://opendatacommunities.org/id/unitary-authority/wiltshire,21/01/2022,1903096018,2148.62,Access UK Limited ,128203,CT1 ,Community Services,In-House Reablement,Software Maintenance,Supplies and Services,REVENUE
Wiltshire,http://opendatacommunities.org/id/unitary-authority/wiltshire,19/01/2022,1903092007,8266,Accomplish Group Limited ,112775,B45 ,Community Services,LDAS Placements,Adult Residential Placements - Spot Purchase,Third Party Payments,REVENUE
Wiltshire,http://opendatacommunities.org/id/unitary-authority/wiltshire,19/01/2022,1903092008,7775.04,Accomplish Group Limited ,112775,B45 ,Community Services,LDAS Placements,Adult Residential Placements - Spot Purchase,Third Party Payments,REVENUE
Wiltshire,http://opendatacommunities.org/id/unitary-authority/wiltshire,19/01/2022,1903092009,6172.68,Accomplish Group Limited ,112775,B45 ,Community Services,LDAS Placements,Adult Residential Placements - Spot Purchase,Third Party Payments,REVENUE
Wiltshire,http://opendatacommunities.org/id/unitary-authority/wiltshire,19/01/2022,1903092010,6740,Accomplish Group Limited ,112775,B45 ,Community Services,MH AOWA N&E Locality,Adult Residential Placements - Spot Purchase,Third Party Payments,REVENUE
Wiltshire,http://opendatacommunities.org/id/unitary-authority/wiltshire,12/01/2022,1903088127,384.3,Ace Cabs ,139613,SP4 ,Community Services,MH AOWA South Locali,Transport Contracts,Third Party Payments,REVENUE
Wiltshire,http://opendatacommunities.org/id/unitary-authority/wiltshire,12/01/2022,1903088093,1603.94,Ace Taxis Warminster Ace Taxis,131208,BA12,Neighbourhood & Planning,SEN Secondary Tspt,Transport Contracts,Third Party Payments,REVENUE
Wiltshire,http://opendatacommunities.org/id/unitary-authority/wiltshire,12/01/2022,1903088099,1439.76,Ace Taxis Warminster Ace Taxis,131208,BA12,Neighbourhood & Planning,SEN 16+ Transport,Transport Contracts,Third Party Payments,REVENUE
Wiltshire,http://opendatacommunities.org/id/unitary-authority/wiltshire,10/01/2022,1903083202,4752,Acer Tree Surgeons Ltd ,113296,BA13,Children & Education,SC Dev Co. Dev Costs,Stone Circle VAT,Capital charges and Expenditure,REVENUE
Wiltshire,http://opendatacommunities.org/id/unitary-authority/wiltshire,28/01/2022,1903100708,1920,Acer Tree Surgeons Ltd ,113296,BA13,Children & Education,SC Dev Co. Dev Costs,Stone Circle VAT,Capital charges and Expenditure,REVENUE
Wiltshire,http://opendatacommunities.org/id/unitary-authority/wiltshire,26/01/2022,5107448724,1840,Acer Tree Surgeons Ltd ,113296,BA13,Neighbourhood & Planning,Rights of Way,Grounds Maintenance,Premises Related,REVENUE
Wiltshire,http://opendatacommunities.org/id/unitary-authority/wiltshire,19/01/2022,1903089329,15330,Achieve Together ,110312,KT22,Community Services,LDAS Placements,Supported Living,Third Party Payments,REVENUE
Wiltshire,http://opendatacommunities.org/id/unitary-authority/wiltshire,19/01/2022,1903089330,3669.76,Achieve Together ,110312,KT22,Community Services,West Care Packages,Supported Living,Third Party Payments,REVENUE
Wiltshire,http://opendatacommunities.org/id/unitary-authority/wiltshire,19/01/2022,1903089331,4118.32,Achieve Together ,110312,KT22,Community Services,MH AOWA West Localit,Supported Living,Third Party Payments,REVENUE
Wiltshire,http://opendatacommunities.org/id/unitary-authority/wiltshire,19/01/2022,1903095531,14442.6,Achieve Together ,110312,KT22,Community Services,LDAS Placements,Adult Residential Placements - Spot Purchase,Third Party Payments,REVENUE
Wiltshire,http://opendatacommunities.org/id/unitary-authority/wiltshire,19/01/2022,1903095532,13209,Achieve Together ,110312,KT22,Community Services,LDAS Placements,Adult Residential Placements - Spot Purchase,Third Party Payments,REVENUE
Wiltshire,http://opendatacommunities.org/id/unitary-authority/wiltshire,19/01/2022,1903095533,11785.24,Achieve Together ,110312,KT22,Community Services,LDAS Placements,Adult Residential Placements - Spot Purchase,Third Party Payments,REVENUE
Wiltshire,http://opendatacommunities.org/id/unitary-authority/wiltshire,19/01/2022,1903095534,13452,Achieve Together ,110312,KT22,Community Services,LDAS Placements,Adult Residential Placements - Spot Purchase,Third Party Payments,REVENUE
Wiltshire,http://opendatacommunities.org/id/unitary-authority/wiltshire,19/01/2022,1903095535,13507.88,Achieve Together ,110312,KT22,Community Services,LDAS Placements,Adult Residential Placements - Spot Purchase,Third Party Payments,REVENUE
Wiltshire,http://opendatacommunities.org/id/unitary-authority/wiltshire,19/01/2022,1903095536,11333.32,Achieve Together ,110312,KT22,Community Services,LDAS Placements,Adult Residential Placements - Spot Purchase,Third Party Payments,REVENUE
Wiltshire,http://opendatacommunities.org/id/unitary-authority/wiltshire,19/01/2022,1903095537,12206.32,Achieve Together ,110312,KT22,Community Services,LDAS Placements,Adult Residential Placements - Spot Purchase,Third Party Payments,REVENUE
Wiltshire,http://opendatacommunities.org/id/unitary-authority/wiltshire,19/01/2022,1903095538,13844.96,Achieve Together ,110312,KT22,Community Services,LDAS Placements,Adult Residential Placements - Spot Purchase,Third Party Payments,REVENUE
Wiltshire,http://opendatacommunities.org/id/unitary-authority/wiltshire,19/01/2022,1903095539,16041.28,Achieve Together ,110312,KT22,Community Services,LDAS Placements,Adult Residential Placements - Spot Purchase,Third Party Payments,REVENUE
Wiltshire,http://opendatacommunities.org/id/unitary-authority/wiltshire,19/01/2022,1903095540,8564.12,Achieve Together ,110312,KT22,Community Services,LDAS Placements,Adult Residential Placements - Spot Purchase,Third Party Payments,REVENUE
Wiltshire,http://opendatacommunities.org/id/unitary-authority/wiltshire,19/01/2022,1903095541,8673.68,Achieve Together ,110312,KT22,Community Services,LDAS Placements,Adult Residential Placements - Spot Purchase,Third Party Payments,REVENUE
Wiltshire,http://opendatacommunities.org/id/unitary-authority/wiltshire,19/01/2022,1903095542,12884.92,Achieve Together ,110312,KT22,Community Services,LDAS Placements,Adult Residential Placements - Spot Purchase,Third Party Payments,REVENUE
Wiltshire,http://opendatacommunities.org/id/unitary-authority/wiltshire,19/01/2022,1903095543,15316.24,Achieve Together ,110312,KT22,Community Services,LDAS Placements,Adult Residential Placements - Spot Purchase,Third Party Payments,REVENUE
Wiltshire,http://opendatacommunities.org/id/unitary-authority/wiltshire,19/01/2022,1903095544,13469.24,Achieve Together ,110312,KT22,Community Services,LDAS Placements,Adult Residential Placements - Spot Purchase,Third Party Payments,REVENUE
Wiltshire,http://opendatacommunities.org/id/unitary-authority/wiltshire,19/01/2022,1903095545,13137,Achieve Together ,110312,KT22,Community Services,LDAS Placements,Adult Residential Placements - Spot Purchase,Third Party Payments,REVENUE
Wiltshire,http://opendatacommunities.org/id/unitary-authority/wiltshire,19/01/2022,1903095546,12985.56,Achieve Together ,110312,KT22,Community Services,LDAS Placements,Adult Residential Placements - Spot Purchase,Third Party Payments,REVENUE
Wiltshire,http://opendatacommunities.org/id/unitary-authority/wiltshire,19/01/2022,1903095547,12642.68,Achieve Together ,110312,KT22,Community Services,LDAS Placements,Adult Residential Placements - Spot Purchase,Third Party Payments,REVENUE
Wiltshire,http://opendatacommunities.org/id/unitary-authority/wiltshire,19/01/2022,1903095548,11832.16,Achieve Together ,110312,KT22,Community Services,LDAS Placements,Adult Residential Placements - Spot Purchase,Third Party Payments,REVENUE
Wiltshire,http://opendatacommunities.org/id/unitary-authority/wiltshire,19/01/2022,1903095549,13418.6,Achieve Together ,110312,KT22,Community Services,LDAS Placements,Adult Residential Placements - Spot Purchase,Third Party Payments,REVENUE
Wiltshire,http://opendatacommunities.org/id/unitary-authority/wiltshire,19/01/2022,1903095550,10536.64,Achieve Together ,110312,KT22,Community Services,LDAS Placements,Adult Residential Placements - Spot Purchase,Third Party Payments,REVENUE
Wiltshire,http://opendatacommunities.org/id/unitary-authority/wiltshire,13/01/2022,5107447648,6007.72,Acivico (Building Consultancy) Ltd ,150745,B1 2,Neighbourhood & Planning,Building Control Asp,Consultants Fees,Supplies and Services,REVENUE
Wiltshire,http://opendatacommunities.org/id/unitary-authority/wiltshire,25/01/2022,5107448530,21569.36,Acorn Care and Education Ltd ,149457,BL1 ,Children & Education,External Residential,Childrens Agency Placement,Third Party Payments,REVENUE
Wiltshire,http://opendatacommunities.org/id/unitary-authority/wiltshire,18/01/2022,1903094135,4441.25,Acorn Education Trust - New Close ,148417,BA12,Children & Education,Free Enttlmnt 3 & 4y,Childcare Free Entitlement Early Years,Supplies and Services,REVENUE
Wiltshire,http://opendatacommunities.org/id/unitary-authority/wiltshire,21/01/2022,1903096508,500,Acorn Education Trust - New Close ,148417,BA12,Resources,Covid 19 COMF,Nursery / Childminder Fees / Sitting Service,Third Party Payments,REVENUE
Wiltshire,http://opendatacommunities.org/id/unitary-authority/wiltshire,25/01/2022,5107448682,6850.74,Action for the River Kennet (ARK) ,153377,SN8 ,Neighbourhood & Planning,Green Recovery Chall,Grants Expenditure,Supplies and Services,REVENUE
Wiltshire,http://opendatacommunities.org/id/unitary-authority/wiltshire,05/01/2022,5107446302,345.94,Adams Morey Ltd ,110053,SP2 ,Neighbourhood & Planning,Fleet,Vehicle Repairs & Maintenance,Transport Related,REVENUE
Wiltshire,http://opendatacommunities.org/id/unitary-authority/wiltshire,07/01/2022,1903083067,3459.58,AD-RAINS Limited ,100848,SN15,Neighbourhood & Planning,Mainstream Primary,Transport Contracts,Third Party Payments,REVENUE
Wiltshire,http://opendatacommunities.org/id/unitary-authority/wiltshire,07/01/2022,1903083068,3577.26,AD-RAINS Limited ,100848,SN15,Neighbourhood & Planning,Mainstream Secondary,Transport Contracts,Third Party Payments,REVENUE
Wiltshire,http://opendatacommunities.org/id/unitary-authority/wiltshire,07/01/2022,1903083069,3353.42,AD-RAINS Limited ,100848,SN15,Neighbourhood & Planning,Mainstream Secondary,Transport Contracts,Third Party Payments,REVENUE
Wiltshire,http://opendatacommunities.org/id/unitary-authority/wiltshire,07/01/2022,1903083071,3186.53,AD-RAINS Limited ,100848,SN15,Neighbourhood & Planning,Mainstream Secondary,Transport Contracts,Third Party Payments,REVENUE
Wiltshire,http://opendatacommunities.org/id/unitary-authority/wiltshire,07/01/2022,1903083070,1755,Adrian Shephard Taxi Service ,146753,BA12,Neighbourhood & Planning,SEN Primary Transprt,Transport Contracts,Third Party Payments,REVENUE
Wiltshire,http://opendatacommunities.org/id/unitary-authority/wiltshire,06/01/2022,1903082366,791.16,Adrian's Taxi ,138861,SN10,Neighbourhood & Planning,Mainstream Primary,Transport Contracts,Third Party Payments,REVENUE
Wiltshire,http://opendatacommunities.org/id/unitary-authority/wiltshire,06/01/2022,1903082366,1054.84,Adrian's Taxi ,138861,SN10,Neighbourhood & Planning,SEN Secondary Tspt,Transport Contracts,Third Party Payments,REVENUE
Wiltshire,http://opendatacommunities.org/id/unitary-authority/wiltshire,25/01/2022,1903097395,4738.71,Advance Housing  and  Support Ltd ,110060,OX28,Neighbourhood & Planning,Rough Sleepers,Grants Expenditure,Supplies and Services,REVENUE
Wiltshire,http://opendatacommunities.org/id/unitary-authority/wiltshire,21/01/2022,1903096451,300,Ad-World ,153982,BH4 ,Resources,CastledownBusinessPa,Marketing and Promotions,Supplies and Services,REVENUE
Wiltshire,http://opendatacommunities.org/id/unitary-authority/wiltshire,27/01/2022,5107448968,8000,AECOM Limited ,150413,E1 8,Health & Wellbeing,SpecialistEnvirProt,Consumer Protection-Measurement Equipment,Supplies and Services,REVENUE
Wiltshire,http://opendatacommunities.org/id/unitary-authority/wiltshire,19/01/2022,1903089549,2000.16,Agincare Enable Ltd ,150043,DT5 ,Community Services,LDAS Placements,Supported Living,Third Party Payments,REVENUE
Wiltshire,http://opendatacommunities.org/id/unitary-authority/wiltshire,04/01/2022,1903081253,7957.6,AginCare Live In Care Services Ltd ,110071,DT5 ,Community Services,MH AOWA South Locali,Adult Domiciliary Care,Third Party Payments,REVENUE
Wiltshire,http://opendatacommunities.org/id/unitary-authority/wiltshire,12/01/2022,1903088251,7957.6,AginCare Live In Care Services Ltd ,110071,DT5 ,Community Services,MH AOWA South Locali,Adult Domiciliary Care,Third Party Payments,REVENUE
Wiltshire,http://opendatacommunities.org/id/unitary-authority/wiltshire,19/01/2022,1903089323,592.76,Agincare Ltd ,110069,DT5 ,Community Services,LDAS Placements,Supported Living,Third Party Payments,REVENUE
Wiltshire,http://opendatacommunities.org/id/unitary-authority/wiltshire,19/01/2022,1903089326,518.56,Agincare Ltd ,110069,DT5 ,Community Services,MH AOWA West Localit,Supported Living,Third Party Payments,REVENUE
Wiltshire,http://opendatacommunities.org/id/unitary-authority/wiltshire,17/01/2022,1903092672,1243.04,Agincare Ltd ,110069,DT5 ,Community Services,MH AOWA N&E Locality,Adult Domiciliary Care,Third Party Payments,REVENUE
Wiltshire,http://opendatacommunities.org/id/unitary-authority/wiltshire,17/01/2022,1903092673,492.16,Agincare Ltd ,110069,DT5 ,Community Services,North Care Packages,Adult Domiciliary Care,Third Party Payments,REVENUE
Wiltshire,http://opendatacommunities.org/id/unitary-authority/wiltshire,07/01/2022,5107447088,395,Airia Compressed Air Solutions ,140960,SO51,Community Services,Conservation&Museums,Equipment Maintenance,Supplies and Services,REVENUE
Wiltshire,http://opendatacommunities.org/id/unitary-authority/wiltshire,10/01/2022,1903083370,2177.16,Akcess Ltd ,101402,SN2 ,Neighbourhood & Planning,Mainstream Primary,Transport Contracts,Third Party Payments,REVENUE
Wiltshire,http://opendatacommunities.org/id/unitary-authority/wiltshire,10/01/2022,1903083371,2666.67,Akcess Ltd ,101402,SN2 ,Neighbourhood & Planning,Mainstream Secondary,Transport Contracts,Third Party Payments,REVENUE
Wiltshire,http://opendatacommunities.org/id/unitary-authority/wiltshire,10/01/2022,1903083372,1195.09,Akcess Ltd ,101402,SN2 ,Neighbourhood & Planning,Mainstream Primary,Transport Contracts,Third Party Payments,REVENUE
Wiltshire,http://opendatacommunities.org/id/unitary-authority/wiltshire,10/01/2022,1903083373,1274,Akcess Ltd ,101402,SN2 ,Neighbourhood & Planning,Mainstream Primary,Transport Contracts,Third Party Payments,REVENUE
Wiltshire,http://opendatacommunities.org/id/unitary-authority/wiltshire,10/01/2022,1903083374,1195.38,Akcess Ltd ,101402,SN2 ,Community Services,LDAS Placements,Transport Contracts,Third Party Payments,REVENUE
Wiltshire,http://opendatacommunities.org/id/unitary-authority/wiltshire,10/01/2022,1903083374,1912.62,Akcess Ltd ,101402,SN2 ,Community Services,West Care Packages,Transport Contracts,Third Party Payments,REVENUE
Wiltshire,http://opendatacommunities.org/id/unitary-authority/wiltshire,10/01/2022,1903083375,12300.6,Akcess Ltd ,101402,SN2 ,Neighbourhood & Planning,SEN Secondary Tspt,Transport Contracts,Third Party Payments,REVENUE
Wiltshire,http://opendatacommunities.org/id/unitary-authority/wiltshire,10/01/2022,1903083376,2275,Akcess Ltd ,101402,SN2 ,Neighbourhood & Planning,SEN Secondary Tspt,Transport Contracts,Third Party Payments,REVENUE
Wiltshire,http://opendatacommunities.org/id/unitary-authority/wiltshire,10/01/2022,1903083377,2216,Akcess Ltd ,101402,SN2 ,Neighbourhood & Planning,Mainstream Primary,Transport Contracts,Third Party Payments,REVENUE
Wiltshire,http://opendatacommunities.org/id/unitary-authority/wiltshire,10/01/2022,1903083378,2723.33,Akcess Ltd ,101402,SN2 ,Neighbourhood & Planning,Mainstream Secondary,Transport Contracts,Third Party Payments,REVENUE
Wiltshire,http://opendatacommunities.org/id/unitary-authority/wiltshire,10/01/2022,1903083379,2375,Akcess Ltd ,101402,SN2 ,Neighbourhood & Planning,Mainstream Secondary,Transport Contracts,Third Party Payments,REVENUE
Wiltshire,http://opendatacommunities.org/id/unitary-authority/wiltshire,10/01/2022,1903083381,3920,Akcess Ltd ,101402,SN2 ,Community Services,Afghan Resettleme,Transport Contracts,Third Party Payments,REVENUE
Wiltshire,http://opendatacommunities.org/id/unitary-authority/wiltshire,10/01/2022,1903083382,2860,Akcess Ltd ,101402,SN2 ,Neighbourhood & Planning,Mainstream Primary,Transport Contracts,Third Party Payments,REVENUE
Wiltshire,http://opendatacommunities.org/id/unitary-authority/wiltshire,12/01/2022,1903087996,280,Alabare Christian Care Centre ,100837,SP2 ,Community Services,MH AOWA South Locali,Adult Day Care Contracts,Third Party Payments,REVENUE
Wiltshire,http://opendatacommunities.org/id/unitary-authority/wiltshire,12/01/2022,1903088000,400,Alabare Christian Care Centre ,100837,SP2 ,Community Services,South Care Packages,Adult Day Care Contracts,Third Party Payments,REVENUE
Wiltshire,http://opendatacommunities.org/id/unitary-authority/wiltshire,19/01/2022,1903089160,2365.68,Alabare Christian Care Centre ,100837,SP2 ,Community Services,LDAS Placements,Supported Living,Third Party Payments,REVENUE
Wiltshire,http://opendatacommunities.org/id/unitary-authority/wiltshire,19/01/2022,1903089161,3743.64,Alabare Christian Care Centre ,100837,SP2 ,Community Services,LDAS Placements,Supported Living,Third Party Payments,REVENUE
Wiltshire,http://opendatacommunities.org/id/unitary-authority/wiltshire,19/01/2022,1903089162,1798.68,Alabare Christian Care Centre ,100837,SP2 ,Community Services,LDAS Placements,Supported Living,Third Party Payments,REVENUE
Wiltshire,http://opendatacommunities.org/id/unitary-authority/wiltshire,19/01/2022,1903089163,2064.2,Alabare Christian Care Centre ,100837,SP2 ,Community Services,LDAS Placements,Supported Living,Third Party Payments,REVENUE
Wiltshire,http://opendatacommunities.org/id/unitary-authority/wiltshire,19/01/2022,1903089165,592.76,Alabare Christian Care Centre ,100837,SP2 ,Community Services,LDAS Placements,Supported Living,Third Party Payments,REVENUE
Wiltshire,http://opendatacommunities.org/id/unitary-authority/wiltshire,19/01/2022,1903089169,778,Alabare Christian Care Centre ,100837,SP2 ,Community Services,LDAS Placements,Supported Living,Third Party Payments,REVENUE
Wiltshire,http://opendatacommunities.org/id/unitary-authority/wiltshire,19/01/2022,1903089170,759.32,Alabare Christian Care Centre ,100837,SP2 ,Community Services,LDAS Placements,Supported Living,Third Party Payments,REVENUE
Wiltshire,http://opendatacommunities.org/id/unitary-authority/wiltshire,19/01/2022,1903089171,2654.4,Alabare Christian Care Centre ,100837,SP2 ,Community Services,LDAS Placements,Supported Living,Third Party Payments,REVENUE
Wiltshire,http://opendatacommunities.org/id/unitary-authority/wiltshire,19/01/2022,1903089172,1370.48,Alabare Christian Care Centre ,100837,SP2 ,Community Services,LDAS Placements,Supported Living,Third Party Payments,REVENUE
Wiltshire,http://opendatacommunities.org/id/unitary-authority/wiltshire,19/01/2022,1903089173,2695.48,Alabare Christian Care Centre ,100837,SP2 ,Community Services,LDAS Placements,Supported Living,Third Party Payments,REVENUE
Wiltshire,http://opendatacommunities.org/id/unitary-authority/wiltshire,19/01/2022,1903089174,3726.52,Alabare Christian Care Centre ,100837,SP2 ,Community Services,LDAS Placements,Supported Living,Third Party Payments,REVENUE
Wiltshire,http://opendatacommunities.org/id/unitary-authority/wiltshire,19/01/2022,1903089175,3738.8,Alabare Christian Care Centre ,100837,SP2 ,Community Services,LDAS Placements,Supported Living,Third Party Payments,REVENUE
Wiltshire,http://opendatacommunities.org/id/unitary-authority/wiltshire,19/01/2022,1903089176,8771.08,Alabare Christian Care Centre ,100837,SP2 ,Community Services,LDAS Placements,Supported Living,Third Party Payments,REVENUE
Wiltshire,http://opendatacommunities.org/id/unitary-authority/wiltshire,19/01/2022,1903089177,1074.16,Alabare Christian Care Centre ,100837,SP2 ,Community Services,LDAS Placements,Supported Living,Third Party Payments,REVENUE
Wiltshire,http://opendatacommunities.org/id/unitary-authority/wiltshire,19/01/2022,1903089178,3646.2,Alabare Christian Care Centre ,100837,SP2 ,Community Services,LDAS Placements,Supported Living,Third Party Payments,REVENUE
Wiltshire,http://opendatacommunities.org/id/unitary-authority/wiltshire,19/01/2022,1903089179,2465.52,Alabare Christian Care Centre ,100837,SP2 ,Community Services,LDAS Placements,Supported Living,Third Party Payments,REVENUE
Wiltshire,http://opendatacommunities.org/id/unitary-authority/wiltshire,19/01/2022,1903089180,3089,Alabare Christian Care Centre ,100837,SP2 ,Community Services,LDAS Placements,Supported Living,Third Party Payments,REVENUE
Wiltshire,http://opendatacommunities.org/id/unitary-authority/wiltshire,19/01/2022,1903089181,2539.6,Alabare Christian Care Centre ,100837,SP2 ,Community Services,LDAS Placements,Supported Living,Third Party Payments,REVENUE
Wiltshire,http://opendatacommunities.org/id/unitary-authority/wiltshire,19/01/2022,1903089182,2477.84,Alabare Christian Care Centre ,100837,SP2 ,Community Services,LDAS Placements,Supported Living,Third Party Payments,REVENUE
Wiltshire,http://opendatacommunities.org/id/unitary-authority/wiltshire,19/01/2022,1903089183,3263.44,Alabare Christian Care Centre ,100837,SP2 ,Community Services,LDAS Placements,Supported Living,Third Party Payments,REVENUE
Wiltshire,http://opendatacommunities.org/id/unitary-authority/wiltshire,19/01/2022,1903089184,2926.16,Alabare Christian Care Centre ,100837,SP2 ,Community Services,LDAS Placements,Supported Living,Third Party Payments,REVENUE
Wiltshire,http://opendatacommunities.org/id/unitary-authority/wiltshire,19/01/2022,1903089185,2508.76,Alabare Christian Care Centre ,100837,SP2 ,Community Services,LDAS Placements,Supported Living,Third Party Payments,REVENUE
Wiltshire,http://opendatacommunities.org/id/unitary-authority/wiltshire,19/01/2022,1903089186,2360.56,Alabare Christian Care Centre ,100837,SP2 ,Community Services,LDAS Placements,Supported Living,Third Party Payments,REVENUE
Wiltshire,http://opendatacommunities.org/id/unitary-authority/wiltshire,19/01/2022,1903089187,1778.28,Alabare Christian Care Centre ,100837,SP2 ,Community Services,LDAS Placements,Supported Living,Third Party Payments,REVENUE
Wiltshire,http://opendatacommunities.org/id/unitary-authority/wiltshire,19/01/2022,1903089188,2342.04,Alabare Christian Care Centre ,100837,SP2 ,Community Services,LDAS Placements,Supported Living,Third Party Payments,REVENUE
Wiltshire,http://opendatacommunities.org/id/unitary-authority/wiltshire,19/01/2022,1903089189,526.32,Alabare Christian Care Centre ,100837,SP2 ,Community Services,LDAS Placements,Supported Living,Third Party Payments,REVENUE
Wiltshire,http://opendatacommunities.org/id/unitary-authority/wiltshire,19/01/2022,1903089190,1382.96,Alabare Christian Care Centre ,100837,SP2 ,Community Services,LDAS Placements,Supported Living,Third Party Payments,REVENUE
Wiltshire,http://opendatacommunities.org/id/unitary-authority/wiltshire,19/01/2022,1903089191,2560.04,Alabare Christian Care Centre ,100837,SP2 ,Community Services,LDAS Placements,Supported Living,Third Party Payments,REVENUE
Wiltshire,http://opendatacommunities.org/id/unitary-authority/wiltshire,19/01/2022,1903089192,5931.36,Alabare Christian Care Centre ,100837,SP2 ,Community Services,South Care Packages,Supported Living,Third Party Payments,REVENUE
Wiltshire,http://opendatacommunities.org/id/unitary-authority/wiltshire,19/01/2022,1903089193,666.84,Alabare Christian Care Centre ,100837,SP2 ,Community Services,South Care Packages,Supported Living,Third Party Payments,REVENUE
Wiltshire,http://opendatacommunities.org/id/unitary-authority/wiltshire,19/01/2022,1903089195,815.04,Alabare Christian Care Centre ,100837,SP2 ,Community Services,MH AOWA South Locali,Supported Living,Third Party Payments,REVENUE
Wiltshire,http://opendatacommunities.org/id/unitary-authority/wiltshire,19/01/2022,1903089197,444.48,Alabare Christian Care Centre ,100837,SP2 ,Community Services,MH AOWA South Locali,Supported Living,Third Party Payments,REVENUE
Wiltshire,http://opendatacommunities.org/id/unitary-authority/wiltshire,19/01/2022,1903089198,370.4,Alabare Christian Care Centre ,100837,SP2 ,Community Services,MH AOWA South Locali,Supported Living,Third Party Payments,REVENUE
Wiltshire,http://opendatacommunities.org/id/unitary-authority/wiltshire,19/01/2022,1903089200,518.56,Alabare Christian Care Centre ,100837,SP2 ,Community Services,MH AOWA South Locali,Supported Living,Third Party Payments,REVENUE
Wiltshire,http://opendatacommunities.org/id/unitary-authority/wiltshire,19/01/2022,1903089201,407.44,Alabare Christian Care Centre ,100837,SP2 ,Community Services,Adult Care Gross Loa,Supported Living,Third Party Payments,REVENUE
Wiltshire,http://opendatacommunities.org/id/unitary-authority/wiltshire,19/01/2022,1903089202,408.2,Alabare Christian Care Centre ,100837,SP2 ,Community Services,LDAS Placements,Supported Living Contribution,Income,REVENUE
Wiltshire,http://opendatacommunities.org/id/unitary-authority/wiltshire,19/01/2022,1903089203,761.79,Alabare Christian Care Centre ,100837,SP2 ,Community Services,LDAS Placements,Supported Living,Third Party Payments,REVENUE
Wiltshire,http://opendatacommunities.org/id/unitary-authority/wiltshire,19/01/2022,1903089204,790,Alabare Christian Care Centre ,100837,SP2 ,Community Services,LDAS Placements,Supported Living,Third Party Payments,REVENUE
Wiltshire,http://opendatacommunities.org/id/unitary-authority/wiltshire,19/01/2022,1903089210,761.79,Alabare Christian Care Centre ,100837,SP2 ,Community Services,LDAS Placements,Supported Living,Third Party Payments,REVENUE
Wiltshire,http://opendatacommunities.org/id/unitary-authority/wiltshire,19/01/2022,1903089211,904.85,Alabare Christian Care Centre ,100837,SP2 ,Community Services,LDAS Placements,Supported Living,Third Party Payments,REVENUE
Wiltshire,http://opendatacommunities.org/id/unitary-authority/wiltshire,19/01/2022,1903089213,790,Alabare Christian Care Centre ,100837,SP2 ,Community Services,LDAS Placements,Supported Living,Third Party Payments,REVENUE
Wiltshire,http://opendatacommunities.org/id/unitary-authority/wiltshire,19/01/2022,1903089214,938.36,Alabare Christian Care Centre ,100837,SP2 ,Community Services,LDAS Placements,Supported Living,Third Party Payments,REVENUE
Wiltshire,http://opendatacommunities.org/id/unitary-authority/wiltshire,19/01/2022,1903089215,296.32,Alabare Christian Care Centre ,100837,SP2 ,Community Services,LDAS Placements,Supported Living,Third Party Payments,REVENUE
Wiltshire,http://opendatacommunities.org/id/unitary-authority/wiltshire,19/01/2022,1903089219,370.4,Alabare Christian Care Centre ,100837,SP2 ,Community Services,LDAS Placements,Supported Living,Third Party Payments,REVENUE
Wiltshire,http://opendatacommunities.org/id/unitary-authority/wiltshire,04/01/2022,5107446725,145099.76,Alabare Christian Care Centre ,100837,SP2 ,Neighbourhood & Planning,Hsg Strat & Enabling,Other Contracts,Third Party Payments,REVENUE
Wiltshire,http://opendatacommunities.org/id/unitary-authority/wiltshire,04/01/2022,5107446726,38613.12,Alabare Christian Care Centre ,100837,SP2 ,Neighbourhood & Planning,Hsg Strat & Enabling,Other Contracts,Third Party Payments,REVENUE
Wiltshire,http://opendatacommunities.org/id/unitary-authority/wiltshire,26/01/2022,5107448675,3315.02,Alabare Christian Care Centre ,100837,SP2 ,Children & Education,16-25 Supp & Accom,Childrens Agency Placement,Third Party Payments,REVENUE
Wiltshire,http://opendatacommunities.org/id/unitary-authority/wiltshire,26/01/2022,5107448677,4936.1,Alabare Christian Care Centre ,100837,SP2 ,Children & Education,16-25 Supp & Accom,Childrens Agency Placement,Third Party Payments,REVENUE
Wiltshire,http://opendatacommunities.org/id/unitary-authority/wiltshire,26/01/2022,5107448678,1605.52,Alabare Christian Care Centre ,100837,SP2 ,Children & Education,16-25 Supp & Accom,Childrens Agency Placement,Third Party Payments,REVENUE
Wiltshire,http://opendatacommunities.org/id/unitary-authority/wiltshire,26/01/2022,5107448792,2939.97,Alabare Christian Care Centre ,100837,SP2 ,Children & Education,16-25 Supp & Accom,Childrens Agency Placement,Third Party Payments,REVENUE
Wiltshire,http://opendatacommunities.org/id/unitary-authority/wiltshire,26/01/2022,5107448793,4485.88,Alabare Christian Care Centre ,100837,SP2 ,Children & Education,16-25 Supp & Accom,Childrens Agency Placement,Third Party Payments,REVENUE
Wiltshire,http://opendatacommunities.org/id/unitary-authority/wiltshire,26/01/2022,5107448794,4793.51,Alabare Christian Care Centre ,100837,SP2 ,Children & Education,16-25 Supp & Accom,Childrens Agency Placement,Third Party Payments,REVENUE
Wiltshire,http://opendatacommunities.org/id/unitary-authority/wiltshire,26/01/2022,5107448795,434.12,Alabare Christian Care Centre ,100837,SP2 ,Children & Education,16-25 Supp & Accom,Childrens Agency Placement,Third Party Payments,REVENUE
Wiltshire,http://opendatacommunities.org/id/unitary-authority/wiltshire,26/01/2022,5107448796,3769.09,Alabare Christian Care Centre ,100837,SP2 ,Children & Education,16-25 Supp & Accom,Childrens Agency Placement,Third Party Payments,REVENUE
Wiltshire,http://opendatacommunities.org/id/unitary-authority/wiltshire,26/01/2022,5107448797,4157.69,Alabare Christian Care Centre ,100837,SP2 ,Children & Education,16-25 Supp & Accom,Childrens Agency Placement,Third Party Payments,REVENUE
Wiltshire,http://opendatacommunities.org/id/unitary-authority/wiltshire,26/01/2022,5107448798,3617.98,Alabare Christian Care Centre ,100837,SP2 ,Children & Education,16-25 Supp & Accom,Childrens Agency Placement,Third Party Payments,REVENUE
Wiltshire,http://opendatacommunities.org/id/unitary-authority/wiltshire,26/01/2022,5107448800,811.67,Alabare Christian Care Centre ,100837,SP2 ,Children & Education,16-25 Supp & Accom,Other Social & Welfare Costs,Third Party Payments,REVENUE
Wiltshire,http://opendatacommunities.org/id/unitary-authority/wiltshire,25/01/2022,1903097404,839.56,Alan Moon & Associates Ltd ,154024,SP5 ,Wiltshire Council,Wiltshire Council,Other Contracts,Third Party Payments,CAPITAL
Wiltshire,http://opendatacommunities.org/id/unitary-authority/wiltshire,14/01/2022,5107446974,4320,Albion Computers PLC ,153628,WC2R,Children & Education,Wilt Music Connct Hb,ICT - Support arrangements,Supplies and Services,REVENUE
Wiltshire,http://opendatacommunities.org/id/unitary-authority/wiltshire,19/01/2022,1903095498,3533.6,Aldbourne Nursing Home ,110090,SN8 ,Community Services,North Care Packages,Adult Care Nursing Placements - Spot,Third Party Payments,REVENUE
Wiltshire,http://opendatacommunities.org/id/unitary-authority/wiltshire,19/01/2022,1903095499,3753.6,Aldbourne Nursing Home ,110090,SN8 ,Community Services,North Care Packages,Adult Care Nursing Placements - Spot,Third Party Payments,REVENUE
Wiltshire,http://opendatacommunities.org/id/unitary-authority/wiltshire,24/01/2022,1903097379,8658.07,Aldbourne Nursing Home ,110090,SN8 ,Resources,Inf Cont & Testing R,Grants Expenditure,Supplies and Services,REVENUE
Wiltshire,http://opendatacommunities.org/id/unitary-authority/wiltshire,24/01/2022,1903097380,695.66,Aldbourne Nursing Home ,110090,SN8 ,Resources,Inf Cont & Testing R,Grants Expenditure,Supplies and Services,REVENUE
Wiltshire,http://opendatacommunities.org/id/unitary-authority/wiltshire,24/01/2022,1903097381,5827.01,Aldbourne Nursing Home ,110090,SN8 ,Resources,Inf Cont & Testing R,Grants Expenditure,Supplies and Services,REVENUE
Wiltshire,http://opendatacommunities.org/id/unitary-authority/wiltshire,19/01/2022,1903090619,2500,ALder Meadow Ltd ,153442,GL4 ,Community Services,North Care Packages,Adult Residential Placements - Spot Purchase,Third Party Payments,REVENUE
Wiltshire,http://opendatacommunities.org/id/unitary-authority/wiltshire,19/01/2022,1903089129,6237.48,Alexandra Homes (Bristol) Ltd ,131787,BS15,Community Services,LDAS Placements,Adult Residential Placements - Spot Purchase,Third Party Payments,REVENUE
Wiltshire,http://opendatacommunities.org/id/unitary-authority/wiltshire,04/01/2022,1903081504,336.39,Alina Homecare - Disabilty Support ,139903,BH12,Community Services,LDAS Placements,Adult Domiciliary Care Contribution,Income,REVENUE
Wiltshire,http://opendatacommunities.org/id/unitary-authority/wiltshire,04/01/2022,1903081507,904.4,Alina Homecare - Disabilty Support ,139903,BH12,Community Services,South Care Packages,Adult Domiciliary Care Contribution,Income,REVENUE
Wiltshire,http://opendatacommunities.org/id/unitary-authority/wiltshire,04/01/2022,1903081508,6154.21,Alina Homecare - Disabilty Support ,139903,BH12,Community Services,MH AOWA South Locali,Adult Domiciliary Care,Third Party Payments,REVENUE
Wiltshire,http://opendatacommunities.org/id/unitary-authority/wiltshire,04/01/2022,1903081509,316.16,Alina Homecare - Disabilty Support ,139903,BH12,Community Services,South Care Packages,Adult Domiciliary Care Contribution,Income,REVENUE
Wiltshire,http://opendatacommunities.org/id/unitary-authority/wiltshire,04/01/2022,1903081510,918.79,Alina Homecare - Disabilty Support ,139903,BH12,Community Services,South Care Packages,Adult Domiciliary Care,Third Party Payments,REVENUE
Wiltshire,http://opendatacommunities.org/id/unitary-authority/wiltshire,04/01/2022,1903081513,548.01,Alina Homecare - Disabilty Support ,139903,BH12,Community Services,South Care Packages,Adult Domiciliary Care Contribution,Income,REVENUE
Wiltshire,http://opendatacommunities.org/id/unitary-authority/wiltshire,04/01/2022,1903081515,910.05,Alina Homecare - Disabilty Support ,139903,BH12,Community Services,South Care Packages,Adult Domiciliary Care,Third Party Payments,REVENUE
Wiltshire,http://opendatacommunities.org/id/unitary-authority/wiltshire,04/01/2022,1903081516,328.32,Alina Homecare - Disabilty Support ,139903,BH12,Community Services,South Care Packages,Adult Domiciliary Care,Third Party Payments,REVENUE
Wiltshire,http://opendatacommunities.org/id/unitary-authority/wiltshire,04/01/2022,1903081517,439.4,Alina Homecare - Disabilty Support ,139903,BH12,Community Services,South Care Packages,Adult Domiciliary Care,Third Party Payments,REVENUE
Wiltshire,http://opendatacommunities.org/id/unitary-authority/wiltshire,04/01/2022,1903081518,1081.21,Alina Homecare - Disabilty Support ,139903,BH12,Community Services,West Care Packages,Adult Domiciliary Care Contribution,Income,REVENUE
Wiltshire,http://opendatacommunities.org/id/unitary-authority/wiltshire,04/01/2022,1903081519,1303.33,Alina Homecare - Disabilty Support ,139903,BH12,Community Services,West Care Packages,Adult Domiciliary Care Contribution,Income,REVENUE
Wiltshire,http://opendatacommunities.org/id/unitary-authority/wiltshire,04/01/2022,1903081521,663.19,Alina Homecare - Disabilty Support ,139903,BH12,Community Services,West Care Packages,Adult Domiciliary Care,Third Party Payments,REVENUE
Wiltshire,http://opendatacommunities.org/id/unitary-authority/wiltshire,04/01/2022,1903081523,1077.3,Alina Homecare - Disabilty Support ,139903,BH12,Community Services,West Care Packages,Adult Domiciliary Care,Third Party Payments,REVENUE
Wiltshire,http://opendatacommunities.org/id/unitary-authority/wiltshire,04/01/2022,1903081524,866.53,Alina Homecare - Disabilty Support ,139903,BH12,Community Services,MH OP West Locality,Adult Domiciliary Care,Third Party Payments,REVENUE
Wiltshire,http://opendatacommunities.org/id/unitary-authority/wiltshire,04/01/2022,1903081525,1389.32,Alina Homecare - Disabilty Support ,139903,BH12,Community Services,West Care Packages,Adult Domiciliary Care,Third Party Payments,REVENUE
Wiltshire,http://opendatacommunities.org/id/unitary-authority/wiltshire,19/01/2022,1903089463,4535.88,Alina Homecare - Disabilty Support ,139903,BH12,Community Services,LDAS Placements,Supported Living,Third Party Payments,REVENUE
Wiltshire,http://opendatacommunities.org/id/unitary-authority/wiltshire,19/01/2022,1903089464,4041.92,Alina Homecare - Disabilty Support ,139903,BH12,Community Services,LDAS Placements,Supported Living,Third Party Payments,REVENUE
Wiltshire,http://opendatacommunities.org/id/unitary-authority/wiltshire,19/01/2022,1903089465,3967.84,Alina Homecare - Disabilty Support ,139903,BH12,Community Services,LDAS Placements,Supported Living,Third Party Payments,REVENUE
Wiltshire,http://opendatacommunities.org/id/unitary-authority/wiltshire,19/01/2022,1903089466,3597.36,Alina Homecare - Disabilty Support ,139903,BH12,Community Services,LDAS Placements,Supported Living,Third Party Payments,REVENUE
Wiltshire,http://opendatacommunities.org/id/unitary-authority/wiltshire,19/01/2022,1903089467,4926.76,Alina Homecare - Disabilty Support ,139903,BH12,Community Services,LDAS Placements,Supported Living,Third Party Payments,REVENUE
Wiltshire,http://opendatacommunities.org/id/unitary-authority/wiltshire,19/01/2022,1903089468,4535.88,Alina Homecare - Disabilty Support ,139903,BH12,Community Services,LDAS Placements,Supported Living,Third Party Payments,REVENUE
Wiltshire,http://opendatacommunities.org/id/unitary-authority/wiltshire,19/01/2022,1903089469,6469.84,Alina Homecare - Disabilty Support ,139903,BH12,Community Services,LDAS Placements,Supported Living,Third Party Payments,REVENUE
Wiltshire,http://opendatacommunities.org/id/unitary-authority/wiltshire,19/01/2022,1903089470,16697.32,Alina Homecare - Disabilty Support ,139903,BH12,Community Services,LDAS Placements,Supported Living,Third Party Payments,REVENUE
Wiltshire,http://opendatacommunities.org/id/unitary-authority/wiltshire,19/01/2022,1903089471,2419.96,Alina Homecare - Disabilty Support ,139903,BH12,Community Services,LDAS Placements,Supported Living,Third Party Payments,REVENUE
Wiltshire,http://opendatacommunities.org/id/unitary-authority/wiltshire,19/01/2022,1903089472,2049.56,Alina Homecare - Disabilty Support ,139903,BH12,Community Services,LDAS Placements,Supported Living,Third Party Payments,REVENUE
Wiltshire,http://opendatacommunities.org/id/unitary-authority/wiltshire,19/01/2022,1903089474,2074.24,Alina Homecare - Disabilty Support ,139903,BH12,Community Services,LDAS Placements,Supported Living,Third Party Payments,REVENUE
Wiltshire,http://opendatacommunities.org/id/unitary-authority/wiltshire,19/01/2022,1903089475,11507.4,Alina Homecare - Disabilty Support ,139903,BH12,Community Services,LDAS Placements,Supported Living,Third Party Payments,REVENUE
Wiltshire,http://opendatacommunities.org/id/unitary-authority/wiltshire,19/01/2022,1903089476,2148.76,Alina Homecare - Disabilty Support ,139903,BH12,Community Services,LDAS Placements,Supported Living,Third Party Payments,REVENUE
Wiltshire,http://opendatacommunities.org/id/unitary-authority/wiltshire,19/01/2022,1903089477,370.48,Alina Homecare - Disabilty Support ,139903,BH12,Community Services,LDAS Placements,Supported Living,Third Party Payments,REVENUE
Wiltshire,http://opendatacommunities.org/id/unitary-authority/wiltshire,17/01/2022,1903092685,3133.8,Alina Homecare - Disabilty Support ,139903,BH12,Community Services,MH OP West Locality,Adult Domiciliary Care,Third Party Payments,REVENUE
Wiltshire,http://opendatacommunities.org/id/unitary-authority/wiltshire,17/01/2022,1903092687,584.24,Alina Homecare - Disabilty Support ,139903,BH12,Community Services,South Care Packages,Adult Domiciliary Care Contribution,Income,REVENUE
Wiltshire,http://opendatacommunities.org/id/unitary-authority/wiltshire,17/01/2022,1903092688,1636.4,Alina Homecare - Disabilty Support ,139903,BH12,Community Services,South Care Packages,Adult Domiciliary Care,Third Party Payments,REVENUE
Wiltshire,http://opendatacommunities.org/id/unitary-authority/wiltshire,17/01/2022,1903092689,1092.69,Alina Homecare - Disabilty Support ,139903,BH12,Community Services,West Care Packages,Adult Domiciliary Care,Third Party Payments,REVENUE
Wiltshire,http://opendatacommunities.org/id/unitary-authority/wiltshire,17/01/2022,1903092690,382.63,Alina Homecare - Disabilty Support ,139903,BH12,Community Services,West Care Packages,Adult Domiciliary Care Contribution,Income,REVENUE
Wiltshire,http://opendatacommunities.org/id/unitary-authority/wiltshire,17/01/2022,1903092691,554.04,Alina Homecare - Disabilty Support ,139903,BH12,Community Services,LDAS Placements,Adult Domiciliary Care,Third Party Payments,REVENUE
Wiltshire,http://opendatacommunities.org/id/unitary-authority/wiltshire,06/01/2022,5107447016,1777.92,Alina Homecare - Disabilty Support ,139903,BH12,Children & Education,0-25 extnl disabty p,Other Social & Welfare Costs,Third Party Payments,REVENUE
Wiltshire,http://opendatacommunities.org/id/unitary-authority/wiltshire,24/01/2022,5107448464,1259.36,Alina Homecare - Disabilty Support ,139903,BH12,Children & Education,0-25 extnl disabty p,Other Social & Welfare Costs,Third Party Payments,REVENUE
Wiltshire,http://opendatacommunities.org/id/unitary-authority/wiltshire,11/01/2022,5107447411,5278.77,Alina Homecare Ltd ,148259,KT22,Children & Education,0-25 extnl disabty p,Other Social & Welfare Costs,Third Party Payments,REVENUE
Wiltshire,http://opendatacommunities.org/id/unitary-authority/wiltshire,14/01/2022,1903091660,8404.21,ALizor Ltd ,150250,SP2 ,Resources,Covid19 - Hospital D,Adult Domiciliary Care,Third Party Payments,REVENUE
Wiltshire,http://opendatacommunities.org/id/unitary-authority/wiltshire,14/01/2022,1903091661,4696.09,ALizor Ltd ,150250,SP2 ,Resources,Covid19 - Hospital D,Adult Domiciliary Care,Third Party Payments,REVENUE
Wiltshire,http://opendatacommunities.org/id/unitary-authority/wiltshire,31/01/2022,1903101261,1485,ALizor Ltd ,150250,SP2 ,Community Services,South Care Packages,Adult Domiciliary Care,Third Party Payments,REVENUE
Wiltshire,http://opendatacommunities.org/id/unitary-authority/wiltshire,31/01/2022,1903101262,3780,ALizor Ltd ,150250,SP2 ,Community Services,South Care Packages,Adult Domiciliary Care,Third Party Payments,REVENUE
Wiltshire,http://opendatacommunities.org/id/unitary-authority/wiltshire,06/01/2022,1903082788,1288.24,All Care (GB) Ltd ,147720,TW3 ,Community Services,North Care Packages,Adult Domiciliary Care,Third Party Payments,REVENUE
Wiltshire,http://opendatacommunities.org/id/unitary-authority/wiltshire,10/01/2022,1903083310,1194.39,All Care (GB) Ltd ,147720,TW3 ,Resources,Covid19 - Hospital D,Adult Domiciliary Care,Third Party Payments,REVENUE
Wiltshire,http://opendatacommunities.org/id/unitary-authority/wiltshire,12/01/2022,1903088284,1318.36,All Care (GB) Ltd ,147720,TW3 ,Community Services,North Care Packages,Adult Domiciliary Care Contribution,Income,REVENUE
Wiltshire,http://opendatacommunities.org/id/unitary-authority/wiltshire,19/01/2022,1903089542,4614.96,All the other Lucy's (ATOL) ,148945,SW18,Community Services,LDAS Placements,Supported Living,Third Party Payments,REVENUE
Wiltshire,http://opendatacommunities.org/id/unitary-authority/wiltshire,19/01/2022,1903083776,3831.8,Alliance Home Care ,110986,SN15,Community Services,MH AOWA N&E Locality,Adult Residential Placements - Spot Purchase,Third Party Payments,REVENUE
Wiltshire,http://opendatacommunities.org/id/unitary-authority/wiltshire,19/01/2022,1903083777,3844.72,Alliance Home Care ,110986,SN15,Community Services,MH AOWA N&E Locality,Adult Residential Placements - Spot Purchase,Third Party Payments,REVENUE
Wiltshire,http://opendatacommunities.org/id/unitary-authority/wiltshire,19/01/2022,1903083778,3854.32,Alliance Home Care ,110986,SN15,Community Services,MH AOWA N&E Locality,Adult Residential Placements - Spot Purchase,Third Party Payments,REVENUE
Wiltshire,http://opendatacommunities.org/id/unitary-authority/wiltshire,19/01/2022,1903083779,3627.16,Alliance Home Care ,110986,SN15,Community Services,MH AOWA N&E Locality,Adult Residential Placements - Spot Purchase,Third Party Payments,REVENUE
Wiltshire,http://opendatacommunities.org/id/unitary-authority/wiltshire,19/01/2022,1903083780,3369.72,Alliance Home Care ,110986,SN15,Community Services,MH AOWA N&E Locality,Adult Residential Placements - Spot Purchase,Third Party Payments,REVENUE
Wiltshire,http://opendatacommunities.org/id/unitary-authority/wiltshire,06/01/2022,1903082785,431.28,Allied Care Services Limited ,134663,GU21,Community Services,MH AOWA N&E Locality,Adult Domiciliary Care Contribution,Income,REVENUE
Wiltshire,http://opendatacommunities.org/id/unitary-authority/wiltshire,18/01/2022,1903093747,6847.5,Allsorts Pre-school Nursery ,113437,SN4 ,Children & Education,Free Enttlmnt 3 & 4y,Childcare Free Entitlement Early Years,Supplies and Services,REVENUE
Wiltshire,http://opendatacommunities.org/id/unitary-authority/wiltshire,18/01/2022,1903093748,2953.72,Allsorts Pre-school Nursery ,113437,SN4 ,Children & Education,Free Entitlement 2 Y,Childcare Free Entitlement Early Years,Supplies and Services,REVENUE
Wiltshire,http://opendatacommunities.org/id/unitary-authority/wiltshire,21/01/2022,1903096519,1000,Allsorts Pre-school Nursery ,113437,SN4 ,Resources,Covid 19 COMF,Nursery / Childminder Fees / Sitting Service,Third Party Payments,REVENUE
Wiltshire,http://opendatacommunities.org/id/unitary-authority/wiltshire,04/01/2022,1903081526,1713.6,Alltogether Care LLP ,143884,DT4 ,Resources,Covid19 - Hospital D,Adult Domiciliary Care,Third Party Payments,REVENUE
Wiltshire,http://opendatacommunities.org/id/unitary-authority/wiltshire,06/01/2022,1903082786,1455.16,Alltogether Care LLP ,143884,DT4 ,Community Services,West Care Packages,Adult Domiciliary Care,Third Party Payments,REVENUE
Wiltshire,http://opendatacommunities.org/id/unitary-authority/wiltshire,10/01/2022,1903083272,807.56,Alltogether Care LLP ,143884,DT4 ,Community Services,West Care Packages,Adult Domiciliary Care,Third Party Payments,REVENUE
Wiltshire,http://opendatacommunities.org/id/unitary-authority/wiltshire,10/01/2022,1903083273,1166.36,Alltogether Care LLP ,143884,DT4 ,Resources,Covid19 - Hospital D,Adult Domiciliary Care,Third Party Payments,REVENUE
Wiltshire,http://opendatacommunities.org/id/unitary-authority/wiltshire,10/01/2022,1903083274,551.08,Alltogether Care LLP ,143884,DT4 ,Community Services,West Care Packages,Adult Domiciliary Care Contribution,Income,REVENUE
Wiltshire,http://opendatacommunities.org/id/unitary-authority/wiltshire,20/01/2022,1903096170,1256.08,Alltogether Care LLP ,143884,DT4 ,Resources,Covid19 - Hospital D,Adult Domiciliary Care,Third Party Payments,REVENUE
Wiltshire,http://opendatacommunities.org/id/unitary-authority/wiltshire,21/01/2022,1903096341,285.6,Alltogether Care LLP ,143884,DT4 ,Resources,Covid19 - Hospital D,Adult Domiciliary Care,Third Party Payments,REVENUE
Wiltshire,http://opendatacommunities.org/id/unitary-authority/wiltshire,21/01/2022,1903096341,1088.4,Alltogether Care LLP ,143884,DT4 ,Community Services,South Care Packages,Adult Domiciliary Care,Third Party Payments,REVENUE
Wiltshire,http://opendatacommunities.org/id/unitary-authority/wiltshire,24/01/2022,1903097238,913.88,Alltogether Care LLP ,143884,DT4 ,Community Services,West Care Packages,Adult Domiciliary Care Contribution,Income,REVENUE
Wiltshire,http://opendatacommunities.org/id/unitary-authority/wiltshire,24/01/2022,1903097239,1628.68,Alltogether Care LLP ,143884,DT4 ,Community Services,South Care Packages,Adult Domiciliary Care,Third Party Payments,REVENUE
Wiltshire,http://opendatacommunities.org/id/unitary-authority/wiltshire,24/01/2022,1903097240,2884.76,Alltogether Care LLP ,143884,DT4 ,Community Services,South Care Packages,Adult Domiciliary Care,Third Party Payments,REVENUE
Wiltshire,http://opendatacommunities.org/id/unitary-authority/wiltshire,24/01/2022,1903097241,1869.78,Alltogether Care LLP ,143884,DT4 ,Community Services,South Care Packages,Adult Domiciliary Care,Third Party Payments,REVENUE
Wiltshire,http://opendatacommunities.org/id/unitary-authority/wiltshire,24/01/2022,1903097242,1490.68,Alltogether Care LLP ,143884,DT4 ,Community Services,South Care Packages,Adult Domiciliary Care,Third Party Payments,REVENUE
Wiltshire,http://opendatacommunities.org/id/unitary-authority/wiltshire,24/01/2022,1903097243,1700.37,Alltogether Care LLP ,143884,DT4 ,Community Services,South Care Packages,Adult Domiciliary Care,Third Party Payments,REVENUE
Wiltshire,http://opendatacommunities.org/id/unitary-authority/wiltshire,24/01/2022,1903097244,1047.62,Alltogether Care LLP ,143884,DT4 ,Community Services,South Care Packages,Adult Domiciliary Care Contribution,Income,REVENUE
Wiltshire,http://opendatacommunities.org/id/unitary-authority/wiltshire,24/01/2022,1903097245,462.08,Alltogether Care LLP ,143884,DT4 ,Community Services,South Care Packages,Adult Domiciliary Care Contribution,Income,REVENUE
Wiltshire,http://opendatacommunities.org/id/unitary-authority/wiltshire,26/01/2022,1903097990,1283.64,Alltogether Care LLP ,143884,DT4 ,Community Services,South Care Packages,Adult Domiciliary Care Contribution,Income,REVENUE
Wiltshire,http://opendatacommunities.org/id/unitary-authority/wiltshire,26/01/2022,1903097995,1615.54,Alltogether Care LLP ,143884,DT4 ,Community Services,West Care Packages,Adult Domiciliary Care Contribution,Income,REVENUE
Wiltshire,http://opendatacommunities.org/id/unitary-authority/wiltshire,26/01/2022,1903097996,1447.78,Alltogether Care LLP ,143884,DT4 ,Community Services,West Care Packages,Adult Domiciliary Care,Third Party Payments,REVENUE
Wiltshire,http://opendatacommunities.org/id/unitary-authority/wiltshire,26/01/2022,1903097997,483.28,Alltogether Care LLP ,143884,DT4 ,Community Services,West Care Packages,Adult Domiciliary Care,Third Party Payments,REVENUE
Wiltshire,http://opendatacommunities.org/id/unitary-authority/wiltshire,26/01/2022,1903098000,1185.52,Alltogether Care LLP ,143884,DT4 ,Community Services,West Care Packages,Adult Domiciliary Care Contribution,Income,REVENUE
Wiltshire,http://opendatacommunities.org/id/unitary-authority/wiltshire,26/01/2022,1903098002,317.4,Alltogether Care LLP ,143884,DT4 ,Community Services,West Care Packages,Adult Domiciliary Care,Third Party Payments,REVENUE
Wiltshire,http://opendatacommunities.org/id/unitary-authority/wiltshire,26/01/2022,1903098004,1462.8,Alltogether Care LLP ,143884,DT4 ,Community Services,West Care Packages,Adult Domiciliary Care,Third Party Payments,REVENUE
Wiltshire,http://opendatacommunities.org/id/unitary-authority/wiltshire,26/01/2022,1903098005,932.32,Alltogether Care LLP ,143884,DT4 ,Community Services,West Care Packages,Adult Domiciliary Care Contribution,Income,REVENUE
Wiltshire,http://opendatacommunities.org/id/unitary-authority/wiltshire,26/01/2022,1903098007,372.6,Alltogether Care LLP ,143884,DT4 ,Community Services,West Care Packages,Adult Domiciliary Care,Third Party Payments,REVENUE
Wiltshire,http://opendatacommunities.org/id/unitary-authority/wiltshire,26/01/2022,1903098008,378.72,Alltogether Care LLP ,143884,DT4 ,Community Services,West Care Packages,Adult Domiciliary Care,Third Party Payments,REVENUE
Wiltshire,http://opendatacommunities.org/id/unitary-authority/wiltshire,26/01/2022,1903098009,303.6,Alltogether Care LLP ,143884,DT4 ,Community Services,West Care Packages,Adult Domiciliary Care,Third Party Payments,REVENUE
Wiltshire,http://opendatacommunities.org/id/unitary-authority/wiltshire,26/01/2022,1903098010,538.88,Alltogether Care LLP ,143884,DT4 ,Community Services,West Care Packages,Adult Domiciliary Care Contribution,Income,REVENUE
Wiltshire,http://opendatacommunities.org/id/unitary-authority/wiltshire,26/01/2022,1903098013,372.6,Alltogether Care LLP ,143884,DT4 ,Community Services,West Care Packages,Adult Domiciliary Care,Third Party Payments,REVENUE
Wiltshire,http://opendatacommunities.org/id/unitary-authority/wiltshire,26/01/2022,1903098014,913.88,Alltogether Care LLP ,143884,DT4 ,Community Services,West Care Packages,Adult Domiciliary Care Contribution,Income,REVENUE
Wiltshire,http://opendatacommunities.org/id/unitary-authority/wiltshire,26/01/2022,1903098015,1334.38,Alltogether Care LLP ,143884,DT4 ,Community Services,West Care Packages,Adult Domiciliary Care,Third Party Payments,REVENUE
Wiltshire,http://opendatacommunities.org/id/unitary-authority/wiltshire,26/01/2022,1903098018,1156.42,Alltogether Care LLP ,143884,DT4 ,Community Services,West Care Packages,Adult Domiciliary Care,Third Party Payments,REVENUE
Wiltshire,http://opendatacommunities.org/id/unitary-authority/wiltshire,26/01/2022,1903098019,451.02,Alltogether Care LLP ,143884,DT4 ,Community Services,West Care Packages,Adult Domiciliary Care Contribution,Income,REVENUE
Wiltshire,http://opendatacommunities.org/id/unitary-authority/wiltshire,26/01/2022,1903098021,759.44,Alltogether Care LLP ,143884,DT4 ,Community Services,West Care Packages,Adult Domiciliary Care,Third Party Payments,REVENUE
Wiltshire,http://opendatacommunities.org/id/unitary-authority/wiltshire,26/01/2022,1903098022,961.11,Alltogether Care LLP ,143884,DT4 ,Community Services,West Care Packages,Adult Domiciliary Care,Third Party Payments,REVENUE
Wiltshire,http://opendatacommunities.org/id/unitary-authority/wiltshire,13/01/2022,5107447080,380,Alpha Plus Training  and  Translati Ltd,110120,TA4 ,Children & Education,HQ Social Care,Professional Fees,Supplies and Services,REVENUE
Wiltshire,http://opendatacommunities.org/id/unitary-authority/wiltshire,20/01/2022,5107447414,672,Alpha Plus Training  and  Translati Ltd,110120,TA4 ,Children & Education,HQ Social Care,Professional Fees,Supplies and Services,REVENUE
Wiltshire,http://opendatacommunities.org/id/unitary-authority/wiltshire,11/01/2022,5107447417,337.5,Alpha Plus Training  and  Translati Ltd,110120,TA4 ,Children & Education,HQ Social Care,Professional Fees,Supplies and Services,REVENUE
Wiltshire,http://opendatacommunities.org/id/unitary-authority/wiltshire,18/01/2022,5107447949,375,Alpha Plus Training  and  Translati Ltd,110120,TA4 ,Children & Education,HQ Social Care,Professional Fees,Supplies and Services,REVENUE
Wiltshire,http://opendatacommunities.org/id/unitary-authority/wiltshire,19/01/2022,5107448160,760.5,Alpha Plus Training  and  Translati Ltd,110120,TA4 ,Children & Education,UASC Over 18 Years,Professional Fees,Supplies and Services,REVENUE
Wiltshire,http://opendatacommunities.org/id/unitary-authority/wiltshire,19/01/2022,5107448169,294,Alpha Plus Training  and  Translati Ltd,110120,TA4 ,Children & Education,UASC Over 18 Years,Professional Fees,Supplies and Services,REVENUE
Wiltshire,http://opendatacommunities.org/id/unitary-authority/wiltshire,27/01/2022,5107448900,715.4,Alpha Plus Training  and  Translati Ltd,110120,TA4 ,Children & Education,HQ Social Care,Professional Fees,Supplies and Services,REVENUE
Wiltshire,http://opendatacommunities.org/id/unitary-authority/wiltshire,27/01/2022,5107448901,621.6,Alpha Plus Training  and  Translati Ltd,110120,TA4 ,Children & Education,HQ Social Care,Professional Fees,Supplies and Services,REVENUE
Wiltshire,http://opendatacommunities.org/id/unitary-authority/wiltshire,27/01/2022,5107448902,621.6,Alpha Plus Training  and  Translati Ltd,110120,TA4 ,Children & Education,HQ Social Care,Professional Fees,Supplies and Services,REVENUE
Wiltshire,http://opendatacommunities.org/id/unitary-authority/wiltshire,25/01/2022,1903097432,252,Alpha Taxis ,100124,BA14,Neighbourhood & Planning,Mainstream Secondary,Transport Contracts,Third Party Payments,REVENUE
Wiltshire,http://opendatacommunities.org/id/unitary-authority/wiltshire,25/01/2022,1903097433,1742,Alpha Taxis ,100124,BA14,Neighbourhood & Planning,SEN Secondary Tspt,Transport Contracts,Third Party Payments,REVENUE
Wiltshire,http://opendatacommunities.org/id/unitary-authority/wiltshire,25/01/2022,1903097436,1100,Alpha Taxis ,100124,BA14,Neighbourhood & Planning,SEN Secondary Tspt,Transport Contracts,Third Party Payments,REVENUE
Wiltshire,http://opendatacommunities.org/id/unitary-authority/wiltshire,25/01/2022,1903097437,780,Alpha Taxis ,100124,BA14,Neighbourhood & Planning,Mainstream Secondary,Transport Contracts,Third Party Payments,REVENUE
Wiltshire,http://opendatacommunities.org/id/unitary-authority/wiltshire,25/01/2022,1903097439,450.67,Alpha Taxis ,100124,BA14,Neighbourhood & Planning,SEN 16+ Transport,Transport Contracts,Third Party Payments,REVENUE
Wiltshire,http://opendatacommunities.org/id/unitary-authority/wiltshire,25/01/2022,1903097439,901.33,Alpha Taxis ,100124,BA14,Neighbourhood & Planning,SEN Secondary Tspt,Transport Contracts,Third Party Payments,REVENUE
Wiltshire,http://opendatacommunities.org/id/unitary-authority/wiltshire,25/01/2022,1903097441,1794,Alpha Taxis ,100124,BA14,Neighbourhood & Planning,SEN Primary Transprt,Transport Contracts,Third Party Payments,REVENUE
Wiltshire,http://opendatacommunities.org/id/unitary-authority/wiltshire,25/01/2022,1903097442,780,Alpha Taxis ,100124,BA14,Neighbourhood & Planning,SEN Primary Transprt,Transport Contracts,Third Party Payments,REVENUE
Wiltshire,http://opendatacommunities.org/id/unitary-authority/wiltshire,25/01/2022,1903097443,353.6,Alpha Taxis ,100124,BA14,Neighbourhood & Planning,SEN Primary Transprt,Transport Contracts,Third Party Payments,REVENUE
Wiltshire,http://opendatacommunities.org/id/unitary-authority/wiltshire,25/01/2022,1903097446,1040,Alpha Taxis ,100124,BA14,Neighbourhood & Planning,SEN Secondary Tspt,Transport Contracts,Third Party Payments,REVENUE
Wiltshire,http://opendatacommunities.org/id/unitary-authority/wiltshire,25/01/2022,1903097447,1430,Alpha Taxis ,100124,BA14,Neighbourhood & Planning,SEN Primary Transprt,Transport Contracts,Third Party Payments,REVENUE
Wiltshire,http://opendatacommunities.org/id/unitary-authority/wiltshire,25/01/2022,1903097448,840,Alpha Taxis ,100124,BA14,Neighbourhood & Planning,SEN Primary Transprt,Transport Contracts,Third Party Payments,REVENUE
Wiltshire,http://opendatacommunities.org/id/unitary-authority/wiltshire,25/01/2022,1903097449,359.39,Alpha Taxis ,100124,BA14,Neighbourhood & Planning,Public Transport,Transport Contracts,Third Party Payments,REVENUE
Wiltshire,http://opendatacommunities.org/id/unitary-authority/wiltshire,25/01/2022,1903097453,484,Alpha Taxis ,100124,BA14,Community Services,LDAS Placements,Transport Contracts,Third Party Payments,REVENUE
Wiltshire,http://opendatacommunities.org/id/unitary-authority/wiltshire,18/01/2022,1903094231,520,Alpha Taxis (Tidworth) ,137541,SP9 ,Children & Education,Supp & Safe South,Transport Contracts,Third Party Payments,REVENUE
Wiltshire,http://opendatacommunities.org/id/unitary-authority/wiltshire,18/01/2022,1903094231,1400,Alpha Taxis (Tidworth) ,137541,SP9 ,Neighbourhood & Planning,SEN Primary Transprt,Transport Contracts,Third Party Payments,REVENUE
Wiltshire,http://opendatacommunities.org/id/unitary-authority/wiltshire,18/01/2022,1903094233,950,Alpha Taxis (Tidworth) ,137541,SP9 ,Children & Education,Supp & Safe South,Transport Contracts,Third Party Payments,REVENUE
Wiltshire,http://opendatacommunities.org/id/unitary-authority/wiltshire,18/01/2022,1903094237,454,Alpha Taxis (Tidworth) ,137541,SP9 ,Neighbourhood & Planning,SEN Primary Transprt,Transport Contracts,Third Party Payments,REVENUE
Wiltshire,http://opendatacommunities.org/id/unitary-authority/wiltshire,18/01/2022,1903094238,976,Alpha Taxis (Tidworth) ,137541,SP9 ,Neighbourhood & Planning,SEN Primary Transprt,Transport Contracts,Third Party Payments,REVENUE
Wiltshire,http://opendatacommunities.org/id/unitary-authority/wiltshire,18/01/2022,1903094239,1344,Alpha Taxis (Tidworth) ,137541,SP9 ,Neighbourhood & Planning,SEN Primary Transprt,Transport Contracts,Third Party Payments,REVENUE
Wiltshire,http://opendatacommunities.org/id/unitary-authority/wiltshire,18/01/2022,1903094240,890,Alpha Taxis (Tidworth) ,137541,SP9 ,Neighbourhood & Planning,SEN Primary Transprt,Transport Contracts,Third Party Payments,REVENUE
Wiltshire,http://opendatacommunities.org/id/unitary-authority/wiltshire,18/01/2022,1903094241,1512,Alpha Taxis (Tidworth) ,137541,SP9 ,Neighbourhood & Planning,SEN Primary Transprt,Transport Contracts,Third Party Payments,REVENUE
Wiltshire,http://opendatacommunities.org/id/unitary-authority/wiltshire,18/01/2022,1903094242,840,Alpha Taxis (Tidworth) ,137541,SP9 ,Neighbourhood & Planning,SEN Primary Transprt,Transport Contracts,Third Party Payments,REVENUE
Wiltshire,http://opendatacommunities.org/id/unitary-authority/wiltshire,18/01/2022,1903094243,855,Alpha Taxis (Tidworth) ,137541,SP9 ,Neighbourhood & Planning,SEN 16+ Transport,Transport Contracts,Third Party Payments,REVENUE
Wiltshire,http://opendatacommunities.org/id/unitary-authority/wiltshire,18/01/2022,1903094244,585,Alpha Taxis (Tidworth) ,137541,SP9 ,Neighbourhood & Planning,SEN 16+ Transport,Transport Contracts,Third Party Payments,REVENUE
Wiltshire,http://opendatacommunities.org/id/unitary-authority/wiltshire,18/01/2022,1903094245,585,Alpha Taxis (Tidworth) ,137541,SP9 ,Neighbourhood & Planning,SEN 16+ Transport,Transport Contracts,Third Party Payments,REVENUE
Wiltshire,http://opendatacommunities.org/id/unitary-authority/wiltshire,24/01/2022,1903097303,945,Alpha Taxis (Tidworth) ,137541,SP9 ,Neighbourhood & Planning,SEN 16+ Transport,Transport Contracts,Third Party Payments,REVENUE
Wiltshire,http://opendatacommunities.org/id/unitary-authority/wiltshire,21/01/2022,1903097188,782.25,Alzheimers Support ,110127,BA14,Community Services,Area Board Melksham,Area Board Grants,Supplies and Services,REVENUE
Wiltshire,http://opendatacommunities.org/id/unitary-authority/wiltshire,14/01/2022,5107446729,9966.25,Alzheimers Support ,110127,BA14,Community Services,ASC Community C&G,Grants Expenditure,Supplies and Services,REVENUE
Wiltshire,http://opendatacommunities.org/id/unitary-authority/wiltshire,14/01/2022,5107446750,21833.09,Alzheimers Support ,110127,BA14,Community Services,ASC Community C&G,Grants Expenditure,Supplies and Services,REVENUE
Wiltshire,http://opendatacommunities.org/id/unitary-authority/wiltshire,27/01/2022,5107448939,16695.67,Amberleigh Care Ltd ,147648,TF2 ,Children & Education,External Residential,Childrens Agency Placement,Third Party Payments,REVENUE
Wiltshire,http://opendatacommunities.org/id/unitary-authority/wiltshire,05/01/2022,1903081822,1548,Amesbury Taxis ,150486,SP11,Neighbourhood & Planning,SEN Secondary Tspt,Transport Contracts,Third Party Payments,REVENUE
Wiltshire,http://opendatacommunities.org/id/unitary-authority/wiltshire,05/01/2022,1903081824,1820,Amesbury Taxis ,150486,SP11,Neighbourhood & Planning,SEN Secondary Tspt,Transport Contracts,Third Party Payments,REVENUE
Wiltshire,http://opendatacommunities.org/id/unitary-authority/wiltshire,05/01/2022,1903081825,1170,Amesbury Taxis ,150486,SP11,Neighbourhood & Planning,SEN Secondary Tspt,Transport Contracts,Third Party Payments,REVENUE
Wiltshire,http://opendatacommunities.org/id/unitary-authority/wiltshire,24/01/2022,5107448308,3841.21,Amicus Foster Care Limited ,126050,BS2 ,Children & Education,Independent Fosterin,Childrens Agency Placement,Third Party Payments,REVENUE
Wiltshire,http://opendatacommunities.org/id/unitary-authority/wiltshire,24/01/2022,5107448309,3543.3,Amicus Foster Care Limited ,126050,BS2 ,Children & Education,Independent Fosterin,Childrens Agency Placement,Third Party Payments,REVENUE
Wiltshire,http://opendatacommunities.org/id/unitary-authority/wiltshire,24/01/2022,5107448460,3614.6,Amicus Foster Care Limited ,126050,BS2 ,Children & Education,Independent Fosterin,Childrens Agency Placement,Third Party Payments,REVENUE
Wiltshire,http://opendatacommunities.org/id/unitary-authority/wiltshire,24/01/2022,5107448461,4878.78,Amicus Foster Care Limited ,126050,BS2 ,Children & Education,Independent Fosterin,Childrens Agency Placement,Third Party Payments,REVENUE
Wiltshire,http://opendatacommunities.org/id/unitary-authority/wiltshire,24/01/2022,5107448462,3543.3,Amicus Foster Care Limited ,126050,BS2 ,Children & Education,Independent Fosterin,Childrens Agency Placement,Third Party Payments,REVENUE
Wiltshire,http://opendatacommunities.org/id/unitary-authority/wiltshire,25/01/2022,5107448503,3841.21,Amicus Foster Care Limited ,126050,BS2 ,Children & Education,Independent Fosterin,Childrens Agency Placement,Third Party Payments,REVENUE
Wiltshire,http://opendatacommunities.org/id/unitary-authority/wiltshire,25/01/2022,5107448504,3543.3,Amicus Foster Care Limited ,126050,BS2 ,Children & Education,Independent Fosterin,Childrens Agency Placement,Third Party Payments,REVENUE
Wiltshire,http://opendatacommunities.org/id/unitary-authority/wiltshire,25/01/2022,5107448505,3614.6,Amicus Foster Care Limited ,126050,BS2 ,Children & Education,Independent Fosterin,Childrens Agency Placement,Third Party Payments,REVENUE
Wiltshire,http://opendatacommunities.org/id/unitary-authority/wiltshire,25/01/2022,5107448506,4878.78,Amicus Foster Care Limited ,126050,BS2 ,Children & Education,Independent Fosterin,Childrens Agency Placement,Third Party Payments,REVENUE
Wiltshire,http://opendatacommunities.org/id/unitary-authority/wiltshire,25/01/2022,5107448507,3543.3,Amicus Foster Care Limited ,126050,BS2 ,Children & Education,Independent Fosterin,Childrens Agency Placement,Third Party Payments,REVENUE
Wiltshire,http://opendatacommunities.org/id/unitary-authority/wiltshire,04/01/2022,1903080561,325.24,Amicus Homecare Limited ,144149,BA2 ,Resources,Workforce Recruitmen,Grants Expenditure,Supplies and Services,REVENUE
Wiltshire,http://opendatacommunities.org/id/unitary-authority/wiltshire,04/01/2022,1903081300,678.44,Amicus Homecare Limited ,144149,BA2 ,Community Services,North Care Packages,Adult Domiciliary Care,Third Party Payments,REVENUE
Wiltshire,http://opendatacommunities.org/id/unitary-authority/wiltshire,19/01/2022,1903083691,1584,AMS Care Wiltshire ,130764,SN4 ,Resources,Covid19 - Hospital D,Adult Domiciliary Care,Third Party Payments,REVENUE
Wiltshire,http://opendatacommunities.org/id/unitary-authority/wiltshire,19/01/2022,1903083692,4356,AMS Care Wiltshire ,130764,SN4 ,Resources,Covid19 - Hospital D,Adult Domiciliary Care,Third Party Payments,REVENUE
Wiltshire,http://opendatacommunities.org/id/unitary-authority/wiltshire,19/01/2022,1903083693,4356,AMS Care Wiltshire ,130764,SN4 ,Resources,Covid19 - Hospital D,Adult Domiciliary Care,Third Party Payments,REVENUE
Wiltshire,http://opendatacommunities.org/id/unitary-authority/wiltshire,19/01/2022,1903083694,1188,AMS Care Wiltshire ,130764,SN4 ,Resources,Covid19 - Hospital D,Adult Domiciliary Care,Third Party Payments,REVENUE
Wiltshire,http://opendatacommunities.org/id/unitary-authority/wiltshire,19/01/2022,1903083695,11088,AMS Care Wiltshire ,130764,SN4 ,Community Services,MH OP N&E Locality,Adult Domiciliary Care,Third Party Payments,REVENUE
Wiltshire,http://opendatacommunities.org/id/unitary-authority/wiltshire,19/01/2022,1903089086,2896.8,AMS Care Wiltshire ,130764,SN4 ,Community Services,North Care Packages,Adult Care Nursing Placements - Spot,Third Party Payments,REVENUE
Wiltshire,http://opendatacommunities.org/id/unitary-authority/wiltshire,19/01/2022,1903089087,2665.28,AMS Care Wiltshire ,130764,SN4 ,Community Services,North Care Packages,Adult Care Nursing Placements - Spot,Third Party Payments,REVENUE
Wiltshire,http://opendatacommunities.org/id/unitary-authority/wiltshire,19/01/2022,1903089088,3180,AMS Care Wiltshire ,130764,SN4 ,Community Services,MH AOWA N&E Locality,Adult Care Nursing Placements - Spot,Third Party Payments,REVENUE
Wiltshire,http://opendatacommunities.org/id/unitary-authority/wiltshire,19/01/2022,1903089089,2904.52,AMS Care Wiltshire ,130764,SN4 ,Community Services,Adult Care Gross Loa,Adult Care Nursing Placements - Spot,Third Party Payments,REVENUE
Wiltshire,http://opendatacommunities.org/id/unitary-authority/wiltshire,19/01/2022,1903089090,2904.52,AMS Care Wiltshire ,130764,SN4 ,Community Services,Adult Care Gross Loa,Adult Care Nursing Placements - Spot,Third Party Payments,REVENUE
Wiltshire,http://opendatacommunities.org/id/unitary-authority/wiltshire,19/01/2022,1903089091,2882.68,AMS Care Wiltshire ,130764,SN4 ,Community Services,Adult Care Gross Loa,Adult Care Nursing Placements - Spot,Third Party Payments,REVENUE
Wiltshire,http://opendatacommunities.org/id/unitary-authority/wiltshire,19/01/2022,1903089092,2799.52,AMS Care Wiltshire ,130764,SN4 ,Community Services,Adult Care Gross Loa,Adult Care Nursing Placements - Spot,Third Party Payments,REVENUE
Wiltshire,http://opendatacommunities.org/id/unitary-authority/wiltshire,19/01/2022,1903089093,3180,AMS Care Wiltshire ,130764,SN4 ,Community Services,Adult Care Gross Loa,Adult Care Nursing Placements - Spot,Third Party Payments,REVENUE
Wiltshire,http://opendatacommunities.org/id/unitary-authority/wiltshire,19/01/2022,1903089094,3930.4,AMS Care Wiltshire ,130764,SN4 ,Community Services,Adult Care Gross Loa,Adult Care Nursing Placements - Spot,Third Party Payments,REVENUE
Wiltshire,http://opendatacommunities.org/id/unitary-authority/wiltshire,19/01/2022,1903089095,2947.24,AMS Care Wiltshire ,130764,SN4 ,Community Services,Placement Block Cont,Adult Care Nursing Placements- Block Contract,Third Party Payments,REVENUE
Wiltshire,http://opendatacommunities.org/id/unitary-authority/wiltshire,19/01/2022,1903089096,2947.24,AMS Care Wiltshire ,130764,SN4 ,Community Services,Placement Block Cont,Adult Care Nursing Placements- Block Contract,Third Party Payments,REVENUE
Wiltshire,http://opendatacommunities.org/id/unitary-authority/wiltshire,19/01/2022,1903089097,2947.24,AMS Care Wiltshire ,130764,SN4 ,Community Services,Placement Block Cont,Adult Care Nursing Placements- Block Contract,Third Party Payments,REVENUE
Wiltshire,http://opendatacommunities.org/id/unitary-authority/wiltshire,19/01/2022,1903089098,2947.24,AMS Care Wiltshire ,130764,SN4 ,Community Services,Placement Block Cont,Adult Care Nursing Placements- Block Contract,Third Party Payments,REVENUE
Wiltshire,http://opendatacommunities.org/id/unitary-authority/wiltshire,19/01/2022,1903089099,2947.24,AMS Care Wiltshire ,130764,SN4 ,Community Services,Placement Block Cont,Adult Care Nursing Placements- Block Contract,Third Party Payments,REVENUE
Wiltshire,http://opendatacommunities.org/id/unitary-authority/wiltshire,19/01/2022,1903089100,2947.24,AMS Care Wiltshire ,130764,SN4 ,Community Services,Placement Block Cont,Adult Care Nursing Placements- Block Contract,Third Party Payments,REVENUE
Wiltshire,http://opendatacommunities.org/id/unitary-authority/wiltshire,19/01/2022,1903089101,2947.24,AMS Care Wiltshire ,130764,SN4 ,Community Services,Placement Block Cont,Adult Care Nursing Placements- Block Contract,Third Party Payments,REVENUE
Wiltshire,http://opendatacommunities.org/id/unitary-authority/wiltshire,19/01/2022,1903089102,2947.24,AMS Care Wiltshire ,130764,SN4 ,Community Services,Placement Block Cont,Adult Care Nursing Placements- Block Contract,Third Party Payments,REVENUE
Wiltshire,http://opendatacommunities.org/id/unitary-authority/wiltshire,19/01/2022,1903089103,2947.24,AMS Care Wiltshire ,130764,SN4 ,Community Services,Placement Block Cont,Adult Care Nursing Placements- Block Contract,Third Party Payments,REVENUE
Wiltshire,http://opendatacommunities.org/id/unitary-authority/wiltshire,19/01/2022,1903089104,2947.24,AMS Care Wiltshire ,130764,SN4 ,Community Services,Placement Block Cont,Adult Care Nursing Placements- Block Contract,Third Party Payments,REVENUE
Wiltshire,http://opendatacommunities.org/id/unitary-authority/wiltshire,19/01/2022,1903089105,2947.24,AMS Care Wiltshire ,130764,SN4 ,Community Services,Placement Block Cont,Adult Care Nursing Placements- Block Contract,Third Party Payments,REVENUE
Wiltshire,http://opendatacommunities.org/id/unitary-authority/wiltshire,19/01/2022,1903089106,2947.24,AMS Care Wiltshire ,130764,SN4 ,Community Services,Placement Block Cont,Adult Care Nursing Placements- Block Contract,Third Party Payments,REVENUE
Wiltshire,http://opendatacommunities.org/id/unitary-authority/wiltshire,19/01/2022,1903089107,2711.72,AMS Care Wiltshire ,130764,SN4 ,Community Services,Placement Block Cont,Adult Care Nursing Placements- Block Contract,Third Party Payments,REVENUE
Wiltshire,http://opendatacommunities.org/id/unitary-authority/wiltshire,19/01/2022,1903089108,2711.72,AMS Care Wiltshire ,130764,SN4 ,Community Services,Placement Block Cont,Adult Care Nursing Placements- Block Contract,Third Party Payments,REVENUE
Wiltshire,http://opendatacommunities.org/id/unitary-authority/wiltshire,19/01/2022,1903089109,2711.72,AMS Care Wiltshire ,130764,SN4 ,Community Services,Placement Block Cont,Adult Care Nursing Placements- Block Contract,Third Party Payments,REVENUE
Wiltshire,http://opendatacommunities.org/id/unitary-authority/wiltshire,19/01/2022,1903089110,2711.72,AMS Care Wiltshire ,130764,SN4 ,Community Services,Placement Block Cont,Adult Care Nursing Placements- Block Contract,Third Party Payments,REVENUE
Wiltshire,http://opendatacommunities.org/id/unitary-authority/wiltshire,19/01/2022,1903089111,2711.72,AMS Care Wiltshire ,130764,SN4 ,Community Services,Placement Block Cont,Adult Care Nursing Placements- Block Contract,Third Party Payments,REVENUE
Wiltshire,http://opendatacommunities.org/id/unitary-authority/wiltshire,19/01/2022,1903089112,2711.72,AMS Care Wiltshire ,130764,SN4 ,Community Services,Placement Block Cont,Adult Care Nursing Placements- Block Contract,Third Party Payments,REVENUE
Wiltshire,http://opendatacommunities.org/id/unitary-authority/wiltshire,19/01/2022,1903089113,2711.72,AMS Care Wiltshire ,130764,SN4 ,Community Services,Placement Block Cont,Adult Care Nursing Placements- Block Contract,Third Party Payments,REVENUE
Wiltshire,http://opendatacommunities.org/id/unitary-authority/wiltshire,19/01/2022,1903089114,2711.72,AMS Care Wiltshire ,130764,SN4 ,Community Services,Placement Block Cont,Adult Care Nursing Placements- Block Contract,Third Party Payments,REVENUE
Wiltshire,http://opendatacommunities.org/id/unitary-authority/wiltshire,19/01/2022,1903089115,2947.24,AMS Care Wiltshire ,130764,SN4 ,Community Services,Placement Block Cont,Adult Care Nursing Placements- Block Contract,Third Party Payments,REVENUE
Wiltshire,http://opendatacommunities.org/id/unitary-authority/wiltshire,19/01/2022,1903089116,14816,AMS Care Wiltshire ,130764,SN4 ,Resources,Covid19 - Hospital D,Adult Care Nursing Placements - Spot,Third Party Payments,REVENUE
Wiltshire,http://opendatacommunities.org/id/unitary-authority/wiltshire,19/01/2022,1903089119,769.94,AMS Care Wiltshire ,130764,SN4 ,Community Services,Placement Block Cont,Adult Nursing Place- Block Contract Contribution,Income,REVENUE
Wiltshire,http://opendatacommunities.org/id/unitary-authority/wiltshire,19/01/2022,1903089120,979.92,AMS Care Wiltshire ,130764,SN4 ,Community Services,Placement Block Cont,Adult Nursing Place- Block Contract Contribution,Income,REVENUE
Wiltshire,http://opendatacommunities.org/id/unitary-authority/wiltshire,19/01/2022,1903089121,979.92,AMS Care Wiltshire ,130764,SN4 ,Community Services,Placement Block Cont,Adult Nursing Place- Block Contract Contribution,Income,REVENUE
Wiltshire,http://opendatacommunities.org/id/unitary-authority/wiltshire,19/01/2022,1903089122,489.96,AMS Care Wiltshire ,130764,SN4 ,Community Services,Placement Block Cont,Adult Nursing Place- Block Contract Contribution,Income,REVENUE
Wiltshire,http://opendatacommunities.org/id/unitary-authority/wiltshire,19/01/2022,1903092896,1135.71,AMS Care Wiltshire ,130764,SN4 ,Community Services,North Care Packages,Adult Care Nursing Placements - Spot,Third Party Payments,REVENUE
Wiltshire,http://opendatacommunities.org/id/unitary-authority/wiltshire,19/01/2022,1903092897,842.23,AMS Care Wiltshire ,130764,SN4 ,Resources,Covid19 - Hospital D,Adult Care Nursing Placements - Spot,Third Party Payments,REVENUE
Wiltshire,http://opendatacommunities.org/id/unitary-authority/wiltshire,19/01/2022,1903092898,3180,AMS Care Wiltshire ,130764,SN4 ,Community Services,North Care Packages,Adult Care Nursing Placements - Spot,Third Party Payments,REVENUE
Wiltshire,http://opendatacommunities.org/id/unitary-authority/wiltshire,19/01/2022,1903092899,1544.09,AMS Care Wiltshire ,130764,SN4 ,Resources,Covid19 - Hospital D,Adult Care Nursing Placements - Spot,Third Party Payments,REVENUE
Wiltshire,http://opendatacommunities.org/id/unitary-authority/wiltshire,19/01/2022,1903092900,3180,AMS Care Wiltshire ,130764,SN4 ,Community Services,North Care Packages,Adult Care Nursing Placements - Spot,Third Party Payments,REVENUE
Wiltshire,http://opendatacommunities.org/id/unitary-authority/wiltshire,19/01/2022,1903092901,2386.31,AMS Care Wiltshire ,130764,SN4 ,Resources,Covid19 - Hospital D,Adult Care Nursing Placements - Spot,Third Party Payments,REVENUE
Wiltshire,http://opendatacommunities.org/id/unitary-authority/wiltshire,19/01/2022,1903092902,3180,AMS Care Wiltshire ,130764,SN4 ,Community Services,North Care Packages,Adult Care Nursing Placements - Spot,Third Party Payments,REVENUE
Wiltshire,http://opendatacommunities.org/id/unitary-authority/wiltshire,19/01/2022,1903095282,1135.6,AMS Care Wiltshire ,130764,SN4 ,Community Services,Placement Block Cont,Adult Nursing Place- Block Contract Contribution,Income,REVENUE
Wiltshire,http://opendatacommunities.org/id/unitary-authority/wiltshire,19/01/2022,1903095648,2826.16,AMS Care Wiltshire ,130764,SN4 ,Community Services,Adult Care Gross Loa,Adult Nursing Place- Spot Purchase Contr,Income,REVENUE
Wiltshire,http://opendatacommunities.org/id/unitary-authority/wiltshire,19/01/2022,1903095649,2422.42,AMS Care Wiltshire ,130764,SN4 ,Community Services,Adult Care Gross Loa,Adult Nursing Place- Spot Purchase Contr,Income,REVENUE
Wiltshire,http://opendatacommunities.org/id/unitary-authority/wiltshire,19/01/2022,1903095650,411.81,AMS Care Wiltshire ,130764,SN4 ,Community Services,Adult Care Gross Loa,Adult Nursing Place- Spot Purchase Contr,Income,REVENUE
Wiltshire,http://opendatacommunities.org/id/unitary-authority/wiltshire,19/01/2022,1903095651,2882.68,AMS Care Wiltshire ,130764,SN4 ,Community Services,Adult Care Gross Loa,Adult Nursing Place- Spot Purchase Contr,Income,REVENUE
Wiltshire,http://opendatacommunities.org/id/unitary-authority/wiltshire,19/01/2022,1903095652,2882.68,AMS Care Wiltshire ,130764,SN4 ,Community Services,Adult Care Gross Loa,Adult Nursing Place- Spot Purchase Contr,Income,REVENUE
Wiltshire,http://opendatacommunities.org/id/unitary-authority/wiltshire,19/01/2022,1903095653,2882.68,AMS Care Wiltshire ,130764,SN4 ,Community Services,Adult Care Gross Loa,Adult Nursing Place- Spot Purchase Contr,Income,REVENUE
Wiltshire,http://opendatacommunities.org/id/unitary-authority/wiltshire,19/01/2022,1903095654,2882.68,AMS Care Wiltshire ,130764,SN4 ,Community Services,Adult Care Gross Loa,Adult Nursing Place- Spot Purchase Contr,Income,REVENUE
Wiltshire,http://opendatacommunities.org/id/unitary-authority/wiltshire,19/01/2022,1903095655,2882.68,AMS Care Wiltshire ,130764,SN4 ,Community Services,Adult Care Gross Loa,Adult Nursing Place- Spot Purchase Contr,Income,REVENUE
Wiltshire,http://opendatacommunities.org/id/unitary-authority/wiltshire,19/01/2022,1903095656,2882.68,AMS Care Wiltshire ,130764,SN4 ,Community Services,Adult Care Gross Loa,Adult Nursing Place- Spot Purchase Contr,Income,REVENUE
Wiltshire,http://opendatacommunities.org/id/unitary-authority/wiltshire,19/01/2022,1903095657,2882.68,AMS Care Wiltshire ,130764,SN4 ,Community Services,Adult Care Gross Loa,Adult Nursing Place- Spot Purchase Contr,Income,REVENUE
Wiltshire,http://opendatacommunities.org/id/unitary-authority/wiltshire,19/01/2022,1903095658,2882.68,AMS Care Wiltshire ,130764,SN4 ,Community Services,Adult Care Gross Loa,Adult Nursing Place- Spot Purchase Contr,Income,REVENUE
Wiltshire,http://opendatacommunities.org/id/unitary-authority/wiltshire,19/01/2022,1903095659,2882.68,AMS Care Wiltshire ,130764,SN4 ,Community Services,Adult Care Gross Loa,Adult Nursing Place- Spot Purchase Contr,Income,REVENUE
Wiltshire,http://opendatacommunities.org/id/unitary-authority/wiltshire,19/01/2022,1903095660,2882.68,AMS Care Wiltshire ,130764,SN4 ,Community Services,Adult Care Gross Loa,Adult Nursing Place- Spot Purchase Contr,Income,REVENUE
Wiltshire,http://opendatacommunities.org/id/unitary-authority/wiltshire,19/01/2022,1903095661,2882.68,AMS Care Wiltshire ,130764,SN4 ,Community Services,Adult Care Gross Loa,Adult Nursing Place- Spot Purchase Contr,Income,REVENUE
Wiltshire,http://opendatacommunities.org/id/unitary-authority/wiltshire,10/01/2022,1903083334,1440,Andak Taxis ,153551,BA15,Neighbourhood & Planning,SEN 16+ Transport,Transport Contracts,Third Party Payments,REVENUE
Wiltshire,http://opendatacommunities.org/id/unitary-authority/wiltshire,06/01/2022,5107446895,1245.46,Andover   District Mencap ,113490,SP10,Children & Education,0-25 extnl disabty p,Other Social & Welfare Costs,Third Party Payments,REVENUE
Wiltshire,http://opendatacommunities.org/id/unitary-authority/wiltshire,06/01/2022,5107446896,3113.65,Andover   District Mencap ,113490,SP10,Children & Education,0-25 extnl disabty p,Other Social & Welfare Costs,Third Party Payments,REVENUE
Wiltshire,http://opendatacommunities.org/id/unitary-authority/wiltshire,11/01/2022,5107447404,1447.47,Andover   District Mencap ,113490,SP10,Children & Education,0-25 extnl disabty p,Other Social & Welfare Costs,Third Party Payments,REVENUE
Wiltshire,http://opendatacommunities.org/id/unitary-authority/wiltshire,26/01/2022,5107448754,4981.84,Andover   District Mencap ,113490,SP10,Children & Education,0-25 extnl disabty p,Other Social & Welfare Costs,Third Party Payments,REVENUE
Wiltshire,http://opendatacommunities.org/id/unitary-authority/wiltshire,26/01/2022,5107448755,643.32,Andover   District Mencap ,113490,SP10,Children & Education,0-25 extnl disabty p,Other Social & Welfare Costs,Third Party Payments,REVENUE
Wiltshire,http://opendatacommunities.org/id/unitary-authority/wiltshire,12/01/2022,1903087905,610.2,Andover Fire and Security Ltd ,147308,SP10,Neighbourhood & Planning,Porton Science Park,Property Maintenance,Premises Related,REVENUE
Wiltshire,http://opendatacommunities.org/id/unitary-authority/wiltshire,18/01/2022,1903094250,832,Andy Taxis Limited ,100874,SP4 ,Neighbourhood & Planning,Mainstream Secondary,Transport Contracts,Third Party Payments,REVENUE
Wiltshire,http://opendatacommunities.org/id/unitary-authority/wiltshire,14/01/2022,1903091567,495.21,Angels Care At Home ,149925,SN2 ,Community Services,North Care Packages,Adult Domiciliary Care,Third Party Payments,REVENUE
Wiltshire,http://opendatacommunities.org/id/unitary-authority/wiltshire,14/01/2022,1903091568,2571.42,Angels Care At Home ,149925,SN2 ,Resources,Covid19 - Hospital D,Adult Domiciliary Care,Third Party Payments,REVENUE
Wiltshire,http://opendatacommunities.org/id/unitary-authority/wiltshire,14/01/2022,1903091572,733.04,Angels Care At Home ,149925,SN2 ,Community Services,North Care Packages,Adult Domiciliary Care,Third Party Payments,REVENUE
Wiltshire,http://opendatacommunities.org/id/unitary-authority/wiltshire,14/01/2022,1903091575,336.84,Angels Care At Home ,149925,SN2 ,Community Services,North Care Packages,Adult Domiciliary Care,Third Party Payments,REVENUE
Wiltshire,http://opendatacommunities.org/id/unitary-authority/wiltshire,14/01/2022,1903091576,1598.24,Angels Care At Home ,149925,SN2 ,Community Services,North Care Packages,Adult Domiciliary Care,Third Party Payments,REVENUE
Wiltshire,http://opendatacommunities.org/id/unitary-authority/wiltshire,14/01/2022,1903091577,366.52,Angels Care At Home ,149925,SN2 ,Community Services,North Care Packages,Adult Domiciliary Care,Third Party Payments,REVENUE
Wiltshire,http://opendatacommunities.org/id/unitary-authority/wiltshire,14/01/2022,1903091578,1309.84,Angels Care At Home ,149925,SN2 ,Community Services,North Care Packages,Adult Domiciliary Care,Third Party Payments,REVENUE
Wiltshire,http://opendatacommunities.org/id/unitary-authority/wiltshire,14/01/2022,1903091579,304.76,Angels Care At Home ,149925,SN2 ,Resources,Covid19 - Hospital D,Adult Domiciliary Care,Third Party Payments,REVENUE
Wiltshire,http://opendatacommunities.org/id/unitary-authority/wiltshire,14/01/2022,1903091580,3214.28,Angels Care At Home ,149925,SN2 ,Resources,Covid19 - Hospital D,Adult Domiciliary Care,Third Party Payments,REVENUE
Wiltshire,http://opendatacommunities.org/id/unitary-authority/wiltshire,14/01/2022,1903091581,272.68,Angels Care At Home ,149925,SN2 ,Community Services,North Care Packages,Adult Domiciliary Care,Third Party Payments,REVENUE
Wiltshire,http://opendatacommunities.org/id/unitary-authority/wiltshire,14/01/2022,1903091582,423.28,Angels Care At Home ,149925,SN2 ,Community Services,North Care Packages,Adult Domiciliary Care Contribution,Income,REVENUE
Wiltshire,http://opendatacommunities.org/id/unitary-authority/wiltshire,14/01/2022,1903091584,733.04,Angels Care At Home ,149925,SN2 ,Community Services,North Care Packages,Adult Domiciliary Care,Third Party Payments,REVENUE
Wiltshire,http://opendatacommunities.org/id/unitary-authority/wiltshire,17/01/2022,1903092696,418.88,Angels Care At Home ,149925,SN2 ,Community Services,MH OP N&E Locality,Adult Domiciliary Care,Third Party Payments,REVENUE
Wiltshire,http://opendatacommunities.org/id/unitary-authority/wiltshire,17/01/2022,1903092697,733.04,Angels Care At Home ,149925,SN2 ,Community Services,North Care Packages,Adult Domiciliary Care,Third Party Payments,REVENUE
Wiltshire,http://opendatacommunities.org/id/unitary-authority/wiltshire,17/01/2022,1903092700,1518.4,Angels Care At Home ,149925,SN2 ,Community Services,North Care Packages,Adult Domiciliary Care Contribution,Income,REVENUE
Wiltshire,http://opendatacommunities.org/id/unitary-authority/wiltshire,17/01/2022,1903092701,1309.84,Angels Care At Home ,149925,SN2 ,Community Services,North Care Packages,Adult Domiciliary Care,Third Party Payments,REVENUE
Wiltshire,http://opendatacommunities.org/id/unitary-authority/wiltshire,21/01/2022,1903095700,2691.89,Aon Limited ,113554,CF10,Neighbourhood & Planning,Housg Ctrl Contingcy,Tenants� Contents Insurance,Premises Related,REVENUE
Wiltshire,http://opendatacommunities.org/id/unitary-authority/wiltshire,20/01/2022,1903095701,2685.31,Aon Limited ,113554,CF10,Neighbourhood & Planning,Housg Ctrl Contingcy,Tenants� Contents Insurance,Premises Related,REVENUE
Wiltshire,http://opendatacommunities.org/id/unitary-authority/wiltshire,10/01/2022,5107447340,1170,APA Consultants Ltd ,113361,SN10,Neighbourhood & Planning,Dev Management,Consultants Fees,Supplies and Services,REVENUE
Wiltshire,http://opendatacommunities.org/id/unitary-authority/wiltshire,19/01/2022,1903094859,7750,APAM Ltd re Nexus Properties ,147980,M17 ,Resources,FM Leisure Centres,Premises Rental,Premises Related,REVENUE
Wiltshire,http://opendatacommunities.org/id/unitary-authority/wiltshire,19/01/2022,1903094860,5109.65,APAM Ltd re Nexus Properties ,147980,M17 ,Resources,FM Leisure Centres,Premises Rental,Premises Related,REVENUE
Wiltshire,http://opendatacommunities.org/id/unitary-authority/wiltshire,04/01/2022,1903081302,664.44,Apex Prime Care Ltd ,148170,SO40,Community Services,West Care Packages,Adult Domiciliary Care Contribution,Income,REVENUE
Wiltshire,http://opendatacommunities.org/id/unitary-authority/wiltshire,06/01/2022,1903082789,906.64,Apex Prime Care Ltd ,148170,SO40,Community Services,MH OP South Locality,Adult Domiciliary Care,Third Party Payments,REVENUE
Wiltshire,http://opendatacommunities.org/id/unitary-authority/wiltshire,06/01/2022,1903082790,537.6,Apex Prime Care Ltd ,148170,SO40,Community Services,South Care Packages,Adult Domiciliary Care,Third Party Payments,REVENUE
Wiltshire,http://opendatacommunities.org/id/unitary-authority/wiltshire,06/01/2022,1903082793,1644.72,Apex Prime Care Ltd ,148170,SO40,Resources,Covid19 - Hospital D,Adult Domiciliary Care,Third Party Payments,REVENUE
Wiltshire,http://opendatacommunities.org/id/unitary-authority/wiltshire,06/01/2022,1903082794,745.44,Apex Prime Care Ltd ,148170,SO40,Community Services,West Care Packages,Adult Domiciliary Care,Third Party Payments,REVENUE
Wiltshire,http://opendatacommunities.org/id/unitary-authority/wiltshire,06/01/2022,1903082795,537.6,Apex Prime Care Ltd ,148170,SO40,Community Services,South Care Packages,Adult Domiciliary Care,Third Party Payments,REVENUE
Wiltshire,http://opendatacommunities.org/id/unitary-authority/wiltshire,06/01/2022,1903082796,1437.74,Apex Prime Care Ltd ,148170,SO40,Community Services,West Care Packages,Adult Domiciliary Care Contribution,Income,REVENUE
Wiltshire,http://opendatacommunities.org/id/unitary-authority/wiltshire,06/01/2022,1903082797,498.32,Apex Prime Care Ltd ,148170,SO40,Community Services,West Care Packages,Adult Domiciliary Care Contribution,Income,REVENUE
Wiltshire,http://opendatacommunities.org/id/unitary-authority/wiltshire,06/01/2022,1903082798,1047.14,Apex Prime Care Ltd ,148170,SO40,Community Services,West Care Packages,Adult Domiciliary Care Contribution,Income,REVENUE
Wiltshire,http://opendatacommunities.org/id/unitary-authority/wiltshire,07/01/2022,1903082987,941.7,Apex Prime Care Ltd ,148170,SO40,Community Services,West Care Packages,Adult Domiciliary Care Contribution,Income,REVENUE
Wiltshire,http://opendatacommunities.org/id/unitary-authority/wiltshire,18/01/2022,1903093803,13827.33,Appletree Nursery 1026 ,110163,SN11,Children & Education,Free Enttlmnt 3 & 4y,Childcare Free Entitlement Early Years,Supplies and Services,REVENUE
Wiltshire,http://opendatacommunities.org/id/unitary-authority/wiltshire,18/01/2022,1903093804,3918.2,Appletree Nursery 1026 ,110163,SN11,Children & Education,Free Entitlement 2 Y,Childcare Free Entitlement Early Years,Supplies and Services,REVENUE
Wiltshire,http://opendatacommunities.org/id/unitary-authority/wiltshire,21/01/2022,1903096530,1000,Appletree Nursery 1026 ,110163,SN11,Resources,Covid 19 COMF,Nursery / Childminder Fees / Sitting Service,Third Party Payments,REVENUE
Wiltshire,http://opendatacommunities.org/id/unitary-authority/wiltshire,13/01/2022,5107447658,21886,Appletree Treatment Centre ,153659,LA9 ,Children & Education,External Residential,Childrens Agency Placement,Third Party Payments,REVENUE
Wiltshire,http://opendatacommunities.org/id/unitary-authority/wiltshire,28/01/2022,5107447694,1698.23,APS Group ,148025,SK3 ,Resources,Customer Services,Printing,Supplies and Services,REVENUE
Wiltshire,http://opendatacommunities.org/id/unitary-authority/wiltshire,28/01/2022,1903097516,8250,Apse ,113577,M32 ,Wiltshire Council,Wiltshire Council,Buildings Minor Alterations,Premises Related,CAPITAL
Wiltshire,http://opendatacommunities.org/id/unitary-authority/wiltshire,12/01/2022,5107447529,299,Aquaid South Coast ,110167,SO50,Neighbourhood & Planning,Amesbury,Equipment Hire,Supplies and Services,REVENUE
Wiltshire,http://opendatacommunities.org/id/unitary-authority/wiltshire,26/01/2022,5107448786,1275,Aquatech Drainage Consultants Ltd Mr Chris Uden,135011,DT1 ,Wiltshire Council,Wiltshire Council,Property Maintenance,Premises Related,CAPITAL
Wiltshire,http://opendatacommunities.org/id/unitary-authority/wiltshire,19/01/2022,1903088825,4400,Arbory Residential Home ,113587,SP11,Community Services,South Care Packages,Adult Residential Placements - Spot Purchase,Third Party Payments,REVENUE
Wiltshire,http://opendatacommunities.org/id/unitary-authority/wiltshire,19/01/2022,1903089328,1900,Arch Care Services Ltd ,110169,BS21,Community Services,MH AOWA West Localit,Supported Living,Third Party Payments,REVENUE
Wiltshire,http://opendatacommunities.org/id/unitary-authority/wiltshire,14/01/2022,5107447539,708.14,Aria Building Services Ltd ,153791,RG7 ,Neighbourhood & Planning,Porton Science Park,Premises Related Other Maintenance Costs,Premises Related,REVENUE
Wiltshire,http://opendatacommunities.org/id/unitary-authority/wiltshire,19/01/2022,1903083672,2175,Arliemoor Care Homes ,110174,EX22,Community Services,MH AOWA West Localit,Adult Domiciliary Care,Third Party Payments,REVENUE
Wiltshire,http://opendatacommunities.org/id/unitary-authority/wiltshire,19/01/2022,1903095509,2859.36,Arliemoor Care Homes ,110174,EX22,Community Services,MH AOWA South Locali,Adult Residential Placements - Spot Purchase,Third Party Payments,REVENUE
Wiltshire,http://opendatacommunities.org/id/unitary-authority/wiltshire,19/01/2022,1903095510,7332.6,Arliemoor Care Homes ,110174,EX22,Community Services,MH AOWA South Locali,Adult Residential Placements - Spot Purchase,Third Party Payments,REVENUE
Wiltshire,http://opendatacommunities.org/id/unitary-authority/wiltshire,19/01/2022,1903095511,2272,Arliemoor Care Homes ,110174,EX22,Community Services,MH AOWA West Localit,Adult Residential Placements - Spot Purchase,Third Party Payments,REVENUE
Wiltshire,http://opendatacommunities.org/id/unitary-authority/wiltshire,06/01/2022,1903082787,2382.9,Arrow Care Services Ltd ,146643,SN12,Resources,Covid19 - Hospital D,Adult Domiciliary Care,Third Party Payments,REVENUE
Wiltshire,http://opendatacommunities.org/id/unitary-authority/wiltshire,10/01/2022,1903083433,1281.96,Arrow Care Services Ltd ,146643,SN12,Community Services,West Care Packages,Adult Domiciliary Care Contribution,Income,REVENUE
Wiltshire,http://opendatacommunities.org/id/unitary-authority/wiltshire,10/01/2022,1903083434,289.52,Arrow Care Services Ltd ,146643,SN12,Community Services,MH AOWA West Localit,Adult Domiciliary Care Contribution,Income,REVENUE
Wiltshire,http://opendatacommunities.org/id/unitary-authority/wiltshire,10/01/2022,1903083435,3500,Arrow Care Services Ltd ,146643,SN12,Community Services,West Care Packages,Adult Domiciliary Care,Third Party Payments,REVENUE
Wiltshire,http://opendatacommunities.org/id/unitary-authority/wiltshire,10/01/2022,1903083437,1045.8,Arrow Care Services Ltd ,146643,SN12,Community Services,West Care Packages,Adult Domiciliary Care,Third Party Payments,REVENUE
Wiltshire,http://opendatacommunities.org/id/unitary-authority/wiltshire,10/01/2022,1903083439,7280,Arrow Care Services Ltd ,146643,SN12,Resources,Covid19 - Hospital D,Adult Domiciliary Care,Third Party Payments,REVENUE
Wiltshire,http://opendatacommunities.org/id/unitary-authority/wiltshire,10/01/2022,1903083440,418.32,Arrow Care Services Ltd ,146643,SN12,Community Services,MH OP West Locality,Adult Domiciliary Care,Third Party Payments,REVENUE
Wiltshire,http://opendatacommunities.org/id/unitary-authority/wiltshire,10/01/2022,1903083442,364.21,Arrow Care Services Ltd ,146643,SN12,Community Services,West Care Packages,Adult Domiciliary Care,Third Party Payments,REVENUE
Wiltshire,http://opendatacommunities.org/id/unitary-authority/wiltshire,17/01/2022,1903092694,400,Arrow Care Services Ltd ,146643,SN12,Community Services,North Care Packages,Adult Domiciliary Care,Third Party Payments,REVENUE
Wiltshire,http://opendatacommunities.org/id/unitary-authority/wiltshire,20/01/2022,1903096209,250.6,Arrow Care Services Ltd ,146643,SN12,Community Services,West Care Packages,Adult Domiciliary Care,Third Party Payments,REVENUE
Wiltshire,http://opendatacommunities.org/id/unitary-authority/wiltshire,19/01/2022,1903092303,3896.88,Ashness Care ,143773,N15 ,Community Services,MH AOWA N&E Locality,Adult Residential Placements - Spot Purchase,Third Party Payments,REVENUE
Wiltshire,http://opendatacommunities.org/id/unitary-authority/wiltshire,18/01/2022,1903093725,6891.73,Ashton Keynes Playgroup 249 ,110188,SN6 ,Children & Education,Free Enttlmnt 3 & 4y,Childcare Free Entitlement Early Years,Supplies and Services,REVENUE
Wiltshire,http://opendatacommunities.org/id/unitary-authority/wiltshire,21/01/2022,1903096532,1000,Ashton Keynes Playgroup 249 ,110188,SN6 ,Resources,Covid 19 COMF,Nursery / Childminder Fees / Sitting Service,Third Party Payments,REVENUE
Wiltshire,http://opendatacommunities.org/id/unitary-authority/wiltshire,10/01/2022,1903083455,1000,Ask Jules ,150139,TW19,Community Services,West Care Packages,Adult Domiciliary Care,Third Party Payments,REVENUE
Wiltshire,http://opendatacommunities.org/id/unitary-authority/wiltshire,10/01/2022,1903079106,3834.77,Askews & Holts Library Services Ltd ,101034,PR1 ,Community Services,Libraries,Books & Publications,Supplies and Services,REVENUE
Wiltshire,http://opendatacommunities.org/id/unitary-authority/wiltshire,21/01/2022,1903090298,4598.98,Askews & Holts Library Services Ltd ,101034,PR1 ,Community Services,Libraries,Books & Publications,Supplies and Services,REVENUE
Wiltshire,http://opendatacommunities.org/id/unitary-authority/wiltshire,14/01/2022,5107447774,1490,Asphalt Recycling UK Ltd ,149290,SN26,Neighbourhood & Planning,Off Street Parking,Property Maintenance,Premises Related,REVENUE
Wiltshire,http://opendatacommunities.org/id/unitary-authority/wiltshire,14/01/2022,1903091511,802.29,Aspire Taxis ,101274,SP2 ,Neighbourhood & Planning,Mainstream Secondary,Transport Contracts,Third Party Payments,REVENUE
Wiltshire,http://opendatacommunities.org/id/unitary-authority/wiltshire,14/01/2022,1903091511,1069.71,Aspire Taxis ,101274,SP2 ,Neighbourhood & Planning,SEN Secondary Tspt,Transport Contracts,Third Party Payments,REVENUE
Wiltshire,http://opendatacommunities.org/id/unitary-authority/wiltshire,14/01/2022,1903091512,1320,Aspire Taxis ,101274,SP2 ,Neighbourhood & Planning,SEN Secondary Tspt,Transport Contracts,Third Party Payments,REVENUE
Wiltshire,http://opendatacommunities.org/id/unitary-authority/wiltshire,14/01/2022,1903091513,2795,Aspire Taxis ,101274,SP2 ,Neighbourhood & Planning,SEN Primary Transprt,Transport Contracts,Third Party Payments,REVENUE
Wiltshire,http://opendatacommunities.org/id/unitary-authority/wiltshire,14/01/2022,1903091514,1365,Aspire Taxis ,101274,SP2 ,Neighbourhood & Planning,SEN Primary Transprt,Transport Contracts,Third Party Payments,REVENUE
Wiltshire,http://opendatacommunities.org/id/unitary-authority/wiltshire,14/01/2022,1903091516,880,Aspire Taxis ,101274,SP2 ,Community Services,LDAS Placements,Transport Contracts,Third Party Payments,REVENUE
Wiltshire,http://opendatacommunities.org/id/unitary-authority/wiltshire,14/01/2022,1903091517,253.5,Aspire Taxis ,101274,SP2 ,Neighbourhood & Planning,Mainstream Secondary,Transport Contracts,Third Party Payments,REVENUE
Wiltshire,http://opendatacommunities.org/id/unitary-authority/wiltshire,14/01/2022,1903091517,760.5,Aspire Taxis ,101274,SP2 ,Neighbourhood & Planning,SEN Secondary Tspt,Transport Contracts,Third Party Payments,REVENUE
Wiltshire,http://opendatacommunities.org/id/unitary-authority/wiltshire,14/01/2022,1903091518,281.66,Aspire Taxis ,101274,SP2 ,Neighbourhood & Planning,Mainstream Primary,Transport Contracts,Third Party Payments,REVENUE
Wiltshire,http://opendatacommunities.org/id/unitary-authority/wiltshire,14/01/2022,1903091518,563.34,Aspire Taxis ,101274,SP2 ,Neighbourhood & Planning,SEN Primary Transprt,Transport Contracts,Third Party Payments,REVENUE
Wiltshire,http://opendatacommunities.org/id/unitary-authority/wiltshire,14/01/2022,1903091519,366.7,Aspire Taxis ,101274,SP2 ,Community Services,LDAS Placements,Transport Contracts,Third Party Payments,REVENUE
Wiltshire,http://opendatacommunities.org/id/unitary-authority/wiltshire,14/01/2022,1903091520,294.66,Aspire Taxis ,101274,SP2 ,Neighbourhood & Planning,SEN Primary Transprt,Transport Contracts,Third Party Payments,REVENUE
Wiltshire,http://opendatacommunities.org/id/unitary-authority/wiltshire,14/01/2022,1903091520,589.34,Aspire Taxis ,101274,SP2 ,Neighbourhood & Planning,SEN Secondary Tspt,Transport Contracts,Third Party Payments,REVENUE
Wiltshire,http://opendatacommunities.org/id/unitary-authority/wiltshire,14/01/2022,1903091521,785.1,Aspire Taxis ,101274,SP2 ,Neighbourhood & Planning,SEN Secondary Tspt,Transport Contracts,Third Party Payments,REVENUE
Wiltshire,http://opendatacommunities.org/id/unitary-authority/wiltshire,14/01/2022,1903091521,2138.6,Aspire Taxis ,101274,SP2 ,Neighbourhood & Planning,SEN Primary Transprt,Transport Contracts,Third Party Payments,REVENUE
Wiltshire,http://opendatacommunities.org/id/unitary-authority/wiltshire,14/01/2022,1903091522,507,Aspire Taxis ,101274,SP2 ,Neighbourhood & Planning,SEN Secondary Tspt,Transport Contracts,Third Party Payments,REVENUE
Wiltshire,http://opendatacommunities.org/id/unitary-authority/wiltshire,14/01/2022,1903091522,2418,Aspire Taxis ,101274,SP2 ,Neighbourhood & Planning,SEN Primary Transprt,Transport Contracts,Third Party Payments,REVENUE
Wiltshire,http://opendatacommunities.org/id/unitary-authority/wiltshire,14/01/2022,1903091523,1103.7,Aspire Taxis ,101274,SP2 ,Neighbourhood & Planning,SEN Secondary Tspt,Transport Contracts,Third Party Payments,REVENUE
Wiltshire,http://opendatacommunities.org/id/unitary-authority/wiltshire,14/01/2022,1903091524,433.34,Aspire Taxis ,101274,SP2 ,Neighbourhood & Planning,Mainstream Primary,Transport Contracts,Third Party Payments,REVENUE
Wiltshire,http://opendatacommunities.org/id/unitary-authority/wiltshire,14/01/2022,1903091525,2145,Aspire Taxis ,101274,SP2 ,Neighbourhood & Planning,SEN Secondary Tspt,Transport Contracts,Third Party Payments,REVENUE
Wiltshire,http://opendatacommunities.org/id/unitary-authority/wiltshire,14/01/2022,1903091526,585,Aspire Taxis ,101274,SP2 ,Neighbourhood & Planning,SEN Primary Transprt,Transport Contracts,Third Party Payments,REVENUE
Wiltshire,http://opendatacommunities.org/id/unitary-authority/wiltshire,14/01/2022,1903091527,1495,Aspire Taxis ,101274,SP2 ,Neighbourhood & Planning,SEN Secondary Tspt,Transport Contracts,Third Party Payments,REVENUE
Wiltshire,http://opendatacommunities.org/id/unitary-authority/wiltshire,14/01/2022,1903091528,1920,Aspire Taxis ,101274,SP2 ,Neighbourhood & Planning,SEN Primary Transprt,Transport Contracts,Third Party Payments,REVENUE
Wiltshire,http://opendatacommunities.org/id/unitary-authority/wiltshire,14/01/2022,1903091529,1228.5,Aspire Taxis ,101274,SP2 ,Neighbourhood & Planning,SEN Secondary Tspt,Transport Contracts,Third Party Payments,REVENUE
Wiltshire,http://opendatacommunities.org/id/unitary-authority/wiltshire,14/01/2022,1903091530,270,Aspire Taxis ,101274,SP2 ,Neighbourhood & Planning,Mainstream Secondary,Transport Contracts,Third Party Payments,REVENUE
Wiltshire,http://opendatacommunities.org/id/unitary-authority/wiltshire,14/01/2022,1903091531,2538.25,Aspire Taxis ,101274,SP2 ,Neighbourhood & Planning,Mainstream Primary,Transport Contracts,Third Party Payments,REVENUE
Wiltshire,http://opendatacommunities.org/id/unitary-authority/wiltshire,14/01/2022,1903091532,583.7,Aspire Taxis ,101274,SP2 ,Neighbourhood & Planning,Mainstream Primary,Transport Contracts,Third Party Payments,REVENUE
Wiltshire,http://opendatacommunities.org/id/unitary-authority/wiltshire,14/01/2022,1903091533,910,Aspire Taxis ,101274,SP2 ,Neighbourhood & Planning,Mainstream Primary,Transport Contracts,Third Party Payments,REVENUE
Wiltshire,http://opendatacommunities.org/id/unitary-authority/wiltshire,14/01/2022,1903091534,1170,Aspire Taxis ,101274,SP2 ,Neighbourhood & Planning,SEN Secondary Tspt,Transport Contracts,Third Party Payments,REVENUE
Wiltshire,http://opendatacommunities.org/id/unitary-authority/wiltshire,14/01/2022,1903091536,2145,Aspire Taxis ,101274,SP2 ,Neighbourhood & Planning,SEN Secondary Tspt,Transport Contracts,Third Party Payments,REVENUE
Wiltshire,http://opendatacommunities.org/id/unitary-authority/wiltshire,14/01/2022,1903091537,270,Aspire Taxis ,101274,SP2 ,Community Services,South Care Packages,Transport Contracts,Third Party Payments,REVENUE
Wiltshire,http://opendatacommunities.org/id/unitary-authority/wiltshire,14/01/2022,1903091540,325,Aspire Taxis ,101274,SP2 ,Neighbourhood & Planning,SEN Primary Transprt,Transport Contracts,Third Party Payments,REVENUE
Wiltshire,http://opendatacommunities.org/id/unitary-authority/wiltshire,14/01/2022,1903091542,585,Aspire Taxis ,101274,SP2 ,Children & Education,Supp & Safe East,Transport Contracts,Third Party Payments,REVENUE
Wiltshire,http://opendatacommunities.org/id/unitary-authority/wiltshire,14/01/2022,1903091543,1820,Aspire Taxis ,101274,SP2 ,Children & Education,Supp & Safe East,Transport Contracts,Third Party Payments,REVENUE
Wiltshire,http://opendatacommunities.org/id/unitary-authority/wiltshire,18/01/2022,1903094300,350,Aspire Taxis ,101274,SP2 ,Neighbourhood & Planning,SEN Secondary Tspt,Transport Contracts,Third Party Payments,REVENUE
Wiltshire,http://opendatacommunities.org/id/unitary-authority/wiltshire,21/01/2022,1903096457,1020,Aspire Taxis ,101274,SP2 ,Neighbourhood & Planning,Mainstream Primary,Transport Contracts,Third Party Payments,REVENUE
Wiltshire,http://opendatacommunities.org/id/unitary-authority/wiltshire,19/01/2022,1903090595,5033.32,Assisted Living South West ,149587,B70 ,Community Services,MH AOWA N&E Locality,Adult Residential Placements - Spot Purchase,Third Party Payments,REVENUE
Wiltshire,http://opendatacommunities.org/id/unitary-authority/wiltshire,14/01/2022,1903091077,500,Assoc Of Electoral Administrators ,113675,SR2 ,Resources,RegistrationofElectr,Staff Training - General,Employee Related,REVENUE
Wiltshire,http://opendatacommunities.org/id/unitary-authority/wiltshire,21/01/2022,1903096408,586,Assoc Of Electoral Administrators ,113675,SR2 ,Resources,Police&Crime Comm El,Election Fees & Expenses,Supplies and Services,REVENUE
Wiltshire,http://opendatacommunities.org/id/unitary-authority/wiltshire,19/01/2022,1903090594,1948.32,Assured Healthcare Solutions Ltd ,149399,CV23,Community Services,MH AOWA N&E Locality,Adult Care Nursing Placements - Spot,Third Party Payments,REVENUE
Wiltshire,http://opendatacommunities.org/id/unitary-authority/wiltshire,18/01/2022,1903094074,10555.04,Atelier Nursery Ltd ,145940,SN15,Children & Education,Free Enttlmnt 3 & 4y,Childcare Free Entitlement Early Years,Supplies and Services,REVENUE
Wiltshire,http://opendatacommunities.org/id/unitary-authority/wiltshire,18/01/2022,1903094075,572.66,Atelier Nursery Ltd ,145940,SN15,Children & Education,Free Entitlement 2 Y,Childcare Free Entitlement Early Years,Supplies and Services,REVENUE
Wiltshire,http://opendatacommunities.org/id/unitary-authority/wiltshire,21/01/2022,1903096533,1000,Atelier Nursery Ltd ,145940,SN15,Resources,Covid 19 COMF,Nursery / Childminder Fees / Sitting Service,Third Party Payments,REVENUE
Wiltshire,http://opendatacommunities.org/id/unitary-authority/wiltshire,19/01/2022,1903095663,300,Atkins Ltd ,110197,KT18,Wiltshire Council,Wiltshire Council,Highways Contracts,Third Party Payments,CAPITAL
Wiltshire,http://opendatacommunities.org/id/unitary-authority/wiltshire,19/01/2022,1903095663,476.84,Atkins Ltd ,110197,KT18,Wiltshire Council,Wiltshire Council,Highways Contracts,Third Party Payments,CAPITAL
Wiltshire,http://opendatacommunities.org/id/unitary-authority/wiltshire,19/01/2022,1903095663,628.68,Atkins Ltd ,110197,KT18,Wiltshire Council,Wiltshire Council,Highways Contracts,Third Party Payments,CAPITAL
Wiltshire,http://opendatacommunities.org/id/unitary-authority/wiltshire,19/01/2022,1903095663,734.57,Atkins Ltd ,110197,KT18,Wiltshire Council,Wiltshire Council,Highways Contracts,Third Party Payments,CAPITAL
Wiltshire,http://opendatacommunities.org/id/unitary-authority/wiltshire,19/01/2022,1903095663,1396.8,Atkins Ltd ,110197,KT18,Neighbourhood & Planning,Traffic Manmt-Rchgbl,Highways Contracts,Third Party Payments,REVENUE
Wiltshire,http://opendatacommunities.org/id/unitary-authority/wiltshire,19/01/2022,1903095663,2000,Atkins Ltd ,110197,KT18,Neighbourhood & Planning,Amenity Street Clean,Highways Contracts,Third Party Payments,REVENUE
Wiltshire,http://opendatacommunities.org/id/unitary-authority/wiltshire,19/01/2022,1903095663,2023.65,Atkins Ltd ,110197,KT18,Wiltshire Council,Wiltshire Council,Highways Contracts,Third Party Payments,CAPITAL
Wiltshire,http://opendatacommunities.org/id/unitary-authority/wiltshire,19/01/2022,1903095663,2029.73,Atkins Ltd ,110197,KT18,Neighbourhood & Planning,Bridge Routine Mtc,Highways Contracts,Third Party Payments,REVENUE
Wiltshire,http://opendatacommunities.org/id/unitary-authority/wiltshire,19/01/2022,1903095663,2654.09,Atkins Ltd ,110197,KT18,Wiltshire Council,Wiltshire Council,Highways Contracts,Third Party Payments,CAPITAL
Wiltshire,http://opendatacommunities.org/id/unitary-authority/wiltshire,19/01/2022,1903095663,4234.82,Atkins Ltd ,110197,KT18,Wiltshire Council,Wiltshire Council,Highways Contracts,Third Party Payments,CAPITAL
Wiltshire,http://opendatacommunities.org/id/unitary-authority/wiltshire,19/01/2022,1903095663,4514.78,Atkins Ltd ,110197,KT18,Wiltshire Council,Wiltshire Council,Highways Contracts,Third Party Payments,CAPITAL
Wiltshire,http://opendatacommunities.org/id/unitary-authority/wiltshire,19/01/2022,1903095663,6204.47,Atkins Ltd ,110197,KT18,Neighbourhood & Planning,Highways Asset Mgt,Highways Contracts,Third Party Payments,REVENUE
Wiltshire,http://opendatacommunities.org/id/unitary-authority/wiltshire,19/01/2022,1903095663,7027.63,Atkins Ltd ,110197,KT18,Wiltshire Council,Wiltshire Council,Highways Contracts,Third Party Payments,CAPITAL
Wiltshire,http://opendatacommunities.org/id/unitary-authority/wiltshire,19/01/2022,1903095663,8440.91,Atkins Ltd ,110197,KT18,Wiltshire Council,Wiltshire Council,Highways Contracts,Third Party Payments,CAPITAL
Wiltshire,http://opendatacommunities.org/id/unitary-authority/wiltshire,19/01/2022,1903095663,8613.17,Atkins Ltd ,110197,KT18,Neighbourhood & Planning,Highw Hedges & Trees,Highways Contracts,Third Party Payments,REVENUE
Wiltshire,http://opendatacommunities.org/id/unitary-authority/wiltshire,19/01/2022,1903095663,9105.86,Atkins Ltd ,110197,KT18,Neighbourhood & Planning,Traffic Signal Mtc,Highways Contracts,Third Party Payments,REVENUE
Wiltshire,http://opendatacommunities.org/id/unitary-authority/wiltshire,19/01/2022,1903095663,9582.28,Atkins Ltd ,110197,KT18,Wiltshire Council,Wiltshire Council,Highways Contracts,Third Party Payments,CAPITAL
Wiltshire,http://opendatacommunities.org/id/unitary-authority/wiltshire,19/01/2022,1903095663,10026.31,Atkins Ltd ,110197,KT18,Wiltshire Council,Wiltshire Council,Highways Contracts,Third Party Payments,CAPITAL
Wiltshire,http://opendatacommunities.org/id/unitary-authority/wiltshire,19/01/2022,1903095663,11777.01,Atkins Ltd ,110197,KT18,Wiltshire Council,Wiltshire Council,Highways Contracts,Third Party Payments,CAPITAL
Wiltshire,http://opendatacommunities.org/id/unitary-authority/wiltshire,19/01/2022,1903095663,13954.69,Atkins Ltd ,110197,KT18,Neighbourhood & Planning,Street Lighting,Highways Contracts,Third Party Payments,REVENUE
Wiltshire,http://opendatacommunities.org/id/unitary-authority/wiltshire,19/01/2022,1903095663,14476.79,Atkins Ltd ,110197,KT18,Wiltshire Council,Wiltshire Council,Highways Contracts,Third Party Payments,CAPITAL
Wiltshire,http://opendatacommunities.org/id/unitary-authority/wiltshire,19/01/2022,1903095663,17271.47,Atkins Ltd ,110197,KT18,Neighbourhood & Planning,Transport Plan & DC,Highways Contracts,Third Party Payments,REVENUE
Wiltshire,http://opendatacommunities.org/id/unitary-authority/wiltshire,19/01/2022,1903095663,22992.82,Atkins Ltd ,110197,KT18,Neighbourhood & Planning,Bus Capacity Funding,Highways Contracts,Third Party Payments,REVENUE
Wiltshire,http://opendatacommunities.org/id/unitary-authority/wiltshire,19/01/2022,1903095663,28003.82,Atkins Ltd ,110197,KT18,Wiltshire Council,Wiltshire Council,Highways Contracts,Third Party Payments,CAPITAL
Wiltshire,http://opendatacommunities.org/id/unitary-authority/wiltshire,19/01/2022,1903095663,28911.45,Atkins Ltd ,110197,KT18,Wiltshire Council,Wiltshire Council,Highways Contracts,Third Party Payments,CAPITAL
Wiltshire,http://opendatacommunities.org/id/unitary-authority/wiltshire,19/01/2022,1903095663,41372.72,Atkins Ltd ,110197,KT18,Wiltshire Council,Wiltshire Council,Highways Contracts,Third Party Payments,CAPITAL
Wiltshire,http://opendatacommunities.org/id/unitary-authority/wiltshire,19/01/2022,1903095663,100395.69,Atkins Ltd ,110197,KT18,Wiltshire Council,Wiltshire Council,Highways Contracts,Third Party Payments,CAPITAL
Wiltshire,http://opendatacommunities.org/id/unitary-authority/wiltshire,19/01/2022,1903095663,388246.21,Atkins Ltd ,110197,KT18,Wiltshire Council,Wiltshire Council,Highways Contracts,Third Party Payments,CAPITAL
Wiltshire,http://opendatacommunities.org/id/unitary-authority/wiltshire,04/01/2022,1903081254,689.04,Audley Care White Horse ,121958,SN8 ,Community Services,North Care Packages,Adult Domiciliary Care Contribution,Income,REVENUE
Wiltshire,http://opendatacommunities.org/id/unitary-authority/wiltshire,04/01/2022,1903081255,819.84,Audley Care White Horse ,121958,SN8 ,Community Services,North Care Packages,Adult Domiciliary Care,Third Party Payments,REVENUE
Wiltshire,http://opendatacommunities.org/id/unitary-authority/wiltshire,04/01/2022,1903081256,2005.16,Audley Care White Horse ,121958,SN8 ,Community Services,North Care Packages,Adult Domiciliary Care Contribution,Income,REVENUE
Wiltshire,http://opendatacommunities.org/id/unitary-authority/wiltshire,04/01/2022,1903081257,874.04,Audley Care White Horse ,121958,SN8 ,Community Services,North Care Packages,Adult Domiciliary Care Contribution,Income,REVENUE
Wiltshire,http://opendatacommunities.org/id/unitary-authority/wiltshire,04/01/2022,1903081258,2071.64,Audley Care White Horse ,121958,SN8 ,Community Services,South Care Packages,Adult Domiciliary Care Contribution,Income,REVENUE
Wiltshire,http://opendatacommunities.org/id/unitary-authority/wiltshire,04/01/2022,1903081259,334.56,Audley Care White Horse ,121958,SN8 ,Community Services,North Care Packages,Adult Domiciliary Care,Third Party Payments,REVENUE
Wiltshire,http://opendatacommunities.org/id/unitary-authority/wiltshire,04/01/2022,1903081260,610.56,Audley Care White Horse ,121958,SN8 ,Community Services,North Care Packages,Adult Domiciliary Care Contribution,Income,REVENUE
Wiltshire,http://opendatacommunities.org/id/unitary-authority/wiltshire,04/01/2022,1903081262,758.04,Audley Care White Horse ,121958,SN8 ,Community Services,North Care Packages,Adult Domiciliary Care Contribution,Income,REVENUE
Wiltshire,http://opendatacommunities.org/id/unitary-authority/wiltshire,04/01/2022,1903081263,660.44,Audley Care White Horse ,121958,SN8 ,Community Services,North Care Packages,Adult Domiciliary Care Contribution,Income,REVENUE
Wiltshire,http://opendatacommunities.org/id/unitary-authority/wiltshire,04/01/2022,1903081264,409.92,Audley Care White Horse ,121958,SN8 ,Community Services,North Care Packages,Adult Domiciliary Care,Third Party Payments,REVENUE
Wiltshire,http://opendatacommunities.org/id/unitary-authority/wiltshire,04/01/2022,1903081265,1762.88,Audley Care White Horse ,121958,SN8 ,Community Services,South Care Packages,Adult Domiciliary Care,Third Party Payments,REVENUE
Wiltshire,http://opendatacommunities.org/id/unitary-authority/wiltshire,04/01/2022,1903081266,2308.88,Audley Care White Horse ,121958,SN8 ,Resources,Covid19 - Hospital D,Adult Domiciliary Care,Third Party Payments,REVENUE
Wiltshire,http://opendatacommunities.org/id/unitary-authority/wiltshire,04/01/2022,1903081267,351.28,Audley Care White Horse ,121958,SN8 ,Community Services,West Care Packages,Adult Domiciliary Care Contribution,Income,REVENUE
Wiltshire,http://opendatacommunities.org/id/unitary-authority/wiltshire,04/01/2022,1903081268,995.4,Audley Care White Horse ,121958,SN8 ,Community Services,West Care Packages,Adult Domiciliary Care,Third Party Payments,REVENUE
Wiltshire,http://opendatacommunities.org/id/unitary-authority/wiltshire,04/01/2022,1903081269,517.12,Audley Care White Horse ,121958,SN8 ,Community Services,West Care Packages,Adult Domiciliary Care Contribution,Income,REVENUE
Wiltshire,http://opendatacommunities.org/id/unitary-authority/wiltshire,06/01/2022,1903082813,1565.4,Audley Care White Horse ,121958,SN8 ,Community Services,West Care Packages,Adult Domiciliary Care Contribution,Income,REVENUE
Wiltshire,http://opendatacommunities.org/id/unitary-authority/wiltshire,06/01/2022,1903082814,956.76,Audley Care White Horse ,121958,SN8 ,Community Services,North Care Packages,Adult Domiciliary Care Contribution,Income,REVENUE
Wiltshire,http://opendatacommunities.org/id/unitary-authority/wiltshire,06/01/2022,1903082815,292.74,Audley Care White Horse ,121958,SN8 ,Community Services,MH AOWA N&E Locality,Adult Domiciliary Care,Third Party Payments,REVENUE
Wiltshire,http://opendatacommunities.org/id/unitary-authority/wiltshire,06/01/2022,1903082816,767.44,Audley Care White Horse ,121958,SN8 ,Community Services,North Care Packages,Adult Domiciliary Care Contribution,Income,REVENUE
Wiltshire,http://opendatacommunities.org/id/unitary-authority/wiltshire,06/01/2022,1903082817,350.28,Audley Care White Horse ,121958,SN8 ,Community Services,North Care Packages,Adult Domiciliary Care,Third Party Payments,REVENUE
Wiltshire,http://opendatacommunities.org/id/unitary-authority/wiltshire,06/01/2022,1903082818,1940.72,Audley Care White Horse ,121958,SN8 ,Community Services,MH OP N&E Locality,Adult Domiciliary Care,Third Party Payments,REVENUE
Wiltshire,http://opendatacommunities.org/id/unitary-authority/wiltshire,06/01/2022,1903082819,2005.68,Audley Care White Horse ,121958,SN8 ,Community Services,North Care Packages,Adult Domiciliary Care,Third Party Payments,REVENUE
Wiltshire,http://opendatacommunities.org/id/unitary-authority/wiltshire,06/01/2022,1903082820,401.64,Audley Care White Horse ,121958,SN8 ,Community Services,North Care Packages,Adult Domiciliary Care Contribution,Income,REVENUE
Wiltshire,http://opendatacommunities.org/id/unitary-authority/wiltshire,06/01/2022,1903082821,2430.24,Audley Care White Horse ,121958,SN8 ,Community Services,South Care Packages,Adult Domiciliary Care,Third Party Payments,REVENUE
Wiltshire,http://opendatacommunities.org/id/unitary-authority/wiltshire,06/01/2022,1903082822,794.58,Audley Care White Horse ,121958,SN8 ,Community Services,MH AOWA N&E Locality,Adult Domiciliary Care,Third Party Payments,REVENUE
Wiltshire,http://opendatacommunities.org/id/unitary-authority/wiltshire,06/01/2022,1903082824,3486.56,Audley Care White Horse ,121958,SN8 ,Community Services,North Care Packages,Adult Domiciliary Care Contribution,Income,REVENUE
Wiltshire,http://opendatacommunities.org/id/unitary-authority/wiltshire,06/01/2022,1903082825,812.41,Audley Care White Horse ,121958,SN8 ,Community Services,North Care Packages,Adult Domiciliary Care Contribution,Income,REVENUE
Wiltshire,http://opendatacommunities.org/id/unitary-authority/wiltshire,06/01/2022,1903082826,881.44,Audley Care White Horse ,121958,SN8 ,Community Services,North Care Packages,Adult Domiciliary Care Contribution,Income,REVENUE
Wiltshire,http://opendatacommunities.org/id/unitary-authority/wiltshire,06/01/2022,1903082827,3093.08,Audley Care White Horse ,121958,SN8 ,Community Services,North Care Packages,Adult Domiciliary Care,Third Party Payments,REVENUE
Wiltshire,http://opendatacommunities.org/id/unitary-authority/wiltshire,06/01/2022,1903082829,269.97,Audley Care White Horse ,121958,SN8 ,Community Services,West Care Packages,Adult Domiciliary Care,Third Party Payments,REVENUE
Wiltshire,http://opendatacommunities.org/id/unitary-authority/wiltshire,12/01/2022,1903088018,2616.24,Audley Care White Horse ,121958,SN8 ,Community Services,South Care Packages,Adult Domiciliary Care Contribution,Income,REVENUE
Wiltshire,http://opendatacommunities.org/id/unitary-authority/wiltshire,12/01/2022,1903088019,1212.12,Audley Care White Horse ,121958,SN8 ,Community Services,West Care Packages,Adult Domiciliary Care Contribution,Income,REVENUE
Wiltshire,http://opendatacommunities.org/id/unitary-authority/wiltshire,12/01/2022,1903088022,591.36,Audley Care White Horse ,121958,SN8 ,Community Services,West Care Packages,Adult Domiciliary Care,Third Party Payments,REVENUE
Wiltshire,http://opendatacommunities.org/id/unitary-authority/wiltshire,12/01/2022,1903088023,292.74,Audley Care White Horse ,121958,SN8 ,Community Services,MH AOWA N&E Locality,Adult Domiciliary Care,Third Party Payments,REVENUE
Wiltshire,http://opendatacommunities.org/id/unitary-authority/wiltshire,12/01/2022,1903088025,409.92,Audley Care White Horse ,121958,SN8 ,Resources,Covid19 - Hospital D,Adult Domiciliary Care,Third Party Payments,REVENUE
Wiltshire,http://opendatacommunities.org/id/unitary-authority/wiltshire,12/01/2022,1903088026,252.6,Audley Care White Horse ,121958,SN8 ,Resources,Covid19 - Hospital D,Adult Domiciliary Care,Third Party Payments,REVENUE
Wiltshire,http://opendatacommunities.org/id/unitary-authority/wiltshire,12/01/2022,1903088026,321.4,Audley Care White Horse ,121958,SN8 ,Community Services,South Care Packages,Adult Domiciliary Care,Third Party Payments,REVENUE
Wiltshire,http://opendatacommunities.org/id/unitary-authority/wiltshire,12/01/2022,1903088028,881.44,Audley Care White Horse ,121958,SN8 ,Community Services,South Care Packages,Adult Domiciliary Care,Third Party Payments,REVENUE
Wiltshire,http://opendatacommunities.org/id/unitary-authority/wiltshire,12/01/2022,1903088029,1842.92,Audley Care White Horse ,121958,SN8 ,Community Services,South Care Packages,Adult Domiciliary Care Contribution,Income,REVENUE
Wiltshire,http://opendatacommunities.org/id/unitary-authority/wiltshire,12/01/2022,1903088030,1940.72,Audley Care White Horse ,121958,SN8 ,Community Services,MH OP N&E Locality,Adult Domiciliary Care,Third Party Payments,REVENUE
Wiltshire,http://opendatacommunities.org/id/unitary-authority/wiltshire,12/01/2022,1903088255,1940.72,Audley Care White Horse ,121958,SN8 ,Community Services,MH OP N&E Locality,Adult Domiciliary Care,Third Party Payments,REVENUE
Wiltshire,http://opendatacommunities.org/id/unitary-authority/wiltshire,07/01/2022,5107447086,1200,Authors Aloud UK Ltd ,153979,AL1 ,Children & Education,Learning Resources,Educational Aids,Supplies and Services,REVENUE
Wiltshire,http://opendatacommunities.org/id/unitary-authority/wiltshire,19/01/2022,1903095527,6007.4,Autism Specialised care Homes ,110205,BS10,Community Services,LDAS Placements,Adult Residential Placements - Spot Purchase,Third Party Payments,REVENUE
Wiltshire,http://opendatacommunities.org/id/unitary-authority/wiltshire,19/01/2022,1903095528,7332.32,Autism West Midlands ,110206,WR9 ,Community Services,LDAS Placements,Adult Residential Placements - Spot Purchase,Third Party Payments,REVENUE
Wiltshire,http://opendatacommunities.org/id/unitary-authority/wiltshire,07/01/2022,5107446543,321.21,Automotive Leasing Ltd ,113729,SL1 ,Neighbourhood & Planning,Fleet,Commercial Leased Vehicles,Transport Related,REVENUE
Wiltshire,http://opendatacommunities.org/id/unitary-authority/wiltshire,10/01/2022,1903083412,2847.39,Autonomy Care Limited ,126128,SN12,Community Services,West Care Packages,Adult Domiciliary Care Contribution,Income,REVENUE
Wiltshire,http://opendatacommunities.org/id/unitary-authority/wiltshire,10/01/2022,1903083413,1446.78,Autonomy Care Limited ,126128,SN12,Community Services,West Care Packages,Adult Domiciliary Care,Third Party Payments,REVENUE
Wiltshire,http://opendatacommunities.org/id/unitary-authority/wiltshire,10/01/2022,1903083415,291.98,Autonomy Care Limited ,126128,SN12,Community Services,West Care Packages,Adult Domiciliary Care,Third Party Payments,REVENUE
Wiltshire,http://opendatacommunities.org/id/unitary-authority/wiltshire,10/01/2022,1903083416,11598.88,Autonomy Care Limited ,126128,SN12,Community Services,LDAS Placements,Supported Living Contribution,Income,REVENUE
Wiltshire,http://opendatacommunities.org/id/unitary-authority/wiltshire,10/01/2022,1903083417,2141.15,Autonomy Care Limited ,126128,SN12,Community Services,LDAS Placements,Supported Living,Third Party Payments,REVENUE
Wiltshire,http://opendatacommunities.org/id/unitary-authority/wiltshire,10/01/2022,1903083418,1759.66,Autonomy Care Limited ,126128,SN12,Community Services,LDAS Placements,Supported Living,Third Party Payments,REVENUE
Wiltshire,http://opendatacommunities.org/id/unitary-authority/wiltshire,10/01/2022,1903083419,2301.53,Autonomy Care Limited ,126128,SN12,Community Services,LDAS Placements,Supported Living,Third Party Payments,REVENUE
Wiltshire,http://opendatacommunities.org/id/unitary-authority/wiltshire,10/01/2022,1903083420,541.52,Autonomy Care Limited ,126128,SN12,Community Services,North Care Packages,Supported Living Contribution,Income,REVENUE
Wiltshire,http://opendatacommunities.org/id/unitary-authority/wiltshire,10/01/2022,1903083421,21063.38,Autonomy Care Limited ,126128,SN12,Community Services,LDAS Placements,Supported Living Contribution,Income,REVENUE
Wiltshire,http://opendatacommunities.org/id/unitary-authority/wiltshire,10/01/2022,1903083422,23865.42,Autonomy Care Limited ,126128,SN12,Community Services,LDAS Placements,Supported Living Contribution,Income,REVENUE
Wiltshire,http://opendatacommunities.org/id/unitary-authority/wiltshire,10/01/2022,1903083423,18326.72,Autonomy Care Limited ,126128,SN12,Community Services,LDAS Placements,Supported Living Contribution,Income,REVENUE
Wiltshire,http://opendatacommunities.org/id/unitary-authority/wiltshire,10/01/2022,1903083424,2194.8,Autonomy Care Limited ,126128,SN12,Community Services,Adult Care Gross Loa,Adult Domiciliary Care,Third Party Payments,REVENUE
Wiltshire,http://opendatacommunities.org/id/unitary-authority/wiltshire,10/01/2022,1903083425,1082.36,Autonomy Care Limited ,126128,SN12,Community Services,South Care Packages,Adult Domiciliary Care Contribution,Income,REVENUE
Wiltshire,http://opendatacommunities.org/id/unitary-authority/wiltshire,10/01/2022,1903083427,504.84,Autonomy Care Limited ,126128,SN12,Community Services,South Care Packages,Adult Domiciliary Care Contribution,Income,REVENUE
Wiltshire,http://opendatacommunities.org/id/unitary-authority/wiltshire,10/01/2022,1903083428,1854.12,Autonomy Care Limited ,126128,SN12,Community Services,South Care Packages,Adult Domiciliary Care Contribution,Income,REVENUE
Wiltshire,http://opendatacommunities.org/id/unitary-authority/wiltshire,31/01/2022,1903101670,504.84,Autonomy Care Limited ,126128,SN12,Community Services,South Care Packages,Adult Domiciliary Care,Third Party Payments,REVENUE
Wiltshire,http://opendatacommunities.org/id/unitary-authority/wiltshire,31/01/2022,1903101671,2141.96,Autonomy Care Limited ,126128,SN12,Community Services,South Care Packages,Adult Domiciliary Care Contribution,Income,REVENUE
Wiltshire,http://opendatacommunities.org/id/unitary-authority/wiltshire,31/01/2022,1903101672,2164.52,Autonomy Care Limited ,126128,SN12,Community Services,Adult Care Gross Loa,Adult Domiciliary Care,Third Party Payments,REVENUE
Wiltshire,http://opendatacommunities.org/id/unitary-authority/wiltshire,31/01/2022,1903101673,1082.36,Autonomy Care Limited ,126128,SN12,Community Services,South Care Packages,Adult Domiciliary Care Contribution,Income,REVENUE
Wiltshire,http://opendatacommunities.org/id/unitary-authority/wiltshire,31/01/2022,1903101674,504.84,Autonomy Care Limited ,126128,SN12,Community Services,South Care Packages,Adult Domiciliary Care Contribution,Income,REVENUE
Wiltshire,http://opendatacommunities.org/id/unitary-authority/wiltshire,31/01/2022,1903101675,1854.12,Autonomy Care Limited ,126128,SN12,Community Services,South Care Packages,Adult Domiciliary Care Contribution,Income,REVENUE
Wiltshire,http://opendatacommunities.org/id/unitary-authority/wiltshire,31/01/2022,1903101676,1268.26,Autonomy Care Limited ,126128,SN12,Community Services,West Care Packages,Adult Domiciliary Care,Third Party Payments,REVENUE
Wiltshire,http://opendatacommunities.org/id/unitary-authority/wiltshire,31/01/2022,1903101677,2839.82,Autonomy Care Limited ,126128,SN12,Community Services,West Care Packages,Adult Domiciliary Care Contribution,Income,REVENUE
Wiltshire,http://opendatacommunities.org/id/unitary-authority/wiltshire,31/01/2022,1903101678,1348.62,Autonomy Care Limited ,126128,SN12,Community Services,West Care Packages,Adult Domiciliary Care,Third Party Payments,REVENUE
Wiltshire,http://opendatacommunities.org/id/unitary-authority/wiltshire,31/01/2022,1903101680,336.9,Autonomy Care Limited ,126128,SN12,Community Services,West Care Packages,Adult Domiciliary Care,Third Party Payments,REVENUE
Wiltshire,http://opendatacommunities.org/id/unitary-authority/wiltshire,24/01/2022,5107448473,269.52,Autonomy Care Limited ,126128,SN12,Children & Education,0-25 extnl disabty p,Other Social & Welfare Costs,Third Party Payments,REVENUE
Wiltshire,http://opendatacommunities.org/id/unitary-authority/wiltshire,24/01/2022,5107448474,269.52,Autonomy Care Limited ,126128,SN12,Children & Education,0-25 extnl disabty p,Other Social & Welfare Costs,Third Party Payments,REVENUE
Wiltshire,http://opendatacommunities.org/id/unitary-authority/wiltshire,24/01/2022,5107448475,752.76,Autonomy Care Limited ,126128,SN12,Children & Education,0-25 extnl disabty p,Other Social & Welfare Costs,Third Party Payments,REVENUE
Wiltshire,http://opendatacommunities.org/id/unitary-authority/wiltshire,19/01/2022,1903083742,7590.32,Autonomy Life Ltd ,110896,SN12,Community Services,LDAS Placements,Adult Residential Placements - Spot Purchase,Third Party Payments,REVENUE
Wiltshire,http://opendatacommunities.org/id/unitary-authority/wiltshire,19/01/2022,1903083743,6839.32,Autonomy Life Ltd ,110896,SN12,Community Services,LDAS Placements,Adult Residential Placements - Spot Purchase,Third Party Payments,REVENUE
Wiltshire,http://opendatacommunities.org/id/unitary-authority/wiltshire,19/01/2022,1903083744,16916.96,Autonomy Life Ltd ,110896,SN12,Community Services,LDAS Placements,Adult Residential Placements - Spot Purchase,Third Party Payments,REVENUE
Wiltshire,http://opendatacommunities.org/id/unitary-authority/wiltshire,19/01/2022,1903083745,8260,Autonomy Life Ltd ,110896,SN12,Community Services,LDAS Placements,Adult Residential Placements - Spot Purchase,Third Party Payments,REVENUE
Wiltshire,http://opendatacommunities.org/id/unitary-authority/wiltshire,19/01/2022,1903083746,8132,Autonomy Life Ltd ,110896,SN12,Community Services,LDAS Placements,Adult Residential Placements - Spot Purchase,Third Party Payments,REVENUE
Wiltshire,http://opendatacommunities.org/id/unitary-authority/wiltshire,19/01/2022,1903083747,7086.16,Autonomy Life Ltd ,110896,SN12,Community Services,North Care Packages,Adult Residential Placements - Spot Purchase,Third Party Payments,REVENUE
Wiltshire,http://opendatacommunities.org/id/unitary-authority/wiltshire,19/01/2022,1903083748,5818.08,Autonomy Life Ltd ,110896,SN12,Community Services,West Care Packages,Adult Residential Placements - Spot Purchase,Third Party Payments,REVENUE
Wiltshire,http://opendatacommunities.org/id/unitary-authority/wiltshire,06/01/2022,5107446988,16460.07,Autonomy Plus Limited ,146109,SN12,Children & Education,0-25 extnl disabty p,Childrens Agency Placement,Third Party Payments,REVENUE
Wiltshire,http://opendatacommunities.org/id/unitary-authority/wiltshire,06/01/2022,5107447003,16460.07,Autonomy Plus Limited ,146109,SN12,Children & Education,0-25 extnl disabty p,Childrens Agency Placement,Third Party Payments,REVENUE
Wiltshire,http://opendatacommunities.org/id/unitary-authority/wiltshire,12/01/2022,5107447464,30470.24,Autonomy Plus Limited ,146109,SN12,Children & Education,External Residential,Childrens Agency Placement,Third Party Payments,REVENUE
Wiltshire,http://opendatacommunities.org/id/unitary-authority/wiltshire,12/01/2022,5107447575,7828.81,Autonomy Plus Limited ,146109,SN12,Children & Education,External Residential,Childrens Agency Placement,Third Party Payments,REVENUE
Wiltshire,http://opendatacommunities.org/id/unitary-authority/wiltshire,12/01/2022,5107447576,22063.01,Autonomy Plus Limited ,146109,SN12,Children & Education,External Residential,Childrens Agency Placement,Third Party Payments,REVENUE
Wiltshire,http://opendatacommunities.org/id/unitary-authority/wiltshire,27/01/2022,1903099875,2428.36,AVC Wise Ltd ,153821,GU9 ,Resources,Corporate Contingenc,Employer NI Savings,Employee Related,REVENUE
Wiltshire,http://opendatacommunities.org/id/unitary-authority/wiltshire,19/01/2022,1903092912,43400,Avebury House ,150432,SN10,Resources,Covid19 - Hospital D,Adult Care Nursing Placements- Block Contract,Third Party Payments,REVENUE
Wiltshire,http://opendatacommunities.org/id/unitary-authority/wiltshire,19/01/2022,1903094618,4800,Avebury House ,150432,SN10,Resources,Covid19 - Hospital D,Adult Care Nursing Placements - Spot,Third Party Payments,REVENUE
Wiltshire,http://opendatacommunities.org/id/unitary-authority/wiltshire,19/01/2022,1903094619,4800,Avebury House ,150432,SN10,Resources,Covid19 - Hospital D,Adult Care Nursing Placements - Spot,Third Party Payments,REVENUE
Wiltshire,http://opendatacommunities.org/id/unitary-authority/wiltshire,19/01/2022,1903094620,3137.24,Avebury House ,150432,SN10,Community Services,MH OP N&E Locality,Adult Residential Placements - Spot Purchase,Third Party Payments,REVENUE
Wiltshire,http://opendatacommunities.org/id/unitary-authority/wiltshire,19/01/2022,1903094621,2589.92,Avebury House ,150432,SN10,Community Services,West Care Packages,Adult Residential Placements - Spot Purchase,Third Party Payments,REVENUE
Wiltshire,http://opendatacommunities.org/id/unitary-authority/wiltshire,19/01/2022,1903094622,2448,Avebury House ,150432,SN10,Community Services,West Care Packages,Adult Residential Placements - Spot Purchase,Third Party Payments,REVENUE
Wiltshire,http://opendatacommunities.org/id/unitary-authority/wiltshire,19/01/2022,1903094623,2835.6,Avebury House ,150432,SN10,Community Services,West Care Packages,Adult Care Nursing Placements - Spot,Third Party Payments,REVENUE
Wiltshire,http://opendatacommunities.org/id/unitary-authority/wiltshire,19/01/2022,1903094624,4649.6,Avebury House ,150432,SN10,Community Services,MH AOWA South Locali,Adult Care Nursing Placements - Spot,Third Party Payments,REVENUE
Wiltshire,http://opendatacommunities.org/id/unitary-authority/wiltshire,19/01/2022,1903094625,2856,Avebury House ,150432,SN10,Community Services,Adult Care Gross Loa,Adult Care Nursing Placements - Spot,Third Party Payments,REVENUE
Wiltshire,http://opendatacommunities.org/id/unitary-authority/wiltshire,19/01/2022,1903094626,4800,Avebury House ,150432,SN10,Resources,Covid19 - Hospital D,Adult Care Nursing Placements - Spot,Third Party Payments,REVENUE
Wiltshire,http://opendatacommunities.org/id/unitary-authority/wiltshire,19/01/2022,1903094627,4800,Avebury House ,150432,SN10,Resources,Covid19 - Hospital D,Adult Care Nursing Placements - Spot,Third Party Payments,REVENUE
Wiltshire,http://opendatacommunities.org/id/unitary-authority/wiltshire,19/01/2022,1903094628,4800,Avebury House ,150432,SN10,Resources,Covid19 - Hospital D,Adult Care Nursing Placements - Spot,Third Party Payments,REVENUE
Wiltshire,http://opendatacommunities.org/id/unitary-authority/wiltshire,19/01/2022,1903094629,2228.57,Avebury House ,150432,SN10,Resources,Covid19 - Hospital D,Adult Care Nursing Placements - Spot,Third Party Payments,REVENUE
Wiltshire,http://opendatacommunities.org/id/unitary-authority/wiltshire,19/01/2022,1903094630,4457.14,Avebury House ,150432,SN10,Resources,Covid19 - Hospital D,Adult Care Nursing Placements - Spot,Third Party Payments,REVENUE
Wiltshire,http://opendatacommunities.org/id/unitary-authority/wiltshire,19/01/2022,1903094631,298.72,Avebury House ,150432,SN10,Community Services,West Care Packages,Adult Residential Place - Spot Purchase,Income,REVENUE
Wiltshire,http://opendatacommunities.org/id/unitary-authority/wiltshire,19/01/2022,1903094632,597.44,Avebury House ,150432,SN10,Community Services,West Care Packages,Adult Residential Place - Spot Purchase,Income,REVENUE
Wiltshire,http://opendatacommunities.org/id/unitary-authority/wiltshire,19/01/2022,1903094633,2400,Avebury House ,150432,SN10,Resources,Covid19 - Hospital D,Adult Care Nursing Placements - Spot,Third Party Payments,REVENUE
Wiltshire,http://opendatacommunities.org/id/unitary-authority/wiltshire,19/01/2022,1903094634,514.29,Avebury House ,150432,SN10,Resources,Covid19 - Hospital D,Adult Care Nursing Placements - Spot,Third Party Payments,REVENUE
Wiltshire,http://opendatacommunities.org/id/unitary-authority/wiltshire,19/01/2022,1903094635,2400,Avebury House ,150432,SN10,Resources,Covid19 - Hospital D,Adult Care Nursing Placements - Spot,Third Party Payments,REVENUE
Wiltshire,http://opendatacommunities.org/id/unitary-authority/wiltshire,19/01/2022,1903094636,4800,Avebury House ,150432,SN10,Resources,Covid19 - Hospital D,Adult Care Nursing Placements - Spot,Third Party Payments,REVENUE
Wiltshire,http://opendatacommunities.org/id/unitary-authority/wiltshire,19/01/2022,1903094637,4628.57,Avebury House ,150432,SN10,Resources,Covid19 - Hospital D,Adult Care Nursing Placements - Spot,Third Party Payments,REVENUE
Wiltshire,http://opendatacommunities.org/id/unitary-authority/wiltshire,19/01/2022,1903094638,2571.43,Avebury House ,150432,SN10,Resources,Covid19 - Hospital D,Adult Care Nursing Placements - Spot,Third Party Payments,REVENUE
Wiltshire,http://opendatacommunities.org/id/unitary-authority/wiltshire,19/01/2022,1903088954,2703.28,Avery Healthcare Cepen Lodge ,126733,DL1 ,Community Services,MH OP N&E Locality,Adult Residential Placements - Spot Purchase,Third Party Payments,REVENUE
Wiltshire,http://opendatacommunities.org/id/unitary-authority/wiltshire,19/01/2022,1903088955,2703.28,Avery Healthcare Cepen Lodge ,126733,DL1 ,Community Services,MH OP N&E Locality,Adult Residential Placements - Spot Purchase,Third Party Payments,REVENUE
Wiltshire,http://opendatacommunities.org/id/unitary-authority/wiltshire,19/01/2022,1903088956,3260.28,Avery Healthcare Cepen Lodge ,126733,DL1 ,Community Services,North Care Packages,Adult Residential Placements - Spot Purchase,Third Party Payments,REVENUE
Wiltshire,http://opendatacommunities.org/id/unitary-authority/wiltshire,19/01/2022,1903088957,3260.28,Avery Healthcare Cepen Lodge ,126733,DL1 ,Community Services,North Care Packages,Adult Residential Placements - Spot Purchase,Third Party Payments,REVENUE
Wiltshire,http://opendatacommunities.org/id/unitary-authority/wiltshire,19/01/2022,1903088958,2879.32,Avery Healthcare Cepen Lodge ,126733,DL1 ,Community Services,North Care Packages,Adult Residential Placements - Spot Purchase,Third Party Payments,REVENUE
Wiltshire,http://opendatacommunities.org/id/unitary-authority/wiltshire,19/01/2022,1903088959,2703.28,Avery Healthcare Cepen Lodge ,126733,DL1 ,Community Services,North Care Packages,Adult Residential Placements - Spot Purchase,Third Party Payments,REVENUE
Wiltshire,http://opendatacommunities.org/id/unitary-authority/wiltshire,19/01/2022,1903088960,2703.28,Avery Healthcare Cepen Lodge ,126733,DL1 ,Community Services,North Care Packages,Adult Residential Placements - Spot Purchase,Third Party Payments,REVENUE
Wiltshire,http://opendatacommunities.org/id/unitary-authority/wiltshire,19/01/2022,1903088961,2624.84,Avery Healthcare Cepen Lodge ,126733,DL1 ,Community Services,North Care Packages,Adult Residential Placements - Spot Purchase,Third Party Payments,REVENUE
